Body Name,Body,Service Area Catergorisation,Service Division Catergorisation,Responsible Unit,Expenses Type,Detailed Expenses Type,Expenses Code,Date,Transaction Number,Amount,Capital / Revenue,Supplier Name,Supplier ID
NORTH EAST LINCOLNSHIRE COUNCIL,http://statistics.data.gov.uk/id/local-authority/00FC,Resources,Commission & Business Support,Information System,Cap Intangible Assets,Cap Intangible Assets,YH101,10/28/2014,312141,1750,CAPITAL,PERMANENT FUTURES LTD,126134
NORTH EAST LINCOLNSHIRE COUNCIL,http://statistics.data.gov.uk/id/local-authority/00FC,Resources,Commission & Business Support,Information System,Cap Intangible Assets,Cap Intangible Assets,YH101,10/28/2014,310313,1750,CAPITAL,PERMANENT FUTURES LTD,126134
NORTH EAST LINCOLNSHIRE COUNCIL,http://statistics.data.gov.uk/id/local-authority/00FC,Resources,Commission & Business Support,Information System,Cap Intangible Assets,Cap Intangible Assets,YH101,10/30/2014,314176,20000,CAPITAL,NORTHGATE INFORMATION SOLUTIONS UK LTD,101841
NORTH EAST LINCOLNSHIRE COUNCIL,http://statistics.data.gov.uk/id/local-authority/00FC,Resources,Commission & Business Support,New Ict Framework,Cap Veh Plt Eqp-Prof Fees,Cap Veh Plt Eqp-Prof Fees,YB103,10/23/2014,312760,600,CAPITAL,NCC SERVICES LIMITED,101410
NORTH EAST LINCOLNSHIRE COUNCIL,http://statistics.data.gov.uk/id/local-authority/00FC,Resources,Commission & Business Support,New Ict Framework,Cap Intangible Assets,Cap Intangible Assets,YH101,10/13/2014,309471,367.95,CAPITAL,IKEN BUSINESS LTD,127770
NORTH EAST LINCOLNSHIRE COUNCIL,http://statistics.data.gov.uk/id/local-authority/00FC,Resources,Commission & Business Support,New Ict Framework,Cap Intangible Assets,Cap Intangible Assets,YH101,10/13/2014,309469,2541,CAPITAL,IKEN BUSINESS LTD,127770
NORTH EAST LINCOLNSHIRE COUNCIL,http://statistics.data.gov.uk/id/local-authority/00FC,Resources,Commission & Business Support,New Ict Framework,Cap Intangible Assets,Cap Intangible Assets,YH101,10/13/2014,309456,5082,CAPITAL,IKEN BUSINESS LTD,127770
NORTH EAST LINCOLNSHIRE COUNCIL,http://statistics.data.gov.uk/id/local-authority/00FC,Resources,Commission & Business Support,New Ict Framework,Cap Intangible Assets,Cap Intangible Assets,YH101,10/14/2014,309473,17787,CAPITAL,IKEN BUSINESS LTD,127770
NORTH EAST LINCOLNSHIRE COUNCIL,http://statistics.data.gov.uk/id/local-authority/00FC,Resources,Commission & Business Support,Replacement/Refurbishment  It,Cap Veh Plt Eqp-Purchase,Cap Veh Plt Eqp-Purchase,YB101,10/23/2014,291692,16975.76,CAPITAL,VIRGIN MEDIA,107612
NORTH EAST LINCOLNSHIRE COUNCIL,http://statistics.data.gov.uk/id/local-authority/00FC,Resources,Commission & Business Support,Replacement/Refurbishment  It,Cap Veh Plt Eqp-Purchase,Cap Veh Plt Eqp-Purchase,YB101,10/9/2014,309362,877.35,CAPITAL,MATRIX SCM LTD,108117
NORTH EAST LINCOLNSHIRE COUNCIL,http://statistics.data.gov.uk/id/local-authority/00FC,Resources,Commission & Business Support,Replacement/Refurbishment  It,Cap Veh Plt Eqp-Purchase,Cap Veh Plt Eqp-Purchase,YB101,10/9/2014,309361,962.55,CAPITAL,MATRIX SCM LTD,108117
NORTH EAST LINCOLNSHIRE COUNCIL,http://statistics.data.gov.uk/id/local-authority/00FC,Resources,Commission & Business Support,Replacement/Refurbishment  It,Cap Veh Plt Eqp-Purchase,Cap Veh Plt Eqp-Purchase,YB101,10/29/2014,314174,6136.75,CAPITAL,VIRGIN MEDIA,107612
NORTH EAST LINCOLNSHIRE COUNCIL,http://statistics.data.gov.uk/id/local-authority/00FC,Resources,Commission & Business Support,Replacement/Refurbishment  It,Cap Veh Plt Eqp-Purchase,Cap Veh Plt Eqp-Purchase,YB101,10/29/2014,314174,124266.5,CAPITAL,VIRGIN MEDIA,107612
NORTH EAST LINCOLNSHIRE COUNCIL,http://statistics.data.gov.uk/id/local-authority/00FC,Resources,Commission & Business Support,Replacement/Refurbishment  It,Cap Veh Plt Eqp-Purchase,Cap Veh Plt Eqp-Purchase,YB101,10/29/2014,314175,-3446.5,CAPITAL,VIRGIN MEDIA,107612
NORTH EAST LINCOLNSHIRE COUNCIL,http://statistics.data.gov.uk/id/local-authority/00FC,Resources,Commission & Business Support,Replacement/Refurbishment  It,Cap Veh Plt Eqp-Purchase,Cap Veh Plt Eqp-Purchase,YB101,10/24/2014,291715,533.19,CAPITAL,VIRGIN MEDIA,107612
NORTH EAST LINCOLNSHIRE COUNCIL,http://statistics.data.gov.uk/id/local-authority/00FC,Resources,Commission & Business Support,Replacement/Refurbishment  It,Cap Veh Plt Eqp-Purchase,Cap Veh Plt Eqp-Purchase,YB101,10/24/2014,291715,7028.14,CAPITAL,VIRGIN MEDIA,107612
NORTH EAST LINCOLNSHIRE COUNCIL,http://statistics.data.gov.uk/id/local-authority/00FC,Resources,Commission & Business Support,Replacement/Refurbishment  It,Cap Intangible Assets,Cap Intangible Assets,YH101,10/27/2014,309591,920,CAPITAL,SATISNET LTD,127592
NORTH EAST LINCOLNSHIRE COUNCIL,http://statistics.data.gov.uk/id/local-authority/00FC,Resources,Commission & Business Support,Replacement/Refurbishment  It,Cap Intangible Assets,Cap Intangible Assets,YH101,10/28/2014,312768,18973.88,CAPITAL,DELL COMPUTER CORPORATION LTD,100892
NORTH EAST LINCOLNSHIRE COUNCIL,http://statistics.data.gov.uk/id/local-authority/00FC,Resources,Commission & Business Support,Replacement/Refurbishment  It,Cap Intangible Assets,Cap Intangible Assets,YH101,10/13/2014,309455,19686.34,CAPITAL,TRUSTMARQUE SOLUTIONS LTD,101275
NORTH EAST LINCOLNSHIRE COUNCIL,http://statistics.data.gov.uk/id/local-authority/00FC,Resources,Commission & Business Support,Replacement/Refurbishment  It,Cap Intangible Assets,Cap Intangible Assets,YH101,10/13/2014,309455,8632.12,CAPITAL,TRUSTMARQUE SOLUTIONS LTD,101275
NORTH EAST LINCOLNSHIRE COUNCIL,http://statistics.data.gov.uk/id/local-authority/00FC,Place,Environment,Cremator Replacement,Cap Land/Build-Build Enh Wrk,Cap Land/Build-Build Enh Wrk,YA102,10/23/2014,311599,1585.2,CAPITAL,JAMES BRATTON & CO LTD,100714
NORTH EAST LINCOLNSHIRE COUNCIL,http://statistics.data.gov.uk/id/local-authority/00FC,Place,Environment,Fleet Replacement Programme,Cap Veh Plt Eqp-Purchase,Cap Veh Plt Eqp-Purchase,YB101,10/13/2014,307831,4800,CAPITAL,PINECROFT LIMITED,103426
NORTH EAST LINCOLNSHIRE COUNCIL,http://statistics.data.gov.uk/id/local-authority/00FC,Place,Environment,Fleet Replacement Programme,Cap Veh Plt Eqp-Purchase,Cap Veh Plt Eqp-Purchase,YB101,10/9/2014,304688,705,CAPITAL,DENNIS EAGLE LTD,100627
NORTH EAST LINCOLNSHIRE COUNCIL,http://statistics.data.gov.uk/id/local-authority/00FC,Place,Environment,Fleet Replacement Programme,Cap Veh Plt Eqp-Purchase,Cap Veh Plt Eqp-Purchase,YB101,10/9/2014,304688,176050,CAPITAL,DENNIS EAGLE LTD,100627
NORTH EAST LINCOLNSHIRE COUNCIL,http://statistics.data.gov.uk/id/local-authority/00FC,Place,Environment,Fleet Replacement Programme,Cap Veh Plt Eqp-Purchase,Cap Veh Plt Eqp-Purchase,YB101,10/17/2014,310438,275,CAPITAL,TRUST FORD,123505
NORTH EAST LINCOLNSHIRE COUNCIL,http://statistics.data.gov.uk/id/local-authority/00FC,Place,Environment,Fleet Replacement Programme,Cap Veh Plt Eqp-Purchase,Cap Veh Plt Eqp-Purchase,YB101,10/17/2014,310438,27067.65,CAPITAL,TRUST FORD,123505
NORTH EAST LINCOLNSHIRE COUNCIL,http://statistics.data.gov.uk/id/local-authority/00FC,Place,Environment,Fleet Replacement Programme,Cap Veh Plt Eqp-Purchase,Cap Veh Plt Eqp-Purchase,YB101,10/9/2014,287390,1502,CAPITAL,DENNIS EAGLE LTD,100627
NORTH EAST LINCOLNSHIRE COUNCIL,http://statistics.data.gov.uk/id/local-authority/00FC,Place,Environment,Fleet Replacement Programme,Cap Veh Plt Eqp-Purchase,Cap Veh Plt Eqp-Purchase,YB101,10/9/2014,282844,177283,CAPITAL,DENNIS EAGLE LTD,100627
NORTH EAST LINCOLNSHIRE COUNCIL,http://statistics.data.gov.uk/id/local-authority/00FC,Place,Environment,Fleet Replacement Programme,Cap Veh Plt Eqp-Purchase,Cap Veh Plt Eqp-Purchase,YB101,10/9/2014,282845,177283,CAPITAL,DENNIS EAGLE LTD,100627
NORTH EAST LINCOLNSHIRE COUNCIL,http://statistics.data.gov.uk/id/local-authority/00FC,Place,Economy,Hps-Disabled Fac. Grants,Cap Grants To O/Side Sources,Cap Grants To O/Side Sources,YJ101,10/28/2014,313387,1510.18,CAPITAL,OBAM LIFT SERVICES LTD,112666
NORTH EAST LINCOLNSHIRE COUNCIL,http://statistics.data.gov.uk/id/local-authority/00FC,Place,Economy,Hps-Disabled Fac. Grants,Cap Grants To O/Side Sources,Cap Grants To O/Side Sources,YJ101,10/21/2014,310939,2360,CAPITAL,VIC HANSEN BUILDING & JOINERY LTD,103981
NORTH EAST LINCOLNSHIRE COUNCIL,http://statistics.data.gov.uk/id/local-authority/00FC,Place,Economy,Hps-Disabled Fac. Grants,Cap Grants To O/Side Sources,Cap Grants To O/Side Sources,YJ101,10/30/2014,313757,3909,CAPITAL,P G INGOLDBY & SONS LTD,100591
NORTH EAST LINCOLNSHIRE COUNCIL,http://statistics.data.gov.uk/id/local-authority/00FC,Place,Economy,Hps-Disabled Fac. Grants,Cap Grants To O/Side Sources,Cap Grants To O/Side Sources,YJ101,10/14/2014,310419,15000,CAPITAL,MARK BENNETT,101838
NORTH EAST LINCOLNSHIRE COUNCIL,http://statistics.data.gov.uk/id/local-authority/00FC,Place,Economy,Hps-Disabled Fac. Grants,Cap Grants To O/Side Sources,Cap Grants To O/Side Sources,YJ101,10/24/2014,312158,5854.49,CAPITAL,MEARS LTD,102433
NORTH EAST LINCOLNSHIRE COUNCIL,http://statistics.data.gov.uk/id/local-authority/00FC,Place,Economy,Hps-Disabled Fac. Grants,Cap Grants To O/Side Sources,Cap Grants To O/Side Sources,YJ101,10/31/2014,313318,4725,CAPITAL,STANNAH LIFT SERVICES LTD,100622
NORTH EAST LINCOLNSHIRE COUNCIL,http://statistics.data.gov.uk/id/local-authority/00FC,Place,Economy,Hps-Disabled Fac. Grants,Cap Grants To O/Side Sources,Cap Grants To O/Side Sources,YJ101,10/29/2014,313645,4828.75,CAPITAL,P G INGOLDBY & SONS LTD,100591
NORTH EAST LINCOLNSHIRE COUNCIL,http://statistics.data.gov.uk/id/local-authority/00FC,Place,Economy,Hps-Disabled Fac. Grants,Cap Grants To O/Side Sources,Cap Grants To O/Side Sources,YJ101,10/28/2014,313399,5393,CAPITAL,STANNAH LIFT SERVICES LTD,100622
NORTH EAST LINCOLNSHIRE COUNCIL,http://statistics.data.gov.uk/id/local-authority/00FC,Place,Economy,Local Transport Plan Schemes,Cap Land/Build-Build Enh Wrk,Cap Land/Build-Build Enh Wrk,YA102,10/13/2014,309403,690.04,CAPITAL,J MCCANN & CO LTD,100841
NORTH EAST LINCOLNSHIRE COUNCIL,http://statistics.data.gov.uk/id/local-authority/00FC,Place,Economy,Local Transport Plan Schemes,Cap Land/Build-Build Enh Wrk,Cap Land/Build-Build Enh Wrk,YA102,10/13/2014,309403,976.18,CAPITAL,J MCCANN & CO LTD,100841
NORTH EAST LINCOLNSHIRE COUNCIL,http://statistics.data.gov.uk/id/local-authority/00FC,Place,Economy,Local Transport Plan Schemes,Cap Infrastr-Build Enh Wrk,Cap Infrastr-Build Enh Wrk,YC102,10/28/2014,312686,743.68,CAPITAL,P H CONSTRUCTION SERVICES LTD,102107
NORTH EAST LINCOLNSHIRE COUNCIL,http://statistics.data.gov.uk/id/local-authority/00FC,Place,Economy,Local Transport Plan Schemes,Cap Land/Build-Build Enh Wrk,Cap Land/Build-Build Enh Wrk,YA102,10/27/2014,312294,1745,CAPITAL,LOCAL TRANSPORT PROJECTS LTD,121248
NORTH EAST LINCOLNSHIRE COUNCIL,http://statistics.data.gov.uk/id/local-authority/00FC,Place,Economy,Local Transport Plan Schemes,Cap Land/Build-Build Enh Wrk,Cap Land/Build-Build Enh Wrk,YA102,10/23/2014,312113,2550,CAPITAL,LOCAL TRANSPORT PROJECTS LTD,121248
NORTH EAST LINCOLNSHIRE COUNCIL,http://statistics.data.gov.uk/id/local-authority/00FC,Place,Economy,Local Transport Plan Schemes,Cap Land/Build-Build Enh Wrk,Cap Land/Build-Build Enh Wrk,YA102,10/21/2014,311236,5797.68,CAPITAL,J MCCANN & CO LTD,100841
NORTH EAST LINCOLNSHIRE COUNCIL,http://statistics.data.gov.uk/id/local-authority/00FC,Place,Economy,Local Transport Plan Schemes,Cap Land/Build-Build Enh Wrk,Cap Land/Build-Build Enh Wrk,YA102,10/17/2014,309652,6345.82,CAPITAL,C E SMITH & SONS,104444
NORTH EAST LINCOLNSHIRE COUNCIL,http://statistics.data.gov.uk/id/local-authority/00FC,Place,Economy,Local Transport Plan Schemes,Cap Land/Build-Build Enh Wrk,Cap Land/Build-Build Enh Wrk,YA102,10/9/2014,309004,348.21,CAPITAL,NORTHERN POWERGRID (YORKSHIRE) PLC,108328
NORTH EAST LINCOLNSHIRE COUNCIL,http://statistics.data.gov.uk/id/local-authority/00FC,Place,Economy,Local Transport Plan Schemes,Cap Land/Build-Build Enh Wrk,Cap Land/Build-Build Enh Wrk,YA102,10/9/2014,309007,348.21,CAPITAL,NORTHERN POWERGRID (YORKSHIRE) PLC,108328
NORTH EAST LINCOLNSHIRE COUNCIL,http://statistics.data.gov.uk/id/local-authority/00FC,Place,Economy,Local Transport Plan Schemes,Cap Land/Build-Build Enh Wrk,Cap Land/Build-Build Enh Wrk,YA102,10/16/2014,310469,853.53,CAPITAL,NORTHERN POWERGRID (YORKSHIRE) PLC,108328
NORTH EAST LINCOLNSHIRE COUNCIL,http://statistics.data.gov.uk/id/local-authority/00FC,Place,Economy,Local Transport Plan Schemes,Cap Land/Build-Build Enh Wrk,Cap Land/Build-Build Enh Wrk,YA102,10/9/2014,308991,696.42,CAPITAL,NORTHERN POWERGRID (YORKSHIRE) PLC,108328
NORTH EAST LINCOLNSHIRE COUNCIL,http://statistics.data.gov.uk/id/local-authority/00FC,Place,Economy,Local Transport Plan Schemes,Cap Land/Build-Build Enh Wrk,Cap Land/Build-Build Enh Wrk,YA102,10/9/2014,308955,348.21,CAPITAL,NORTHERN POWERGRID (YORKSHIRE) PLC,108328
NORTH EAST LINCOLNSHIRE COUNCIL,http://statistics.data.gov.uk/id/local-authority/00FC,Place,Economy,Local Transport Plan Schemes,Cap Land/Build-Build Enh Wrk,Cap Land/Build-Build Enh Wrk,YA102,10/13/2014,309008,600.87,CAPITAL,NORTHERN POWERGRID (YORKSHIRE) PLC,108328
NORTH EAST LINCOLNSHIRE COUNCIL,http://statistics.data.gov.uk/id/local-authority/00FC,Place,Economy,Local Transport Plan Schemes,Cap Land/Build-Build Enh Wrk,Cap Land/Build-Build Enh Wrk,YA102,10/13/2014,308967,409.09,CAPITAL,NORTHERN POWERGRID (YORKSHIRE) PLC,108328
NORTH EAST LINCOLNSHIRE COUNCIL,http://statistics.data.gov.uk/id/local-authority/00FC,Place,Economy,Local Transport Plan Schemes,Cap Land/Build-Build Enh Wrk,Cap Land/Build-Build Enh Wrk,YA102,10/2/2014,306644,348.21,CAPITAL,NORTHERN POWERGRID (YORKSHIRE) PLC,108328
NORTH EAST LINCOLNSHIRE COUNCIL,http://statistics.data.gov.uk/id/local-authority/00FC,Place,Economy,Local Transport Plan Schemes,Cap Land/Build-Build Enh Wrk,Cap Land/Build-Build Enh Wrk,YA102,10/13/2014,308971,1105.51,CAPITAL,NORTHERN POWERGRID (YORKSHIRE) PLC,108328
NORTH EAST LINCOLNSHIRE COUNCIL,http://statistics.data.gov.uk/id/local-authority/00FC,Place,Economy,Local Transport Plan Schemes,Cap Land/Build-Build Enh Wrk,Cap Land/Build-Build Enh Wrk,YA102,10/2/2014,306621,696.42,CAPITAL,NORTHERN POWERGRID (YORKSHIRE) PLC,108328
NORTH EAST LINCOLNSHIRE COUNCIL,http://statistics.data.gov.uk/id/local-authority/00FC,Place,Economy,Local Transport Plan Schemes,Cap Land/Build-Build Enh Wrk,Cap Land/Build-Build Enh Wrk,YA102,10/2/2014,306624,757.3,CAPITAL,NORTHERN POWERGRID (YORKSHIRE) PLC,108328
NORTH EAST LINCOLNSHIRE COUNCIL,http://statistics.data.gov.uk/id/local-authority/00FC,Place,Economy,Local Transport Plan Schemes,Cap Land/Build-Build Enh Wrk,Cap Land/Build-Build Enh Wrk,YA102,10/13/2014,308957,348.21,CAPITAL,NORTHERN POWERGRID (YORKSHIRE) PLC,108328
NORTH EAST LINCOLNSHIRE COUNCIL,http://statistics.data.gov.uk/id/local-authority/00FC,Place,Economy,Local Transport Plan Schemes,Cap Land/Build-Build Enh Wrk,Cap Land/Build-Build Enh Wrk,YA102,10/13/2014,308988,1584.62,CAPITAL,NORTHERN POWERGRID (YORKSHIRE) PLC,108328
NORTH EAST LINCOLNSHIRE COUNCIL,http://statistics.data.gov.uk/id/local-authority/00FC,Place,Economy,Local Transport Plan Schemes,Cap Land/Build-Build Enh Wrk,Cap Land/Build-Build Enh Wrk,YA102,10/13/2014,308965,1741.05,CAPITAL,NORTHERN POWERGRID (YORKSHIRE) PLC,108328
NORTH EAST LINCOLNSHIRE COUNCIL,http://statistics.data.gov.uk/id/local-authority/00FC,Place,Economy,Local Transport Plan Schemes,Cap Land/Build-Build Enh Wrk,Cap Land/Build-Build Enh Wrk,YA102,10/9/2014,307894,14945.66,CAPITAL,J MCCANN & CO LTD,100841
NORTH EAST LINCOLNSHIRE COUNCIL,http://statistics.data.gov.uk/id/local-authority/00FC,Place,Economy,Local Transport Plan Schemes,Cap Land/Build-Build Enh Wrk,Cap Land/Build-Build Enh Wrk,YA102,10/21/2014,311236,8361.6,CAPITAL,J MCCANN & CO LTD,100841
NORTH EAST LINCOLNSHIRE COUNCIL,http://statistics.data.gov.uk/id/local-authority/00FC,Place,Economy,Local Transport Plan Schemes,Cap Land/Build-Build Enh Wrk,Cap Land/Build-Build Enh Wrk,YA102,10/9/2014,308976,348.21,CAPITAL,NORTHERN POWERGRID (YORKSHIRE) PLC,108328
NORTH EAST LINCOLNSHIRE COUNCIL,http://statistics.data.gov.uk/id/local-authority/00FC,Place,Economy,Local Transport Plan Schemes,Cap Land/Build-Build Enh Wrk,Cap Land/Build-Build Enh Wrk,YA102,10/9/2014,309002,757.3,CAPITAL,NORTHERN POWERGRID (YORKSHIRE) PLC,108328
NORTH EAST LINCOLNSHIRE COUNCIL,http://statistics.data.gov.uk/id/local-authority/00FC,Place,Economy,Local Transport Plan Schemes,Cap Land/Build-Build Enh Wrk,Cap Land/Build-Build Enh Wrk,YA102,10/9/2014,308977,348.21,CAPITAL,NORTHERN POWERGRID (YORKSHIRE) PLC,108328
NORTH EAST LINCOLNSHIRE COUNCIL,http://statistics.data.gov.uk/id/local-authority/00FC,Place,Economy,Local Transport Plan Schemes,Cap Land/Build-Build Enh Wrk,Cap Land/Build-Build Enh Wrk,YA102,10/9/2014,308980,3099.22,CAPITAL,NORTHERN POWERGRID (YORKSHIRE) PLC,108328
NORTH EAST LINCOLNSHIRE COUNCIL,http://statistics.data.gov.uk/id/local-authority/00FC,Place,Economy,Local Transport Plan Schemes,Cap Land/Build-Build Enh Wrk,Cap Land/Build-Build Enh Wrk,YA102,10/9/2014,308969,1801.93,CAPITAL,NORTHERN POWERGRID (YORKSHIRE) PLC,108328
NORTH EAST LINCOLNSHIRE COUNCIL,http://statistics.data.gov.uk/id/local-authority/00FC,Place,Economy,Local Transport Plan Schemes,Cap Land/Build-Build Enh Wrk,Cap Land/Build-Build Enh Wrk,YA102,10/9/2014,308979,409.09,CAPITAL,NORTHERN POWERGRID (YORKSHIRE) PLC,108328
NORTH EAST LINCOLNSHIRE COUNCIL,http://statistics.data.gov.uk/id/local-authority/00FC,Place,Economy,Local Transport Plan Schemes,Cap Land/Build-Build Enh Wrk,Cap Land/Build-Build Enh Wrk,YA102,10/9/2014,308997,348.21,CAPITAL,NORTHERN POWERGRID (YORKSHIRE) PLC,108328
NORTH EAST LINCOLNSHIRE COUNCIL,http://statistics.data.gov.uk/id/local-authority/00FC,Place,Economy,Local Transport Plan Schemes,Cap Land/Build-Build Enh Wrk,Cap Land/Build-Build Enh Wrk,YA102,10/9/2014,308973,1932.83,CAPITAL,NORTHERN POWERGRID (YORKSHIRE) PLC,108328
NORTH EAST LINCOLNSHIRE COUNCIL,http://statistics.data.gov.uk/id/local-authority/00FC,Place,Economy,Local Transport Plan Schemes,Cap Land/Build-Build Enh Wrk,Cap Land/Build-Build Enh Wrk,YA102,10/9/2014,308986,1645.5,CAPITAL,NORTHERN POWERGRID (YORKSHIRE) PLC,108328
NORTH EAST LINCOLNSHIRE COUNCIL,http://statistics.data.gov.uk/id/local-authority/00FC,Place,Economy,Local Transport Plan Schemes,Cap Land/Build-Build Enh Wrk,Cap Land/Build-Build Enh Wrk,YA102,10/9/2014,308999,348.21,CAPITAL,NORTHERN POWERGRID (YORKSHIRE) PLC,108328
NORTH EAST LINCOLNSHIRE COUNCIL,http://statistics.data.gov.uk/id/local-authority/00FC,Place,Economy,Local Transport Plan Schemes,Cap Land/Build-Build Enh Wrk,Cap Land/Build-Build Enh Wrk,YA102,10/9/2014,308993,348.21,CAPITAL,NORTHERN POWERGRID (YORKSHIRE) PLC,108328
NORTH EAST LINCOLNSHIRE COUNCIL,http://statistics.data.gov.uk/id/local-authority/00FC,Place,Economy,Local Transport Plan Schemes,Cap Land/Build-Build Enh Wrk,Cap Land/Build-Build Enh Wrk,YA102,10/9/2014,308963,3421.9,CAPITAL,NORTHERN POWERGRID (YORKSHIRE) PLC,108328
NORTH EAST LINCOLNSHIRE COUNCIL,http://statistics.data.gov.uk/id/local-authority/00FC,Place,Economy,Local Transport Plan Schemes,Cap Land/Build-Build Enh Wrk,Cap Land/Build-Build Enh Wrk,YA102,10/9/2014,308964,348.21,CAPITAL,NORTHERN POWERGRID (YORKSHIRE) PLC,108328
NORTH EAST LINCOLNSHIRE COUNCIL,http://statistics.data.gov.uk/id/local-authority/00FC,Place,Economy,Local Transport Plan Schemes,Cap Land/Build-Build Enh Wrk,Cap Land/Build-Build Enh Wrk,YA102,10/9/2014,308995,1453.72,CAPITAL,NORTHERN POWERGRID (YORKSHIRE) PLC,108328
NORTH EAST LINCOLNSHIRE COUNCIL,http://statistics.data.gov.uk/id/local-authority/00FC,Place,Economy,Local Transport Plan Schemes,Cap Land/Build-Build Enh Wrk,Cap Land/Build-Build Enh Wrk,YA102,10/9/2014,308992,2089.26,CAPITAL,NORTHERN POWERGRID (YORKSHIRE) PLC,108328
NORTH EAST LINCOLNSHIRE COUNCIL,http://statistics.data.gov.uk/id/local-authority/00FC,Place,Economy,Local Transport Plan Schemes,Cap Infrastr-Build Enh Wrk,Cap Infrastr-Build Enh Wrk,YC102,10/28/2014,312685,1800,CAPITAL,P H CONSTRUCTION SERVICES LTD,102107
NORTH EAST LINCOLNSHIRE COUNCIL,http://statistics.data.gov.uk/id/local-authority/00FC,Place,Economy,Local Transport Plan Schemes,Cap Infrastr-Build Enh Wrk,Cap Infrastr-Build Enh Wrk,YC102,10/17/2014,309652,27466.91,CAPITAL,C E SMITH & SONS,104444
NORTH EAST LINCOLNSHIRE COUNCIL,http://statistics.data.gov.uk/id/local-authority/00FC,Place,Economy,Local Transport Plan Schemes,Cap Land/Build-Build Enh Wrk,Cap Land/Build-Build Enh Wrk,YA102,10/6/2014,308457,2890,CAPITAL,B & C TOURER REPAIRS,127469
NORTH EAST LINCOLNSHIRE COUNCIL,http://statistics.data.gov.uk/id/local-authority/00FC,Place,Economy,Local Transport Plan Schemes,Cap Infrastr-Build Enh Wrk,Cap Infrastr-Build Enh Wrk,YC102,10/13/2014,310057,13062.5,CAPITAL,SPECIALIST SURFACING LIMITED,100579
NORTH EAST LINCOLNSHIRE COUNCIL,http://statistics.data.gov.uk/id/local-authority/00FC,Place,Economy,Local Transport Plan Schemes,Cap Infrastr-Build Enh Wrk,Cap Infrastr-Build Enh Wrk,YC102,10/21/2014,311236,1060.84,CAPITAL,J MCCANN & CO LTD,100841
NORTH EAST LINCOLNSHIRE COUNCIL,http://statistics.data.gov.uk/id/local-authority/00FC,Place,Economy,Local Transport Plan Schemes,Cap Infrastr-Build Enh Wrk,Cap Infrastr-Build Enh Wrk,YC102,10/13/2014,310021,199861.4,CAPITAL,KIELY BROS LTD,106644
NORTH EAST LINCOLNSHIRE COUNCIL,http://statistics.data.gov.uk/id/local-authority/00FC,Place,Economy,Local Transport Plan Schemes,Cap Land/Build-Build Enh Wrk,Cap Land/Build-Build Enh Wrk,YA102,10/13/2014,299805,1400,CAPITAL,ADVANTAGE TSC & D LTD,109136
NORTH EAST LINCOLNSHIRE COUNCIL,http://statistics.data.gov.uk/id/local-authority/00FC,Place,Economy,Local Transport Plan Schemes,Cap Land/Build-Build Enh Wrk,Cap Land/Build-Build Enh Wrk,YA102,10/9/2014,306372,2713,CAPITAL,BUCHANAN COMPUTING LTD,119406
NORTH EAST LINCOLNSHIRE COUNCIL,http://statistics.data.gov.uk/id/local-authority/00FC,Place,Economy,Local Transport Plan Schemes,Cap Land/Build-Build Enh Wrk,Cap Land/Build-Build Enh Wrk,YA102,10/30/2014,313872,4504.5,CAPITAL,PELL FRISCHMANN CONSULTANTS,100880
NORTH EAST LINCOLNSHIRE COUNCIL,http://statistics.data.gov.uk/id/local-authority/00FC,Place,Economy,Local Transport Plan Schemes,Cap Land/Build-Build Enh Wrk,Cap Land/Build-Build Enh Wrk,YA102,10/30/2014,314154,547.5,CAPITAL,PELL FRISCHMANN CONSULTANTS,100880
NORTH EAST LINCOLNSHIRE COUNCIL,http://statistics.data.gov.uk/id/local-authority/00FC,Place,Economy,Local Transport Plan Schemes,Cap Land/Build-Build Enh Wrk,Cap Land/Build-Build Enh Wrk,YA102,10/30/2014,313871,1185,CAPITAL,PELL FRISCHMANN CONSULTANTS,100880
NORTH EAST LINCOLNSHIRE COUNCIL,http://statistics.data.gov.uk/id/local-authority/00FC,Place,Economy,Local Transport Plan Schemes,Cap Infrastr-Prof Fees,Cap Infrastr-Prof Fees,YC103,10/2/2014,306050,4950,CAPITAL,BASEPOINT DATA,126127
NORTH EAST LINCOLNSHIRE COUNCIL,http://statistics.data.gov.uk/id/local-authority/00FC,Place,Economy,Local Transport Plan Schemes,Cap Land/Build-Build Enh Wrk,Cap Land/Build-Build Enh Wrk,YA102,10/17/2014,310903,315,CAPITAL,J MCCANN & CO LTD,100841
NORTH EAST LINCOLNSHIRE COUNCIL,http://statistics.data.gov.uk/id/local-authority/00FC,Place,Economy,Local Transport Plan Schemes,Cap Land/Build-Build Enh Wrk,Cap Land/Build-Build Enh Wrk,YA102,10/13/2014,307401,14719.8,CAPITAL,ANDERSON & HEELEY LTD,124668
NORTH EAST LINCOLNSHIRE COUNCIL,http://statistics.data.gov.uk/id/local-authority/00FC,Place,Economy,Local Transport Plan Schemes,Cap Land/Build-Build Enh Wrk,Cap Land/Build-Build Enh Wrk,YA102,10/29/2014,312765,6250,CAPITAL,SPECIALIST SURFACING LIMITED,100579
NORTH EAST LINCOLNSHIRE COUNCIL,http://statistics.data.gov.uk/id/local-authority/00FC,Place,Economy,Local Transport Plan Schemes,Cap Infrastr-Prof Fees,Cap Infrastr-Prof Fees,YC103,10/22/2014,311519,8887.5,CAPITAL,SIAS LIMITED,102445
NORTH EAST LINCOLNSHIRE COUNCIL,http://statistics.data.gov.uk/id/local-authority/00FC,Place,Economy,Freeman Street Regeneration,Cap Invest Prop-Build Enh Wrk,Cap Invest Prop-Build Enh Wrk,YE102,10/16/2014,310423,2500,CAPITAL,PSG INVESTMENTS LTD,127021
NORTH EAST LINCOLNSHIRE COUNCIL,http://statistics.data.gov.uk/id/local-authority/00FC,Place,Economy,Freeman Street Regeneration,Cap Invest Prop-Build Enh Wrk,Cap Invest Prop-Build Enh Wrk,YE102,10/15/2014,310420,2500,CAPITAL,CARLTON EDUCATION LTD,127161
NORTH EAST LINCOLNSHIRE COUNCIL,http://statistics.data.gov.uk/id/local-authority/00FC,Place,Economy,Freeman Street Regeneration,Cap Invest Prop-Build Enh Wrk,Cap Invest Prop-Build Enh Wrk,YE102,10/23/2014,312074,7500,CAPITAL,REDACTED PERSONAL INFORMATION,REDACTED PERSONAL INFORMATION
NORTH EAST LINCOLNSHIRE COUNCIL,http://statistics.data.gov.uk/id/local-authority/00FC,Place,Economy,Freeman Street Regeneration,Cap Invest Prop-Build Enh Wrk,Cap Invest Prop-Build Enh Wrk,YE102,10/23/2014,312075,7500,CAPITAL,REDACTED PERSONAL INFORMATION,REDACTED PERSONAL INFORMATION
NORTH EAST LINCOLNSHIRE COUNCIL,http://statistics.data.gov.uk/id/local-authority/00FC,Place,Economy,Freeman Street Regeneration,Cap Invest Prop-Build Enh Wrk,Cap Invest Prop-Build Enh Wrk,YE102,10/15/2014,310422,2500,CAPITAL,ST JAMES JEWELLERS,127693
NORTH EAST LINCOLNSHIRE COUNCIL,http://statistics.data.gov.uk/id/local-authority/00FC,Place,Economy,Freeman Street Regeneration,Cap Invest Prop-Build Enh Wrk,Cap Invest Prop-Build Enh Wrk,YE102,10/23/2014,312071,4725.94,CAPITAL,REDACTED PERSONAL INFORMATION,REDACTED PERSONAL INFORMATION
NORTH EAST LINCOLNSHIRE COUNCIL,http://statistics.data.gov.uk/id/local-authority/00FC,Place,Economy,Freeman Street Regeneration,Cap Invest Prop-Build Enh Wrk,Cap Invest Prop-Build Enh Wrk,YE102,10/23/2014,312080,7253.17,CAPITAL,REDACTED PERSONAL INFORMATION,REDACTED PERSONAL INFORMATION
NORTH EAST LINCOLNSHIRE COUNCIL,http://statistics.data.gov.uk/id/local-authority/00FC,Place,Economy,Freeman Street Regeneration,Cap Invest Prop-Build Enh Wrk,Cap Invest Prop-Build Enh Wrk,YE102,10/28/2014,313786,2144.25,CAPITAL,AGE UK NORTH EAST LINCOLNSHIRE,113772
NORTH EAST LINCOLNSHIRE COUNCIL,http://statistics.data.gov.uk/id/local-authority/00FC,Place,Economy,Freeman Street Regeneration,Cap Invest Prop-Build Enh Wrk,Cap Invest Prop-Build Enh Wrk,YE102,10/23/2014,312081,2500,CAPITAL,REDACTED PERSONAL INFORMATION,REDACTED PERSONAL INFORMATION
NORTH EAST LINCOLNSHIRE COUNCIL,http://statistics.data.gov.uk/id/local-authority/00FC,Place,Economy,Freeman Street Regeneration,Cap Invest Prop-Build Enh Wrk,Cap Invest Prop-Build Enh Wrk,YE102,10/23/2014,312079,2500,CAPITAL,REDACTED PERSONAL INFORMATION,REDACTED PERSONAL INFORMATION
NORTH EAST LINCOLNSHIRE COUNCIL,http://statistics.data.gov.uk/id/local-authority/00FC,Place,Economy,Freeman Street Regeneration,Cap Invest Prop-Build Enh Wrk,Cap Invest Prop-Build Enh Wrk,YE102,10/1/2014,306390,7500,CAPITAL,CITY CHURCH (GRIMSBY & NE LINCS) WIZ-KIDZ NUR,125813
NORTH EAST LINCOLNSHIRE COUNCIL,http://statistics.data.gov.uk/id/local-authority/00FC,Place,Economy,Freeman Street Regeneration,Cap Invest Prop-Build Enh Wrk,Cap Invest Prop-Build Enh Wrk,YE102,10/23/2014,312076,2500,CAPITAL,REDACTED PERSONAL INFORMATION,REDACTED PERSONAL INFORMATION
NORTH EAST LINCOLNSHIRE COUNCIL,http://statistics.data.gov.uk/id/local-authority/00FC,Place,Economy,Freeman Street Regeneration,Cap Invest Prop-Build Enh Wrk,Cap Invest Prop-Build Enh Wrk,YE102,10/23/2014,312077,2500,CAPITAL,REDACTED PERSONAL INFORMATION,REDACTED PERSONAL INFORMATION
NORTH EAST LINCOLNSHIRE COUNCIL,http://statistics.data.gov.uk/id/local-authority/00FC,Place,Economy,Housing Assist Grants And Loan,Cap Grants To O/Side Sources,Cap Grants To O/Side Sources,YJ101,10/24/2014,312340,5868,CAPITAL,M J QUICKFALL,102499
NORTH EAST LINCOLNSHIRE COUNCIL,http://statistics.data.gov.uk/id/local-authority/00FC,Place,Economy,Housing Assist Grants And Loan,Cap Grants To O/Side Sources,Cap Grants To O/Side Sources,YJ101,10/16/2014,310386,7521.25,CAPITAL,M J QUICKFALL,102499
NORTH EAST LINCOLNSHIRE COUNCIL,http://statistics.data.gov.uk/id/local-authority/00FC,Place,Economy,Housing Assist Grants And Loan,Cap Grants To O/Side Sources,Cap Grants To O/Side Sources,YJ101,10/28/2014,313439,4472.5,CAPITAL,M J QUICKFALL,102499
NORTH EAST LINCOLNSHIRE COUNCIL,http://statistics.data.gov.uk/id/local-authority/00FC,Place,Economy,Housing Assist Grants And Loan,Cap Grants To O/Side Sources,Cap Grants To O/Side Sources,YJ101,10/16/2014,310387,1651.2,CAPITAL,D THORPE PLUMBING & HEATING SERVICES,118800
NORTH EAST LINCOLNSHIRE COUNCIL,http://statistics.data.gov.uk/id/local-authority/00FC,Place,Economy,Housing Assist Grants And Loan,Cap Grants To O/Side Sources,Cap Grants To O/Side Sources,YJ101,10/16/2014,310388,3318,CAPITAL,D THORPE PLUMBING & HEATING SERVICES,118800
NORTH EAST LINCOLNSHIRE COUNCIL,http://statistics.data.gov.uk/id/local-authority/00FC,Place,Economy,Housing Assist Grants And Loan,Cap Grants To O/Side Sources,Cap Grants To O/Side Sources,YJ101,10/9/2014,308584,5815,CAPITAL,VIC HANSEN BUILDING & JOINERY LTD,103981
NORTH EAST LINCOLNSHIRE COUNCIL,http://statistics.data.gov.uk/id/local-authority/00FC,Place,Economy,Housing Assist Grants And Loan,Cap Grants To O/Side Sources,Cap Grants To O/Side Sources,YJ101,10/21/2014,311206,10933.33,CAPITAL,M. R. M. PLUMBING & HEATING,127973
NORTH EAST LINCOLNSHIRE COUNCIL,http://statistics.data.gov.uk/id/local-authority/00FC,Place,Economy,Housing Assist Grants And Loan,Cap Grants To O/Side Sources,Cap Grants To O/Side Sources,YJ101,10/23/2014,312099,3336,CAPITAL,D THORPE PLUMBING & HEATING SERVICES,118800
NORTH EAST LINCOLNSHIRE COUNCIL,http://statistics.data.gov.uk/id/local-authority/00FC,Place,Economy,Housing Assist Grants And Loan,Cap Grants To O/Side Sources,Cap Grants To O/Side Sources,YJ101,10/28/2014,312775,10933.33,CAPITAL,JEFF MARGARSON & SONS LTD,103542
NORTH EAST LINCOLNSHIRE COUNCIL,http://statistics.data.gov.uk/id/local-authority/00FC,Place,Economy,Housing Assist Grants And Loan,Cap Grants To O/Side Sources,Cap Grants To O/Side Sources,YJ101,10/16/2014,310003,10933.33,CAPITAL,VALAM BUILDERS LTD,100566
NORTH EAST LINCOLNSHIRE COUNCIL,http://statistics.data.gov.uk/id/local-authority/00FC,Place,Economy,Housing Assist Grants And Loan,Cap Grants To O/Side Sources,Cap Grants To O/Side Sources,YJ101,10/28/2014,312642,12767.25,CAPITAL,PAULA TOMLIN-KENT,126751
NORTH EAST LINCOLNSHIRE COUNCIL,http://statistics.data.gov.uk/id/local-authority/00FC,Place,Economy,Derelict Land & Comm Prop,Cap Grants To O/Side Sources,Cap Grants To O/Side Sources,YJ101,10/21/2014,311505,262.08,CAPITAL,CLEETHORPES CHRONICLE,102013
NORTH EAST LINCOLNSHIRE COUNCIL,http://statistics.data.gov.uk/id/local-authority/00FC,Place,Economy,Derelict Land & Comm Prop,Cap Grants To O/Side Sources,Cap Grants To O/Side Sources,YJ101,10/21/2014,311506,262.08,CAPITAL,CLEETHORPES CHRONICLE,102013
NORTH EAST LINCOLNSHIRE COUNCIL,http://statistics.data.gov.uk/id/local-authority/00FC,Place,Economy,Local Sustainable Trans Fund,Cap Infrastr-Build Enh Wrk,Cap Infrastr-Build Enh Wrk,YC102,10/21/2014,310931,1345,CAPITAL,P H CONSTRUCTION SERVICES LTD,102107
NORTH EAST LINCOLNSHIRE COUNCIL,http://statistics.data.gov.uk/id/local-authority/00FC,Place,Economy,Street Light Low Energy Scheme,Cap Land/Build-Build Enh Wrk,Cap Land/Build-Build Enh Wrk,YA102,10/6/2014,308365,79288.56,CAPITAL,J MCCANN & CO LTD,100841
NORTH EAST LINCOLNSHIRE COUNCIL,http://statistics.data.gov.uk/id/local-authority/00FC,Place,Economy,Street Light Low Energy Scheme,Cap Land/Build-Build Enh Wrk,Cap Land/Build-Build Enh Wrk,YA102,10/9/2014,309034,757.3,CAPITAL,NORTHERN POWERGRID (YORKSHIRE) PLC,108328
NORTH EAST LINCOLNSHIRE COUNCIL,http://statistics.data.gov.uk/id/local-authority/00FC,Place,Economy,Street Light Low Energy Scheme,Cap Land/Build-Build Enh Wrk,Cap Land/Build-Build Enh Wrk,YA102,10/9/2014,309006,409.09,CAPITAL,NORTHERN POWERGRID (YORKSHIRE) PLC,108328
NORTH EAST LINCOLNSHIRE COUNCIL,http://statistics.data.gov.uk/id/local-authority/00FC,Place,Economy,Street Light Low Energy Scheme,Cap Land/Build-Build Enh Wrk,Cap Land/Build-Build Enh Wrk,YA102,10/23/2014,311162,92803.36,CAPITAL,J MCCANN & CO LTD,100841
NORTH EAST LINCOLNSHIRE COUNCIL,http://statistics.data.gov.uk/id/local-authority/00FC,Place,Economy,Street Light Low Energy Scheme,Cap Land/Build-Build Enh Wrk,Cap Land/Build-Build Enh Wrk,YA102,10/7/2014,307744,120445.94,CAPITAL,J MCCANN & CO LTD,100841
NORTH EAST LINCOLNSHIRE COUNCIL,http://statistics.data.gov.uk/id/local-authority/00FC,Place,Economy,Street Light Low Energy Scheme,Cap Land/Build-Build Enh Wrk,Cap Land/Build-Build Enh Wrk,YA102,10/2/2014,306610,1079.98,CAPITAL,NORTHERN POWERGRID (YORKSHIRE) PLC,108328
NORTH EAST LINCOLNSHIRE COUNCIL,http://statistics.data.gov.uk/id/local-authority/00FC,Place,Economy,Street Light Low Energy Scheme,Cap Land/Build-Build Enh Wrk,Cap Land/Build-Build Enh Wrk,YA102,10/2/2014,306617,1044.63,CAPITAL,NORTHERN POWERGRID (YORKSHIRE) PLC,108328
NORTH EAST LINCOLNSHIRE COUNCIL,http://statistics.data.gov.uk/id/local-authority/00FC,Place,Economy,Street Light Low Energy Scheme,Cap Land/Build-Build Enh Wrk,Cap Land/Build-Build Enh Wrk,YA102,10/2/2014,306619,696.42,CAPITAL,NORTHERN POWERGRID (YORKSHIRE) PLC,108328
NORTH EAST LINCOLNSHIRE COUNCIL,http://statistics.data.gov.uk/id/local-authority/00FC,Place,Economy,Street Light Low Energy Scheme,Cap Land/Build-Build Enh Wrk,Cap Land/Build-Build Enh Wrk,YA102,10/13/2014,308982,1044.63,CAPITAL,NORTHERN POWERGRID (YORKSHIRE) PLC,108328
NORTH EAST LINCOLNSHIRE COUNCIL,http://statistics.data.gov.uk/id/local-authority/00FC,Place,Economy,Street Light Low Energy Scheme,Cap Land/Build-Build Enh Wrk,Cap Land/Build-Build Enh Wrk,YA102,10/2/2014,306620,348.21,CAPITAL,NORTHERN POWERGRID (YORKSHIRE) PLC,108328
NORTH EAST LINCOLNSHIRE COUNCIL,http://statistics.data.gov.uk/id/local-authority/00FC,Place,Economy,Street Light Low Energy Scheme,Cap Land/Build-Build Enh Wrk,Cap Land/Build-Build Enh Wrk,YA102,10/2/2014,306622,348.21,CAPITAL,NORTHERN POWERGRID (YORKSHIRE) PLC,108328
NORTH EAST LINCOLNSHIRE COUNCIL,http://statistics.data.gov.uk/id/local-authority/00FC,Place,Economy,Street Light Low Energy Scheme,Cap Land/Build-Build Enh Wrk,Cap Land/Build-Build Enh Wrk,YA102,10/13/2014,309001,1044.63,CAPITAL,NORTHERN POWERGRID (YORKSHIRE) PLC,108328
NORTH EAST LINCOLNSHIRE COUNCIL,http://statistics.data.gov.uk/id/local-authority/00FC,Place,Economy,Street Light Low Energy Scheme,Cap Land/Build-Build Enh Wrk,Cap Land/Build-Build Enh Wrk,YA102,10/2/2014,306623,348.21,CAPITAL,NORTHERN POWERGRID (YORKSHIRE) PLC,108328
NORTH EAST LINCOLNSHIRE COUNCIL,http://statistics.data.gov.uk/id/local-authority/00FC,Place,Economy,Street Light Low Energy Scheme,Cap Land/Build-Build Enh Wrk,Cap Land/Build-Build Enh Wrk,YA102,10/9/2014,309010,409.09,CAPITAL,NORTHERN POWERGRID (YORKSHIRE) PLC,108328
NORTH EAST LINCOLNSHIRE COUNCIL,http://statistics.data.gov.uk/id/local-authority/00FC,Place,Economy,Street Light Low Energy Scheme,Cap Land/Build-Build Enh Wrk,Cap Land/Build-Build Enh Wrk,YA102,10/9/2014,309009,2699.95,CAPITAL,NORTHERN POWERGRID (YORKSHIRE) PLC,108328
NORTH EAST LINCOLNSHIRE COUNCIL,http://statistics.data.gov.uk/id/local-authority/00FC,Place,Economy,Street Light Low Energy Scheme,Cap Land/Build-Build Enh Wrk,Cap Land/Build-Build Enh Wrk,YA102,10/9/2014,308970,696.42,CAPITAL,NORTHERN POWERGRID (YORKSHIRE) PLC,108328
NORTH EAST LINCOLNSHIRE COUNCIL,http://statistics.data.gov.uk/id/local-authority/00FC,Place,Economy,Street Light Low Energy Scheme,Cap Land/Build-Build Enh Wrk,Cap Land/Build-Build Enh Wrk,YA102,10/9/2014,309000,1392.84,CAPITAL,NORTHERN POWERGRID (YORKSHIRE) PLC,108328
NORTH EAST LINCOLNSHIRE COUNCIL,http://statistics.data.gov.uk/id/local-authority/00FC,Place,Economy,Street Light Low Energy Scheme,Cap Land/Build-Build Enh Wrk,Cap Land/Build-Build Enh Wrk,YA102,10/9/2014,308987,1044.63,CAPITAL,NORTHERN POWERGRID (YORKSHIRE) PLC,108328
NORTH EAST LINCOLNSHIRE COUNCIL,http://statistics.data.gov.uk/id/local-authority/00FC,Place,Economy,Street Light Low Energy Scheme,Cap Land/Build-Build Enh Wrk,Cap Land/Build-Build Enh Wrk,YA102,10/9/2014,308978,1236.41,CAPITAL,NORTHERN POWERGRID (YORKSHIRE) PLC,108328
NORTH EAST LINCOLNSHIRE COUNCIL,http://statistics.data.gov.uk/id/local-authority/00FC,Place,Economy,Street Light Low Energy Scheme,Cap Land/Build-Build Enh Wrk,Cap Land/Build-Build Enh Wrk,YA102,10/9/2014,308994,1923.69,CAPITAL,NORTHERN POWERGRID (YORKSHIRE) PLC,108328
NORTH EAST LINCOLNSHIRE COUNCIL,http://statistics.data.gov.uk/id/local-authority/00FC,Place,Economy,Street Light Low Energy Scheme,Cap Land/Build-Build Enh Wrk,Cap Land/Build-Build Enh Wrk,YA102,10/9/2014,308998,1044.63,CAPITAL,NORTHERN POWERGRID (YORKSHIRE) PLC,108328
NORTH EAST LINCOLNSHIRE COUNCIL,http://statistics.data.gov.uk/id/local-authority/00FC,Place,Economy,Street Light Low Energy Scheme,Cap Land/Build-Build Enh Wrk,Cap Land/Build-Build Enh Wrk,YA102,10/9/2014,308953,348.21,CAPITAL,NORTHERN POWERGRID (YORKSHIRE) PLC,108328
NORTH EAST LINCOLNSHIRE COUNCIL,http://statistics.data.gov.uk/id/local-authority/00FC,Place,Economy,Street Light Low Energy Scheme,Cap Land/Build-Build Enh Wrk,Cap Land/Build-Build Enh Wrk,YA102,10/9/2014,308975,696.42,CAPITAL,NORTHERN POWERGRID (YORKSHIRE) PLC,108328
NORTH EAST LINCOLNSHIRE COUNCIL,http://statistics.data.gov.uk/id/local-authority/00FC,Place,Economy,Street Light Low Energy Scheme,Cap Land/Build-Build Enh Wrk,Cap Land/Build-Build Enh Wrk,YA102,10/9/2014,308974,696.42,CAPITAL,NORTHERN POWERGRID (YORKSHIRE) PLC,108328
NORTH EAST LINCOLNSHIRE COUNCIL,http://statistics.data.gov.uk/id/local-authority/00FC,Place,Economy,Street Light Low Energy Scheme,Cap Land/Build-Build Enh Wrk,Cap Land/Build-Build Enh Wrk,YA102,10/9/2014,308996,696.42,CAPITAL,NORTHERN POWERGRID (YORKSHIRE) PLC,108328
NORTH EAST LINCOLNSHIRE COUNCIL,http://statistics.data.gov.uk/id/local-authority/00FC,Place,Economy,Street Light Low Energy Scheme,Cap Land/Build-Build Enh Wrk,Cap Land/Build-Build Enh Wrk,YA102,10/9/2014,308983,348.21,CAPITAL,NORTHERN POWERGRID (YORKSHIRE) PLC,108328
NORTH EAST LINCOLNSHIRE COUNCIL,http://statistics.data.gov.uk/id/local-authority/00FC,Place,Economy,Street Light Low Energy Scheme,Cap Land/Build-Build Enh Wrk,Cap Land/Build-Build Enh Wrk,YA102,10/9/2014,308968,1392.84,CAPITAL,NORTHERN POWERGRID (YORKSHIRE) PLC,108328
NORTH EAST LINCOLNSHIRE COUNCIL,http://statistics.data.gov.uk/id/local-authority/00FC,Place,Economy,Cartergate Development,Cap Infrastr-Build Enh Wrk,Cap Infrastr-Build Enh Wrk,YC102,10/15/2014,309372,501.12,CAPITAL,J MCCANN & CO LTD,100841
NORTH EAST LINCOLNSHIRE COUNCIL,http://statistics.data.gov.uk/id/local-authority/00FC,Place,Economy,Cartergate Development,Cap Infrastr-Build Enh Wrk,Cap Infrastr-Build Enh Wrk,YC102,10/16/2014,309012,2725,CAPITAL,CLUGSTON SURVEY SERVICES,105668
NORTH EAST LINCOLNSHIRE COUNCIL,http://statistics.data.gov.uk/id/local-authority/00FC,Place,Economy,Pinchpoint Scheme,Cap Land/Build-Build Enh Wrk,Cap Land/Build-Build Enh Wrk,YA102,10/21/2014,311236,5609.21,CAPITAL,J MCCANN & CO LTD,100841
NORTH EAST LINCOLNSHIRE COUNCIL,http://statistics.data.gov.uk/id/local-authority/00FC,Place,Economy,Pinchpoint Scheme,Cap Land/Build-Build Enh Wrk,Cap Land/Build-Build Enh Wrk,YA102,10/9/2014,307894,3641.54,CAPITAL,J MCCANN & CO LTD,100841
NORTH EAST LINCOLNSHIRE COUNCIL,http://statistics.data.gov.uk/id/local-authority/00FC,Place,Economy,Pinchpoint Scheme,Cap Land/Build-Build Enh Wrk,Cap Land/Build-Build Enh Wrk,YA102,10/29/2014,313146,182172.77,CAPITAL,VOLKERLASER LTD,126094
NORTH EAST LINCOLNSHIRE COUNCIL,http://statistics.data.gov.uk/id/local-authority/00FC,Place,Economy,Pinchpoint Scheme,Cap Land/Build-Build Enh Wrk,Cap Land/Build-Build Enh Wrk,YA102,10/13/2014,309371,260,CAPITAL,J MCCANN & CO LTD,100841
NORTH EAST LINCOLNSHIRE COUNCIL,http://statistics.data.gov.uk/id/local-authority/00FC,Place,Economy,Pinchpoint Scheme,Cap Land/Build-Build Enh Wrk,Cap Land/Build-Build Enh Wrk,YA102,10/21/2014,310934,251.77,CAPITAL,TRUSTMARQUE SOLUTIONS LTD,101275
NORTH EAST LINCOLNSHIRE COUNCIL,http://statistics.data.gov.uk/id/local-authority/00FC,Place,Economy,Pinchpoint Scheme,Cap Land/Build-Build Enh Wrk,Cap Land/Build-Build Enh Wrk,YA102,10/1/2014,305860,9977.3,CAPITAL,P H CONSTRUCTION SERVICES LTD,102107
NORTH EAST LINCOLNSHIRE COUNCIL,http://statistics.data.gov.uk/id/local-authority/00FC,Place,Economy,Pinchpoint Scheme,Cap Land/Build-Build Enh Wrk,Cap Land/Build-Build Enh Wrk,YA102,10/28/2014,312597,1250,CAPITAL,LOCAL TRANSPORT PROJECTS LTD,121248
NORTH EAST LINCOLNSHIRE COUNCIL,http://statistics.data.gov.uk/id/local-authority/00FC,Place,Culture Leisure And Sport,Leisure/Library - Library,Cap Land/Build-Build Enh Wrk,Cap Land/Build-Build Enh Wrk,YA102,10/30/2014,314168,7780.44,CAPITAL,LINDUM GROUP LIMITED,101185
NORTH EAST LINCOLNSHIRE COUNCIL,http://statistics.data.gov.uk/id/local-authority/00FC,Place,Culture Leisure And Sport,New Leisure Centre At Grimsby,Cap Land/Build-Build Enh Wrk,Cap Land/Build-Build Enh Wrk,YA102,10/30/2014,313644,196470.59,CAPITAL,INTERSERVE CONSTRUCTION,128140
NORTH EAST LINCOLNSHIRE COUNCIL,http://statistics.data.gov.uk/id/local-authority/00FC,Place,Culture Leisure And Sport,New Leisure Centre At Grimsby,Cap Land/Build-Build Enh Wrk,Cap Land/Build-Build Enh Wrk,YA102,10/21/2014,311220,8933.01,CAPITAL,TOPCON CONSTRUCTION LTD,108462
NORTH EAST LINCOLNSHIRE COUNCIL,http://statistics.data.gov.uk/id/local-authority/00FC,Place,Culture Leisure And Sport,New Leisure Centre At Grimsby,Cap Land/Build-Build Enh Wrk,Cap Land/Build-Build Enh Wrk,YA102,10/21/2014,311209,3720,CAPITAL,PMC SAFETY NETTING LTD,109192
NORTH EAST LINCOLNSHIRE COUNCIL,http://statistics.data.gov.uk/id/local-authority/00FC,Place,Culture Leisure And Sport,Cleethorpes Leis Cent Refurb,Cap Land/Build-Build Enh Wrk,Cap Land/Build-Build Enh Wrk,YA102,10/2/2014,307627,715,CAPITAL,DEVIN CONSULTING LTD,122686
NORTH EAST LINCOLNSHIRE COUNCIL,http://statistics.data.gov.uk/id/local-authority/00FC,Place,Assets,Backlog Maintenance,Cap Land/Build-Build Enh Wrk,Cap Land/Build-Build Enh Wrk,YA102,10/2/2014,307560,384,CAPITAL,REDHILL ANALYSTS LTD,109169
NORTH EAST LINCOLNSHIRE COUNCIL,http://statistics.data.gov.uk/id/local-authority/00FC,Place,Assets,Backlog Maintenance,Cap Land/Build-Build Enh Wrk,Cap Land/Build-Build Enh Wrk,YA102,10/23/2014,311598,1050,CAPITAL,LINCS ELECTRICAL SERVICES LTD,102044
NORTH EAST LINCOLNSHIRE COUNCIL,http://statistics.data.gov.uk/id/local-authority/00FC,Place,Assets,Backlog Maintenance,Cap Land/Build-Build Enh Wrk,Cap Land/Build-Build Enh Wrk,YA102,10/23/2014,311597,2855,CAPITAL,MANTA BRC LTD,102230
NORTH EAST LINCOLNSHIRE COUNCIL,http://statistics.data.gov.uk/id/local-authority/00FC,Place,Assets,Backlog Maintenance,Cap Land/Build-Build Enh Wrk,Cap Land/Build-Build Enh Wrk,YA102,10/30/2014,313281,650,CAPITAL,COFELY WORKPLACE LIMITED,123983
NORTH EAST LINCOLNSHIRE COUNCIL,http://statistics.data.gov.uk/id/local-authority/00FC,Place,Assets,Backlog Maintenance,Cap Land/Build-Build Enh Wrk,Cap Land/Build-Build Enh Wrk,YA102,10/30/2014,313826,484,CAPITAL,HAMWORTHY HEATING LIMITED,107812
NORTH EAST LINCOLNSHIRE COUNCIL,http://statistics.data.gov.uk/id/local-authority/00FC,Place,Assets,Property Rationalisation Prog,Cap Land/Build-Build Enh Wrk,Cap Land/Build-Build Enh Wrk,YA102,10/13/2014,310318,444.31,CAPITAL,BELL WASTE CONTROL,101433
NORTH EAST LINCOLNSHIRE COUNCIL,http://statistics.data.gov.uk/id/local-authority/00FC,Place,Assets,Property Rationalisation Prog,Cap Infrastr-Purchase,Cap Infrastr-Purchase,YC101,10/27/2014,296257,293.02,CAPITAL,COMPUTACENTER UK LTD,101303
NORTH EAST LINCOLNSHIRE COUNCIL,http://statistics.data.gov.uk/id/local-authority/00FC,Place,Assets,Property Rationalisation Prog,Cap Infrastr-Purchase,Cap Infrastr-Purchase,YC101,10/15/2014,291027,444.42,CAPITAL,INSIGHT DIRECT (UK) LTD,101011
NORTH EAST LINCOLNSHIRE COUNCIL,http://statistics.data.gov.uk/id/local-authority/00FC,Place,Assets,Property Rationalisation Prog,Cap Infrastr-Purchase,Cap Infrastr-Purchase,YC101,10/2/2014,304940,411,CAPITAL,SAFE CONTROL LTD,100989
NORTH EAST LINCOLNSHIRE COUNCIL,http://statistics.data.gov.uk/id/local-authority/00FC,Place,Assets,Property Rationalisation Prog,Cap Infrastr-Purchase,Cap Infrastr-Purchase,YC101,10/29/2014,314174,1556,CAPITAL,VIRGIN MEDIA,107612
NORTH EAST LINCOLNSHIRE COUNCIL,http://statistics.data.gov.uk/id/local-authority/00FC,Place,Assets,Property Rationalisation Prog,Cap Land/Build-Build Enh Wrk,Cap Land/Build-Build Enh Wrk,YA102,10/9/2014,308956,1529,CAPITAL,NEWGLAZE,100642
NORTH EAST LINCOLNSHIRE COUNCIL,http://statistics.data.gov.uk/id/local-authority/00FC,Place,Assets,Property Rationalisation Prog,Cap Infrastr-Purchase,Cap Infrastr-Purchase,YC101,10/29/2014,314174,3458,CAPITAL,VIRGIN MEDIA,107612
NORTH EAST LINCOLNSHIRE COUNCIL,http://statistics.data.gov.uk/id/local-authority/00FC,Place,Assets,Property Rationalisation Prog,Cap Infrastr-Purchase,Cap Infrastr-Purchase,YC101,10/27/2014,296250,334.88,CAPITAL,COMPUTACENTER UK LTD,101303
NORTH EAST LINCOLNSHIRE COUNCIL,http://statistics.data.gov.uk/id/local-authority/00FC,Place,Assets,Property Rationalisation Prog,Cap Infrastr-Purchase,Cap Infrastr-Purchase,YC101,10/27/2014,312146,-44.94,CAPITAL,INSIGHT DIRECT (UK) LTD,101011
NORTH EAST LINCOLNSHIRE COUNCIL,http://statistics.data.gov.uk/id/local-authority/00FC,Place,Assets,Property Rationalisation Prog,Cap Land/Build-Build Enh Wrk,Cap Land/Build-Build Enh Wrk,YA102,10/23/2014,311658,2660,CAPITAL,HAITHS HEATING LTD,101342
NORTH EAST LINCOLNSHIRE COUNCIL,http://statistics.data.gov.uk/id/local-authority/00FC,Place,Assets,Property Rationalisation Prog,Cap Land/Build-Build Enh Wrk,Cap Land/Build-Build Enh Wrk,YA102,10/27/2014,312743,3300,CAPITAL,LINCS ELECTRICAL SERVICES LTD,102044
NORTH EAST LINCOLNSHIRE COUNCIL,http://statistics.data.gov.uk/id/local-authority/00FC,Place,Assets,Property Rationalisation Prog,Cap Land/Build-Build Enh Wrk,Cap Land/Build-Build Enh Wrk,YA102,10/23/2014,312014,1227,CAPITAL,W R CULLUM,100811
NORTH EAST LINCOLNSHIRE COUNCIL,http://statistics.data.gov.uk/id/local-authority/00FC,Place,Assets,Property Rationalisation Prog,Cap Land/Build-Build Enh Wrk,Cap Land/Build-Build Enh Wrk,YA102,10/27/2014,312026,565,CAPITAL,W R CULLUM,100811
NORTH EAST LINCOLNSHIRE COUNCIL,http://statistics.data.gov.uk/id/local-authority/00FC,Place,Assets,Property Rationalisation Prog,Cap Infrastr-Build Enh Wrk,Cap Infrastr-Build Enh Wrk,YC102,10/7/2014,308663,528,CAPITAL,W R CULLUM,100811
NORTH EAST LINCOLNSHIRE COUNCIL,http://statistics.data.gov.uk/id/local-authority/00FC,Place,Assets,Property Rationalisation Prog,Cap Infrastr-Build Enh Wrk,Cap Infrastr-Build Enh Wrk,YC102,10/7/2014,308667,475,CAPITAL,W R CULLUM,100811
NORTH EAST LINCOLNSHIRE COUNCIL,http://statistics.data.gov.uk/id/local-authority/00FC,Place,Assets,Property Rationalisation Prog,Cap Infrastr-Build Enh Wrk,Cap Infrastr-Build Enh Wrk,YC102,10/7/2014,308661,433,CAPITAL,W R CULLUM,100811
NORTH EAST LINCOLNSHIRE COUNCIL,http://statistics.data.gov.uk/id/local-authority/00FC,Place,Assets,Property Rationalisation Prog,Cap Infrastr-Build Enh Wrk,Cap Infrastr-Build Enh Wrk,YC102,10/7/2014,308668,680,CAPITAL,W R CULLUM,100811
NORTH EAST LINCOLNSHIRE COUNCIL,http://statistics.data.gov.uk/id/local-authority/00FC,Place,Assets,Property Rationalisation Prog,Cap Infrastr-Build Enh Wrk,Cap Infrastr-Build Enh Wrk,YC102,10/7/2014,307934,652,CAPITAL,W R CULLUM,100811
NORTH EAST LINCOLNSHIRE COUNCIL,http://statistics.data.gov.uk/id/local-authority/00FC,Place,Assets,Property Rationalisation Prog,Cap Land/Build-Build Enh Wrk,Cap Land/Build-Build Enh Wrk,YA102,10/30/2014,313316,286,CAPITAL,HAITHS HEATING LTD,101342
NORTH EAST LINCOLNSHIRE COUNCIL,http://statistics.data.gov.uk/id/local-authority/00FC,Place,Assets,Property Rationalisation Prog,Cap Land/Build-Build Enh Wrk,Cap Land/Build-Build Enh Wrk,YA102,10/23/2014,311659,579,CAPITAL,FUTURE CLEANING SERVICES LTD,102557
NORTH EAST LINCOLNSHIRE COUNCIL,http://statistics.data.gov.uk/id/local-authority/00FC,Place,Assets,Property Rationalisation Prog,Cap Land/Build-Build Enh Wrk,Cap Land/Build-Build Enh Wrk,YA102,10/28/2014,312736,7012.13,CAPITAL,HAITHS HEATING LTD,101342
NORTH EAST LINCOLNSHIRE COUNCIL,http://statistics.data.gov.uk/id/local-authority/00FC,Place,Assets,Property Rationalisation Prog,Cap Land/Build-Build Enh Wrk,Cap Land/Build-Build Enh Wrk,YA102,10/2/2014,307742,105347.73,CAPITAL,MANTA BRC LTD,102230
NORTH EAST LINCOLNSHIRE COUNCIL,http://statistics.data.gov.uk/id/local-authority/00FC,Place,Assets,Property Rationalisation Prog,Cap Land/Build-Build Enh Wrk,Cap Land/Build-Build Enh Wrk,YA102,10/27/2014,313019,35778.38,CAPITAL,MANTA BRC LTD,102230
NORTH EAST LINCOLNSHIRE COUNCIL,http://statistics.data.gov.uk/id/local-authority/00FC,Place,Assets,Property Rationalisation Prog,Cap Infrastr-Purchase,Cap Infrastr-Purchase,YC101,10/27/2014,297563,376.74,CAPITAL,COMPUTACENTER UK LTD,101303
NORTH EAST LINCOLNSHIRE COUNCIL,http://statistics.data.gov.uk/id/local-authority/00FC,Place,Assets,Property Rationalisation Prog,Cap Infrastr-Build Enh Wrk,Cap Infrastr-Build Enh Wrk,YC102,10/7/2014,308665,1560,CAPITAL,W R CULLUM,100811
NORTH EAST LINCOLNSHIRE COUNCIL,http://statistics.data.gov.uk/id/local-authority/00FC,Place,Assets,Property Rationalisation Prog,Cap Infrastr-Build Enh Wrk,Cap Infrastr-Build Enh Wrk,YC102,10/2/2014,298763,790.9,CAPITAL,SAFE CONTROL LTD,100989
NORTH EAST LINCOLNSHIRE COUNCIL,http://statistics.data.gov.uk/id/local-authority/00FC,Place,Assets,Property Rationalisation Prog,Cap Infrastr-Build Enh Wrk,Cap Infrastr-Build Enh Wrk,YC102,10/23/2014,312544,1875.6,CAPITAL,W R CULLUM,100811
NORTH EAST LINCOLNSHIRE COUNCIL,http://statistics.data.gov.uk/id/local-authority/00FC,Place,Assets,Property Rationalisation Prog,Cap Infrastr-Purchase,Cap Infrastr-Purchase,YC101,10/27/2014,312092,593,CAPITAL,SAFE CONTROL LTD,100989
NORTH EAST LINCOLNSHIRE COUNCIL,http://statistics.data.gov.uk/id/local-authority/00FC,Place,Assets,Property Rationalisation Prog,Cap Land/Build-Build Enh Wrk,Cap Land/Build-Build Enh Wrk,YA102,10/28/2014,313245,9000,CAPITAL,COFELY WORKPLACE LIMITED,123983
NORTH EAST LINCOLNSHIRE COUNCIL,http://statistics.data.gov.uk/id/local-authority/00FC,Place,Assets,Depot Investment,Cap Land/Build-Build Enh Wrk,Cap Land/Build-Build Enh Wrk,YA102,10/23/2014,311596,1510.74,CAPITAL,RIGGOTT & CO LTD,104915
NORTH EAST LINCOLNSHIRE COUNCIL,http://statistics.data.gov.uk/id/local-authority/00FC,Public Health,Public Health,Director Public Health,Indirect Employee Expenses,Staff Advertising,EB113,10/14/2014,309022,1660,REVENUE,GATENBYSANDERSON LTD,104473
NORTH EAST LINCOLNSHIRE COUNCIL,http://statistics.data.gov.uk/id/local-authority/00FC,Public Health,Public Health,Director Public Health,Indirect Employee Expenses,Staff Advertising,EB113,10/15/2014,309463,2490,REVENUE,GATENBYSANDERSON LTD,104473
NORTH EAST LINCOLNSHIRE COUNCIL,http://statistics.data.gov.uk/id/local-authority/00FC,Public Health,Public Health,Director Public Health,Indirect Employee Expenses,Staff Training,EB122,10/6/2014,307904,2655,REVENUE,UNIVERSITY OF BIRMINGHAM,101913
NORTH EAST LINCOLNSHIRE COUNCIL,http://statistics.data.gov.uk/id/local-authority/00FC,Public Health,Public Health,Director Public Health,Equip / Furniture / Materials,Promotions,LA124,10/27/2014,312443,9820.21,REVENUE,CARE PLUS GROUP,126792
NORTH EAST LINCOLNSHIRE COUNCIL,http://statistics.data.gov.uk/id/local-authority/00FC,Public Health,Public Health,Director Public Health,Equip / Furniture / Materials,Promotions,LA124,10/27/2014,312445,14150.79,REVENUE,CENTRE4 LIMITED,126893
NORTH EAST LINCOLNSHIRE COUNCIL,http://statistics.data.gov.uk/id/local-authority/00FC,Public Health,Public Health,Director Public Health,Contributions To Provisions,Contributions - Third Sector,LK102,10/9/2014,309440,3672.49,REVENUE,WEST MARSH DEVELOPMENT TRUST,105846
NORTH EAST LINCOLNSHIRE COUNCIL,http://statistics.data.gov.uk/id/local-authority/00FC,Public Health,Public Health,Sexual Health,Contributions To Provisions,Contributions - Communities,LK101,10/23/2014,312105,2730.6,REVENUE,VIRGIN CARE SERVICES LTD,120538
NORTH EAST LINCOLNSHIRE COUNCIL,http://statistics.data.gov.uk/id/local-authority/00FC,Public Health,Public Health,Sexual Health,Voluntary Associations,Third Pp - Third Sector,PF101,10/27/2014,311730,2331.69,REVENUE,POSITIVE HEALTH,125235
NORTH EAST LINCOLNSHIRE COUNCIL,http://statistics.data.gov.uk/id/local-authority/00FC,Public Health,Public Health,Sexual Health,Private Contractors,Contract Payments,PH105,10/27/2014,312101,55401,REVENUE,VIRGIN CARE SERVICES LTD,120538
NORTH EAST LINCOLNSHIRE COUNCIL,http://statistics.data.gov.uk/id/local-authority/00FC,Public Health,Public Health,Sexual Health,Private Contractors,Third Party Prov - Private,PH101,10/30/2014,314097,315,REVENUE,ASDA PHARMACY,104011
NORTH EAST LINCOLNSHIRE COUNCIL,http://statistics.data.gov.uk/id/local-authority/00FC,Public Health,Public Health,Sexual Health,Other Agencies,Health Charges,PJ131,10/23/2014,312088,544,REVENUE,CITY HEALTH CARE PARTNERSHIP CIC,110889
NORTH EAST LINCOLNSHIRE COUNCIL,http://statistics.data.gov.uk/id/local-authority/00FC,Public Health,Public Health,Sexual Health,Other Agencies,Health Charges,PJ131,10/23/2014,312078,486,REVENUE,CITY HEALTH CARE PARTNERSHIP CIC,110889
NORTH EAST LINCOLNSHIRE COUNCIL,http://statistics.data.gov.uk/id/local-authority/00FC,Public Health,Public Health,Sexual Health,Other Agencies,Health Charges,PJ131,10/24/2014,311724,278,REVENUE,DONCASTER AND BASSETLAW HOSPITALS NHS,103005
NORTH EAST LINCOLNSHIRE COUNCIL,http://statistics.data.gov.uk/id/local-authority/00FC,Public Health,Public Health,Sexual Health,Other Agencies,Health Charges,PJ131,10/21/2014,311727,278.44,REVENUE,CMUH FT,127454
NORTH EAST LINCOLNSHIRE COUNCIL,http://statistics.data.gov.uk/id/local-authority/00FC,Public Health,Public Health,Sexual Health,Other Agencies,Other,PJ121,10/27/2014,311723,320,REVENUE,PELHAM MEDICAL GROUP,104350
NORTH EAST LINCOLNSHIRE COUNCIL,http://statistics.data.gov.uk/id/local-authority/00FC,Public Health,Public Health,Sexual Health,Other Agencies,Other,PJ121,10/27/2014,311718,720,REVENUE,THE CHANTRY HEALTH GROUP,108912
NORTH EAST LINCOLNSHIRE COUNCIL,http://statistics.data.gov.uk/id/local-authority/00FC,Public Health,Public Health,Tobacco,Equip / Furniture / Materials,Equipment - Purchase,LA101,10/15/2014,309378,1312.5,REVENUE,LASERMET LTD,125645
NORTH EAST LINCOLNSHIRE COUNCIL,http://statistics.data.gov.uk/id/local-authority/00FC,Other Corporate Budgets,Other Corp Budgets - Technical,Appropriations,Indirect Employee Expenses,Ex B/Ferry Bc & Hcc Unfund Pen,EB107,10/7/2014,307308,1669.84,REVENUE,WEST YORKSHIRE PENSION FUND,101014
NORTH EAST LINCOLNSHIRE COUNCIL,http://statistics.data.gov.uk/id/local-authority/00FC,Other Corporate Budgets,Other Corp Budgets - Technical,Appropriations,Indirect Employee Expenses,Pension P/Ment Pension Inc Act,EB105,10/27/2014,312142,5502.04,REVENUE,LINCOLNSHIRE COUNTY COUNCIL,100389
NORTH EAST LINCOLNSHIRE COUNCIL,http://statistics.data.gov.uk/id/local-authority/00FC,Other Corporate Budgets,Other Corp Budgets - Technical,Appropriations,Indirect Employee Expenses,Pension P/Ment Pension Inc Act,EB105,10/14/2014,309321,994.42,REVENUE,LINCOLNSHIRE COUNTY COUNCIL,100389
NORTH EAST LINCOLNSHIRE COUNCIL,http://statistics.data.gov.uk/id/local-authority/00FC,Other Corporate Budgets,Other Corp Budgets - Technical,Appropriations,Miscellaneous Expenses,Other Expenses General,LL119,10/15/2014,306596,5000,REVENUE,HYMANS ROBERTSON LLP,107021
NORTH EAST LINCOLNSHIRE COUNCIL,http://statistics.data.gov.uk/id/local-authority/00FC,Other Corporate Budgets,Other Corp Budgets - Technical,Appropriations,Miscellaneous Expenses,Other Expenses General,LL119,10/23/2014,312774,4000,REVENUE,HYMANS ROBERTSON LLP,107021
NORTH EAST LINCOLNSHIRE COUNCIL,http://statistics.data.gov.uk/id/local-authority/00FC,Other Corporate Budgets,Other Corp Budgets - Financing,Borrowing Costs,Other Agencies,Fees Comm Clf Logotech Charges,PJ142,10/13/2014,309458,650,REVENUE,PSLIVE LTD,125043
NORTH EAST LINCOLNSHIRE COUNCIL,http://statistics.data.gov.uk/id/local-authority/00FC,People,Early Intervention,Integrated Youth Services,Contributions To Provisions,Contributions - Other,LK103,10/15/2014,311120,8000,REVENUE,PCC HUMBERSIDE,120398
NORTH EAST LINCOLNSHIRE COUNCIL,http://statistics.data.gov.uk/id/local-authority/00FC,People,Early Intervention,Integrated Youth Services,Contributions To Provisions,Contributions - Other,LK103,10/24/2014,312531,750,REVENUE,ST ANDREWS OPEN DOOR YOUTH PROJECT,108872
NORTH EAST LINCOLNSHIRE COUNCIL,http://statistics.data.gov.uk/id/local-authority/00FC,People,Early Intervention,Integrated Youth Services,Contributions To Provisions,Contributions - Other,LK103,10/23/2014,312552,2500,REVENUE,WEST MARSH DEVELOPMENT TRUST,105165
NORTH EAST LINCOLNSHIRE COUNCIL,http://statistics.data.gov.uk/id/local-authority/00FC,People,Early Intervention,Integrated Youth Services,Contributions To Provisions,Contributions - Other,LK103,10/28/2014,312596,576,REVENUE,STREET BEAT DANCE ACADEMY,122443
NORTH EAST LINCOLNSHIRE COUNCIL,http://statistics.data.gov.uk/id/local-authority/00FC,People,Early Intervention,Integrated Youth Services,Public Transport,Public Transport - Employees,JD101,10/6/2014,307578,-32.7,REVENUE,NYS CORPORATE,102444
NORTH EAST LINCOLNSHIRE COUNCIL,http://statistics.data.gov.uk/id/local-authority/00FC,People,Early Intervention,Integrated Youth Services,Public Transport,Public Transport - Employees,JD101,10/13/2014,308464,-32.7,REVENUE,NYS CORPORATE,102444
NORTH EAST LINCOLNSHIRE COUNCIL,http://statistics.data.gov.uk/id/local-authority/00FC,People,Early Intervention,Integrated Youth Services,Print Stationery / Gen Off Exp,Printing And Stationery,LD103,10/1/2014,306376,272.5,REVENUE,BANAMAN,100513
NORTH EAST LINCOLNSHIRE COUNCIL,http://statistics.data.gov.uk/id/local-authority/00FC,People,Early Intervention,Integrated Youth Services,Miscellaneous Expenses,Activities - Service Users,LL114,10/6/2014,308388,5000,REVENUE,GET HOOKED ON POSITIVE ACTIVITIES,111758
NORTH EAST LINCOLNSHIRE COUNCIL,http://statistics.data.gov.uk/id/local-authority/00FC,People,Early Intervention,Integrated Youth Services,Miscellaneous Expenses,Activities - Service Users,LL114,10/14/2014,311005,290,REVENUE,MA EDUCATION LTD,105566
NORTH EAST LINCOLNSHIRE COUNCIL,http://statistics.data.gov.uk/id/local-authority/00FC,People,Early Intervention,Integrated Youth Services,Miscellaneous Expenses,Activities - Service Users,LL114,10/7/2014,307848,720,REVENUE,YOUNG ADVISORS COMPANY LTD,106899
NORTH EAST LINCOLNSHIRE COUNCIL,http://statistics.data.gov.uk/id/local-authority/00FC,People,Early Intervention,Integrated Youth Services,Miscellaneous Expenses,Activities - Service Users,LL114,10/31/2014,313434,5185.75,REVENUE,LINDLEY EDUCATIONAL TRUST LTD,119135
NORTH EAST LINCOLNSHIRE COUNCIL,http://statistics.data.gov.uk/id/local-authority/00FC,People,Early Intervention,Integrated Youth Services,Voluntary Associations,Third Pp - Third Sector,PF101,10/9/2014,308406,10000,REVENUE,LINCS INSPIRE LTD,120610
NORTH EAST LINCOLNSHIRE COUNCIL,http://statistics.data.gov.uk/id/local-authority/00FC,People,Early Intervention,Integrated Youth Services,Direct Employee Expenses,Agency Staff,EA105,10/9/2014,308558,1530.48,REVENUE,VOLUNTARY ACTION NORTH EAST LINCOLNSHIRE,103631
NORTH EAST LINCOLNSHIRE COUNCIL,http://statistics.data.gov.uk/id/local-authority/00FC,People,Early Intervention,Integrated Youth Services,Miscellaneous Expenses,Activities - Service Users,LL114,10/30/2014,314030,1960,REVENUE,PARK RETAIL LTD - LOVE2REWARD,111869
NORTH EAST LINCOLNSHIRE COUNCIL,http://statistics.data.gov.uk/id/local-authority/00FC,People,Early Intervention,Childrens Health Provision,Equip / Furniture / Materials,Equipment - Purchase,LA101,10/9/2014,306041,399.48,REVENUE,ERIC,108869
NORTH EAST LINCOLNSHIRE COUNCIL,http://statistics.data.gov.uk/id/local-authority/00FC,People,Early Intervention,Childrens Health Provision,Energy Costs,Electricity,GB102,10/6/2014,307882,489.74,REVENUE,NPOWER,101368
NORTH EAST LINCOLNSHIRE COUNCIL,http://statistics.data.gov.uk/id/local-authority/00FC,People,Early Intervention,Childrens Health Provision,Expenses,Course/Conf Accom - Employees,LH102,10/15/2014,310353,319.95,REVENUE,NYS CORPORATE,102444
NORTH EAST LINCOLNSHIRE COUNCIL,http://statistics.data.gov.uk/id/local-authority/00FC,People,Early Intervention,Childrens Health Provision,Rep Alterations Maint Building,Removal Expenses - Offices,GA108,10/2/2014,307645,384,REVENUE,ROY LAUGHTON,100543
NORTH EAST LINCOLNSHIRE COUNCIL,http://statistics.data.gov.uk/id/local-authority/00FC,People,Early Intervention,Childrens Centre Development,Rep Alterations Maint Building,Buildings - Repairs And Maint,GA102,10/13/2014,310153,349,REVENUE,KES BUILDING MAINTENANCE LIMITED,100786
NORTH EAST LINCOLNSHIRE COUNCIL,http://statistics.data.gov.uk/id/local-authority/00FC,People,Early Intervention,Childrens Centre Development,Rep Alterations Maint Building,Buildings - Repairs And Maint,GA102,10/30/2014,314064,885,REVENUE,FABRIQUE SPECIALIST GLAZING SYSTEMS LTD,101314
NORTH EAST LINCOLNSHIRE COUNCIL,http://statistics.data.gov.uk/id/local-authority/00FC,People,Early Intervention,Childrens Centre Development,Rep Alterations Maint Building,Buildings - Repairs And Maint,GA102,10/23/2014,311636,980,REVENUE,OXLEY SHUTTERS LIMITED,100931
NORTH EAST LINCOLNSHIRE COUNCIL,http://statistics.data.gov.uk/id/local-authority/00FC,People,Early Intervention,Childrens Centre Development,Rep Alterations Maint Building,Buildings - Repairs And Maint,GA102,10/17/2014,311499,260,REVENUE,DORMA UK LIMITED,107806
NORTH EAST LINCOLNSHIRE COUNCIL,http://statistics.data.gov.uk/id/local-authority/00FC,People,Early Intervention,Childrens Centre Development,Energy Costs,Electricity,GB102,10/14/2014,306860,2164.33,REVENUE,NPOWER LIMITED,101414
NORTH EAST LINCOLNSHIRE COUNCIL,http://statistics.data.gov.uk/id/local-authority/00FC,People,Early Intervention,Childrens Centre Development,Energy Costs,Gas,GB101,10/22/2014,311539,329.78,REVENUE,BRITISH GAS TRADING LTD,101507
NORTH EAST LINCOLNSHIRE COUNCIL,http://statistics.data.gov.uk/id/local-authority/00FC,People,Early Intervention,Childrens Centre Development,Water Services,Water,GE101,10/23/2014,312153,-157.67,REVENUE,ANGLIAN WATER,100508
NORTH EAST LINCOLNSHIRE COUNCIL,http://statistics.data.gov.uk/id/local-authority/00FC,People,Early Intervention,Childrens Centre Development,Cleaning And Domestic Supplies,Cleaning - Services,GH102,10/28/2014,313331,544.87,REVENUE,FUTURE CLEANING SERVICES LTD,102557
NORTH EAST LINCOLNSHIRE COUNCIL,http://statistics.data.gov.uk/id/local-authority/00FC,People,Early Intervention,Childrens Centre Development,Cleaning And Domestic Supplies,Cleaning - Services,GH102,10/9/2014,307906,538.06,REVENUE,FUTURE CLEANING SERVICES LTD,102557
NORTH EAST LINCOLNSHIRE COUNCIL,http://statistics.data.gov.uk/id/local-authority/00FC,People,Early Intervention,Childrens Centre Development,Cleaning And Domestic Supplies,Cleaning - Services,GH102,10/17/2014,311271,529,REVENUE,FUTURE CLEANING SERVICES LTD,102557
NORTH EAST LINCOLNSHIRE COUNCIL,http://statistics.data.gov.uk/id/local-authority/00FC,People,Early Intervention,Childrens Centre Development,Cleaning And Domestic Supplies,Cleaning - Services,GH102,10/17/2014,311274,529,REVENUE,FUTURE CLEANING SERVICES LTD,102557
NORTH EAST LINCOLNSHIRE COUNCIL,http://statistics.data.gov.uk/id/local-authority/00FC,People,Early Intervention,Childrens Centre Development,Cleaning And Domestic Supplies,Cleaning - Services,GH102,10/21/2014,311273,529,REVENUE,FUTURE CLEANING SERVICES LTD,102557
NORTH EAST LINCOLNSHIRE COUNCIL,http://statistics.data.gov.uk/id/local-authority/00FC,People,Early Intervention,Childrens Centre Development,Cleaning And Domestic Supplies,Refuse Collection,GH104,10/1/2014,306840,384.44,REVENUE,BELL WASTE CONTROL,101433
NORTH EAST LINCOLNSHIRE COUNCIL,http://statistics.data.gov.uk/id/local-authority/00FC,People,Early Intervention,Childrens Centre Development,Other Agencies,Child Care Payments,PJ104,10/28/2014,313332,319.16,REVENUE,PRE SCHOOL LEARNING ALLIANCE,101437
NORTH EAST LINCOLNSHIRE COUNCIL,http://statistics.data.gov.uk/id/local-authority/00FC,People,Early Intervention,Childrens Centre Development,Other Agencies,Further Ed Emp & Training,PJ130,10/22/2014,308399,480,REVENUE,FAMILY LINKS,101506
NORTH EAST LINCOLNSHIRE COUNCIL,http://statistics.data.gov.uk/id/local-authority/00FC,People,Early Intervention,Childrens Centre Development,Rep Alterations Maint Building,Buildings - Repairs And Maint,GA102,10/30/2014,313153,1309.55,REVENUE,KES BUILDING MAINTENANCE LIMITED,100786
NORTH EAST LINCOLNSHIRE COUNCIL,http://statistics.data.gov.uk/id/local-authority/00FC,People,Early Intervention,Childrens Centre Development,Cleaning And Domestic Supplies,Cleaning - Services,GH102,10/23/2014,312324,270.5,REVENUE,EASY CLEAN MARSHCHAPEL LTD,104531
NORTH EAST LINCOLNSHIRE COUNCIL,http://statistics.data.gov.uk/id/local-authority/00FC,People,Early Intervention,Childrens Centre Development,Equip / Furniture / Materials,Equipment - Purchase,LA101,10/6/2014,306591,490,REVENUE,BRANDON MEDICAL CO LTD,127239
NORTH EAST LINCOLNSHIRE COUNCIL,http://statistics.data.gov.uk/id/local-authority/00FC,People,Early Intervention,Childrens Centre Development,Equip / Furniture / Materials,Non-Teaching Resources,LA118,10/27/2014,312997,603.5,REVENUE,BOOKPOINT LIMITED,100664
NORTH EAST LINCOLNSHIRE COUNCIL,http://statistics.data.gov.uk/id/local-authority/00FC,People,Early Intervention,Childrens Centre Development,Other Agencies,Further Ed Emp & Training,PJ130,10/31/2014,313411,1160,REVENUE,MA EDUCATION LTD,105566
NORTH EAST LINCOLNSHIRE COUNCIL,http://statistics.data.gov.uk/id/local-authority/00FC,People,Early Intervention,Childrens Centre Development,Car Allowances,Travel - Employees,JF101,10/24/2014,312595,371.2,REVENUE,REVELLS TAXIS (ED/SOC SERV),100559
NORTH EAST LINCOLNSHIRE COUNCIL,http://statistics.data.gov.uk/id/local-authority/00FC,People,Early Intervention,Childrens Centre Development,Car Allowances,Travel - Employees,JF101,10/24/2014,312602,421.2,REVENUE,REVELLS TAXIS (ED/SOC SERV),100559
NORTH EAST LINCOLNSHIRE COUNCIL,http://statistics.data.gov.uk/id/local-authority/00FC,People,Early Intervention,Childrens Centre Development,Car Allowances,Travel - Employees,JF101,10/24/2014,312592,439,REVENUE,REVELLS TAXIS (ED/SOC SERV),100559
NORTH EAST LINCOLNSHIRE COUNCIL,http://statistics.data.gov.uk/id/local-authority/00FC,People,Early Intervention,Childrens Centre Development,Private Contractors,Third Party Prov - Private,PH101,10/6/2014,307582,597,REVENUE,SIGNS SCOTT LIMITED,102409
NORTH EAST LINCOLNSHIRE COUNCIL,http://statistics.data.gov.uk/id/local-authority/00FC,People,Early Intervention,Childrens Centre Development,Private Contractors,Third Party Prov - Private,PH101,10/9/2014,308606,1684,REVENUE,N LINCS & GOOLE HOSPITALS NHS,111074
NORTH EAST LINCOLNSHIRE COUNCIL,http://statistics.data.gov.uk/id/local-authority/00FC,People,Early Intervention,Childrens Centre Development,Private Contractors,Third Party Prov - Private,PH101,10/15/2014,308512,8491,REVENUE,N LINCS & GOOLE HOSPITALS NHS,111074
NORTH EAST LINCOLNSHIRE COUNCIL,http://statistics.data.gov.uk/id/local-authority/00FC,People,Early Intervention,Childrens Centre Development,Private Contractors,Third Party Prov - Private,PH101,10/1/2014,307319,8491,REVENUE,N LINCS & GOOLE HOSPITALS NHS,111074
NORTH EAST LINCOLNSHIRE COUNCIL,http://statistics.data.gov.uk/id/local-authority/00FC,People,Early Intervention,Childrens Centre Development,Other Agencies,Child Care Payments,PJ104,10/7/2014,309079,261,REVENUE,ORMISTON SOUTH PARADE ACADEMY,111750
NORTH EAST LINCOLNSHIRE COUNCIL,http://statistics.data.gov.uk/id/local-authority/00FC,People,Early Intervention,Childrens Centre Development,Other Agencies,Further Ed Emp & Training,PJ130,10/6/2014,307886,266.58,REVENUE,TRIPLE P UK LTD,109465
NORTH EAST LINCOLNSHIRE COUNCIL,http://statistics.data.gov.uk/id/local-authority/00FC,People,Early Intervention,Childrens Centre Development,Energy Costs,Gas,GB101,10/23/2014,312325,292.85,REVENUE,BRITISH GAS TRADING LTD,101507
NORTH EAST LINCOLNSHIRE COUNCIL,http://statistics.data.gov.uk/id/local-authority/00FC,People,Early Intervention,Childrens Centre Development,Cleaning And Domestic Supplies,Cleaning - Services,GH102,10/2/2014,307637,636,REVENUE,FOR UNDER FIVES,101931
NORTH EAST LINCOLNSHIRE COUNCIL,http://statistics.data.gov.uk/id/local-authority/00FC,People,Early Intervention,Childrens Centre Development,Cleaning And Domestic Supplies,Cleaning - Services,GH102,10/6/2014,307634,732,REVENUE,FOR UNDER FIVES,101931
NORTH EAST LINCOLNSHIRE COUNCIL,http://statistics.data.gov.uk/id/local-authority/00FC,People,Early Intervention,Childrens Centre Development,Cleaning And Domestic Supplies,Cleaning - Services,GH102,10/6/2014,307636,624,REVENUE,FOR UNDER FIVES,101931
NORTH EAST LINCOLNSHIRE COUNCIL,http://statistics.data.gov.uk/id/local-authority/00FC,People,Early Intervention,Childrens Centre Development,Cleaning And Domestic Supplies,Refuse Collection,GH104,10/6/2014,307931,394.94,REVENUE,BELL WASTE CONTROL,101433
NORTH EAST LINCOLNSHIRE COUNCIL,http://statistics.data.gov.uk/id/local-authority/00FC,People,Early Intervention,Childrens Centre Development,Other Agencies,Child Care Payments,PJ104,10/13/2014,310504,560,REVENUE,FOR UNDER FIVES,101931
NORTH EAST LINCOLNSHIRE COUNCIL,http://statistics.data.gov.uk/id/local-authority/00FC,People,Early Intervention,Childrens Centre Development,Other Agencies,Child Care Payments,PJ104,10/28/2014,312659,583.74,REVENUE,FOR UNDER FIVES,101931
NORTH EAST LINCOLNSHIRE COUNCIL,http://statistics.data.gov.uk/id/local-authority/00FC,People,Early Intervention,Childrens Centre Development,Other Agencies,Child Care Payments,PJ104,10/6/2014,307572,681.49,REVENUE,FOR UNDER FIVES,101931
NORTH EAST LINCOLNSHIRE COUNCIL,http://statistics.data.gov.uk/id/local-authority/00FC,People,Early Intervention,Childrens Centre Development,Other Agencies,Child Care Payments,PJ104,10/15/2014,309513,593.96,REVENUE,FOR UNDER FIVES,101931
NORTH EAST LINCOLNSHIRE COUNCIL,http://statistics.data.gov.uk/id/local-authority/00FC,People,Early Intervention,Childrens Centre Development,Other Agencies,Child Care Payments,PJ104,10/23/2014,312165,629.96,REVENUE,FOR UNDER FIVES,101931
NORTH EAST LINCOLNSHIRE COUNCIL,http://statistics.data.gov.uk/id/local-authority/00FC,People,Early Intervention,Childrens Centre Development,Other Agencies,Child Care Payments,PJ104,10/13/2014,310507,588,REVENUE,FOR UNDER FIVES,101931
NORTH EAST LINCOLNSHIRE COUNCIL,http://statistics.data.gov.uk/id/local-authority/00FC,People,Early Intervention,Childrens Centre Development,Other Agencies,Child Care Payments,PJ104,10/6/2014,307887,632.21,REVENUE,FOR UNDER FIVES,101931
NORTH EAST LINCOLNSHIRE COUNCIL,http://statistics.data.gov.uk/id/local-authority/00FC,People,Early Intervention,Childrens Centre Development,Other Agencies,Child Care Payments,PJ104,10/7/2014,307839,588,REVENUE,FOR UNDER FIVES,101931
NORTH EAST LINCOLNSHIRE COUNCIL,http://statistics.data.gov.uk/id/local-authority/00FC,People,Early Intervention,Childrens Centre Development,Rep Alterations Maint Building,Buildings - Repairs And Maint,GA102,10/27/2014,313024,3835,REVENUE,NEWBY LEISURE LTD,101227
NORTH EAST LINCOLNSHIRE COUNCIL,http://statistics.data.gov.uk/id/local-authority/00FC,People,Early Intervention,Childrens Centre Development,Energy Costs,Electricity,GB102,10/1/2014,307717,1070.38,REVENUE,NPOWER LIMITED,101414
NORTH EAST LINCOLNSHIRE COUNCIL,http://statistics.data.gov.uk/id/local-authority/00FC,People,Early Intervention,Childrens Centre Development,Water Services,Water,GE101,10/9/2014,308947,266.21,REVENUE,ANGLIAN WATER,100508
NORTH EAST LINCOLNSHIRE COUNCIL,http://statistics.data.gov.uk/id/local-authority/00FC,People,Early Intervention,Childrens Centre Development,Cleaning And Domestic Supplies,Cleaning - Services,GH102,10/13/2014,310045,1044.14,REVENUE,PHS GROUP LTD,100554
NORTH EAST LINCOLNSHIRE COUNCIL,http://statistics.data.gov.uk/id/local-authority/00FC,People,Early Intervention,Childrens Centre Development,Rep Alterations Maint Building,Buildings - Repairs And Maint,GA102,10/13/2014,310158,400,REVENUE,KES BUILDING MAINTENANCE LIMITED,100786
NORTH EAST LINCOLNSHIRE COUNCIL,http://statistics.data.gov.uk/id/local-authority/00FC,People,Early Intervention,Childrens Centre Development,Cleaning And Domestic Supplies,Refuse Collection,GH104,10/9/2014,308629,320.32,REVENUE,BELL WASTE CONTROL,101433
NORTH EAST LINCOLNSHIRE COUNCIL,http://statistics.data.gov.uk/id/local-authority/00FC,People,Early Intervention,Childrens Centre Development,Equip / Furniture / Materials,Furniture - Purchase,LA105,10/23/2014,312332,300,REVENUE,TESCO STORES LIMITED,102576
NORTH EAST LINCOLNSHIRE COUNCIL,http://statistics.data.gov.uk/id/local-authority/00FC,People,Early Intervention,Childrens Centre Development,Catering,Provisions,LB101,10/23/2014,312332,500,REVENUE,TESCO STORES LIMITED,102576
NORTH EAST LINCOLNSHIRE COUNCIL,http://statistics.data.gov.uk/id/local-authority/00FC,People,Early Intervention,Childrens Centre Development,Other Agencies,Child Care Payments,PJ104,10/30/2014,314051,651,REVENUE,FOR UNDER FIVES LTD,100647
NORTH EAST LINCOLNSHIRE COUNCIL,http://statistics.data.gov.uk/id/local-authority/00FC,People,Early Intervention,Childrens Centre Development,Energy Costs,Gas,GB101,10/28/2014,312640,-22.83,REVENUE,BRITISH GAS TRADING LTD,101507
NORTH EAST LINCOLNSHIRE COUNCIL,http://statistics.data.gov.uk/id/local-authority/00FC,People,Early Intervention,Childrens Centre Development,Cleaning And Domestic Supplies,Cleaning - Services,GH102,10/13/2014,309705,-26,REVENUE,TULIP HEALTHCARE,101042
NORTH EAST LINCOLNSHIRE COUNCIL,http://statistics.data.gov.uk/id/local-authority/00FC,People,Early Intervention,Childrens Centre Development,Other Agencies,Educational Visits,PJ152,10/23/2014,312162,450,REVENUE,YOUNG FUN,123302
NORTH EAST LINCOLNSHIRE COUNCIL,http://statistics.data.gov.uk/id/local-authority/00FC,People,Early Intervention,Childrens Centre Development,Other Agencies,Child Care Payments,PJ104,10/14/2014,309341,921.41,REVENUE,CLEETHORPES CHILDCARE,101591
NORTH EAST LINCOLNSHIRE COUNCIL,http://statistics.data.gov.uk/id/local-authority/00FC,People,Early Intervention,Childrens Centre Development,Energy Costs,Electricity,GB102,10/7/2014,307825,1641.72,REVENUE,WILLOWS PRIMARY ACADEMY,120478
NORTH EAST LINCOLNSHIRE COUNCIL,http://statistics.data.gov.uk/id/local-authority/00FC,People,Early Intervention,Childrens Centre Development,Cleaning And Domestic Supplies,Cleaning - Services,GH102,10/7/2014,307920,701.91,REVENUE,FUTURE CLEANING SERVICES LTD,102557
NORTH EAST LINCOLNSHIRE COUNCIL,http://statistics.data.gov.uk/id/local-authority/00FC,People,Early Intervention,Childrens Centre Development,Rep Alterations Maint Building,Buildings - Repairs And Maint,GA102,10/13/2014,310157,366,REVENUE,KES BUILDING MAINTENANCE LIMITED,100786
NORTH EAST LINCOLNSHIRE COUNCIL,http://statistics.data.gov.uk/id/local-authority/00FC,People,Early Intervention,Childrens Centre Development,Energy Costs,Electricity,GB102,10/17/2014,311516,332.13,REVENUE,YARBOROUGH ACADEMY,112852
NORTH EAST LINCOLNSHIRE COUNCIL,http://statistics.data.gov.uk/id/local-authority/00FC,People,Early Intervention,Childrens Centre Development,Cleaning And Domestic Supplies,Cleaning - Services,GH102,10/9/2014,307912,874.28,REVENUE,FUTURE CLEANING SERVICES LTD,102557
NORTH EAST LINCOLNSHIRE COUNCIL,http://statistics.data.gov.uk/id/local-authority/00FC,People,Early Intervention,Childrens Centre Development,Other Agencies,Educational Visits,PJ152,10/21/2014,310874,262.5,REVENUE,LINCS INSPIRE LTD GLC,120520
NORTH EAST LINCOLNSHIRE COUNCIL,http://statistics.data.gov.uk/id/local-authority/00FC,People,Early Intervention,Childrens Centre Development,Equip / Furniture / Materials,Equipment - Purchase,LA101,10/15/2014,310416,339.58,REVENUE,FINDEL EDUCATION LTD,101237
NORTH EAST LINCOLNSHIRE COUNCIL,http://statistics.data.gov.uk/id/local-authority/00FC,People,Early Intervention,Child Protection / Safeguardin,Direct Employee Expenses,Agency Staff,EA105,10/29/2014,312762,2575.97,REVENUE,ESP LTD,101231
NORTH EAST LINCOLNSHIRE COUNCIL,http://statistics.data.gov.uk/id/local-authority/00FC,People,Early Intervention,Child Protection / Safeguardin,Direct Employee Expenses,Agency Staff,EA105,10/9/2014,308444,2226.83,REVENUE,ESP LTD,101231
NORTH EAST LINCOLNSHIRE COUNCIL,http://statistics.data.gov.uk/id/local-authority/00FC,People,Early Intervention,Child Protection / Safeguardin,Direct Employee Expenses,Agency Staff,EA105,10/23/2014,311535,2201.87,REVENUE,ESP LTD,101231
NORTH EAST LINCOLNSHIRE COUNCIL,http://statistics.data.gov.uk/id/local-authority/00FC,People,Early Intervention,Child Protection / Safeguardin,Direct Employee Expenses,Agency Staff,EA105,10/13/2014,309497,2569.74,REVENUE,ESP LTD,101231
NORTH EAST LINCOLNSHIRE COUNCIL,http://statistics.data.gov.uk/id/local-authority/00FC,People,Early Intervention,Child Protection / Safeguardin,Direct Employee Expenses,Agency Staff,EA105,10/14/2014,309605,1530,REVENUE,NONSTOP RECRUITMENT,120715
NORTH EAST LINCOLNSHIRE COUNCIL,http://statistics.data.gov.uk/id/local-authority/00FC,People,Early Intervention,Child Protection / Safeguardin,Direct Employee Expenses,Agency Staff,EA105,10/15/2014,309604,1056,REVENUE,NONSTOP RECRUITMENT,120715
NORTH EAST LINCOLNSHIRE COUNCIL,http://statistics.data.gov.uk/id/local-authority/00FC,People,Early Intervention,Child Protection / Safeguardin,Direct Employee Expenses,Agency Staff,EA105,10/17/2014,310957,1035,REVENUE,NONSTOP RECRUITMENT,120715
NORTH EAST LINCOLNSHIRE COUNCIL,http://statistics.data.gov.uk/id/local-authority/00FC,People,Early Intervention,Child Protection / Safeguardin,Direct Employee Expenses,Agency Staff,EA105,10/21/2014,310956,600,REVENUE,NONSTOP RECRUITMENT,120715
NORTH EAST LINCOLNSHIRE COUNCIL,http://statistics.data.gov.uk/id/local-authority/00FC,People,Early Intervention,Child Protection / Safeguardin,Direct Employee Expenses,Agency Staff,EA105,10/14/2014,309607,1188,REVENUE,NONSTOP RECRUITMENT,120715
NORTH EAST LINCOLNSHIRE COUNCIL,http://statistics.data.gov.uk/id/local-authority/00FC,People,Early Intervention,Child Protection / Safeguardin,Direct Employee Expenses,Agency Staff,EA105,10/1/2014,306393,1056,REVENUE,NONSTOP RECRUITMENT,120715
NORTH EAST LINCOLNSHIRE COUNCIL,http://statistics.data.gov.uk/id/local-authority/00FC,People,Early Intervention,Child Protection / Safeguardin,Direct Employee Expenses,Agency Staff,EA105,10/6/2014,307300,2451.27,REVENUE,ESP LTD,101231
NORTH EAST LINCOLNSHIRE COUNCIL,http://statistics.data.gov.uk/id/local-authority/00FC,People,Early Intervention,Child Protection / Safeguardin,Rents,Rent,GC101,10/14/2014,309498,560,REVENUE,GRIMSBY CENTRAL HALL TRUST,100882
NORTH EAST LINCOLNSHIRE COUNCIL,http://statistics.data.gov.uk/id/local-authority/00FC,People,Early Intervention,Child Protection / Safeguardin,Communications And Computing,Internet Connection,LF110,10/6/2014,307299,810.76,REVENUE,INSIGHT DIRECT (UK) LTD,101011
NORTH EAST LINCOLNSHIRE COUNCIL,http://statistics.data.gov.uk/id/local-authority/00FC,People,Early Intervention,Child Protection / Safeguardin,Private Contractors,Third Party Prov - Private,PH101,10/15/2014,309608,2078.93,REVENUE,SIMUL LTD,122141
NORTH EAST LINCOLNSHIRE COUNCIL,http://statistics.data.gov.uk/id/local-authority/00FC,People,Early Intervention,Child Protection / Safeguardin,Private Contractors,Third Party Prov - Private,PH101,10/1/2014,306392,4000,REVENUE,CHANTMARLE CONSULTANCY LTD,127460
NORTH EAST LINCOLNSHIRE COUNCIL,http://statistics.data.gov.uk/id/local-authority/00FC,People,Early Intervention,Child Protection / Safeguardin,Private Contractors,Third Party Prov - Private,PH101,10/6/2014,306743,13306.45,REVENUE,ALAN BEDFORD,127402
NORTH EAST LINCOLNSHIRE COUNCIL,http://statistics.data.gov.uk/id/local-authority/00FC,People,Early Intervention,Child Protection / Safeguardin,Private Contractors,Third Party Prov - Private,PH101,10/2/2014,307406,708.75,REVENUE,CHANTMARLE CONSULTANCY LTD,127460
NORTH EAST LINCOLNSHIRE COUNCIL,http://statistics.data.gov.uk/id/local-authority/00FC,People,Early Intervention,Child Protection / Safeguardin,Private Contractors,Third Party Prov - Private,PH101,10/6/2014,307413,574.1,REVENUE,SUE WOOLMORE,111635
NORTH EAST LINCOLNSHIRE COUNCIL,http://statistics.data.gov.uk/id/local-authority/00FC,People,Early Intervention,Child Protection / Safeguardin,Private Contractors,Third Party Prov - Private,PH101,10/1/2014,306396,576.1,REVENUE,SUE WOOLMORE,111635
NORTH EAST LINCOLNSHIRE COUNCIL,http://statistics.data.gov.uk/id/local-authority/00FC,People,Early Intervention,Child Protection / Safeguardin,Private Contractors,Third Party Prov - Private,PH101,10/1/2014,306397,576.1,REVENUE,SUE WOOLMORE,111635
NORTH EAST LINCOLNSHIRE COUNCIL,http://statistics.data.gov.uk/id/local-authority/00FC,People,Early Intervention,Child Protection / Safeguardin,Consultancy,Consultancy,PL101,10/14/2014,309609,2375,REVENUE,SANCTUARY PERSONNEL LTD,125055
NORTH EAST LINCOLNSHIRE COUNCIL,http://statistics.data.gov.uk/id/local-authority/00FC,People,Early Intervention,Child Protection / Safeguardin,Consultancy,Consultancy,PL101,10/1/2014,306395,1900,REVENUE,SANCTUARY PERSONNEL LTD,125055
NORTH EAST LINCOLNSHIRE COUNCIL,http://statistics.data.gov.uk/id/local-authority/00FC,People,Early Intervention,Child Protection / Safeguardin,Consultancy,Consultancy,PL101,10/14/2014,309610,2375,REVENUE,SANCTUARY PERSONNEL LTD,125055
NORTH EAST LINCOLNSHIRE COUNCIL,http://statistics.data.gov.uk/id/local-authority/00FC,People,Early Intervention,Child Protection / Safeguardin,Consultancy,Consultancy,PL101,10/17/2014,310958,2375,REVENUE,SANCTUARY PERSONNEL LTD,125055
NORTH EAST LINCOLNSHIRE COUNCIL,http://statistics.data.gov.uk/id/local-authority/00FC,People,Early Intervention,Child Protection / Safeguardin,Consultancy,Consultancy,PL101,10/1/2014,306394,2375,REVENUE,SANCTUARY PERSONNEL LTD,125055
NORTH EAST LINCOLNSHIRE COUNCIL,http://statistics.data.gov.uk/id/local-authority/00FC,People,Early Intervention,Head Of Child Hlth - Fam Supp,Indirect Employee Expenses,Staff Training,EB122,10/7/2014,307420,290,REVENUE,LEEDS METROPOLITAN UNIVERSITY,101632
NORTH EAST LINCOLNSHIRE COUNCIL,http://statistics.data.gov.uk/id/local-authority/00FC,People,Early Intervention,Head Of Child Hlth - Fam Supp,Rents,Service Charge,GC102,10/8/2014,309272,442.16,REVENUE,E-ON (GAS),101983
NORTH EAST LINCOLNSHIRE COUNCIL,http://statistics.data.gov.uk/id/local-authority/00FC,People,Early Intervention,Head Of Child Hlth - Fam Supp,Rents,Service Charge,GC102,10/27/2014,312735,3079.27,REVENUE,NHS PROPERTY SERVICES LTD,121261
NORTH EAST LINCOLNSHIRE COUNCIL,http://statistics.data.gov.uk/id/local-authority/00FC,People,Early Intervention,Head Of Child Hlth - Fam Supp,Rents,Service Charge,GC102,10/9/2014,305614,365.75,REVENUE,PHP INVESTMENTS NO. 1 LTD,121299
NORTH EAST LINCOLNSHIRE COUNCIL,http://statistics.data.gov.uk/id/local-authority/00FC,People,Early Intervention,Head Of Child Hlth - Fam Supp,Rents,Service Charge,GC102,10/23/2014,312011,5263.35,REVENUE,MEDICX PROPERTIES VI LTD,121936
NORTH EAST LINCOLNSHIRE COUNCIL,http://statistics.data.gov.uk/id/local-authority/00FC,People,Early Intervention,Head Of Child Hlth - Fam Supp,Rents,Service Charge,GC102,10/22/2014,312457,1527.51,REVENUE,NHS PROPERTY SERVICES LTD,121261
NORTH EAST LINCOLNSHIRE COUNCIL,http://statistics.data.gov.uk/id/local-authority/00FC,People,Early Intervention,Head Of Child Hlth - Fam Supp,Rents,Service Charge,GC102,10/22/2014,312462,1527.51,REVENUE,NHS PROPERTY SERVICES LTD,121261
NORTH EAST LINCOLNSHIRE COUNCIL,http://statistics.data.gov.uk/id/local-authority/00FC,People,Early Intervention,Head Of Child Hlth - Fam Supp,Rents,Service Charge,GC102,10/23/2014,312012,2776.33,REVENUE,WEELSBY VIEW HEALTH CENTRE,101761
NORTH EAST LINCOLNSHIRE COUNCIL,http://statistics.data.gov.uk/id/local-authority/00FC,People,Early Intervention,Head Of Child Hlth - Fam Supp,Rents,Service Charge,GC102,10/23/2014,312013,3103.08,REVENUE,WEELSBY VIEW HEALTH CENTRE,101761
NORTH EAST LINCOLNSHIRE COUNCIL,http://statistics.data.gov.uk/id/local-authority/00FC,People,Adult Serv & Hlth Improvement,Supporting People,Other Agencies,Third Pp - Block Gross,PJ103,10/24/2014,313079,426.66,REVENUE,ANCHOR TRUST,100327
NORTH EAST LINCOLNSHIRE COUNCIL,http://statistics.data.gov.uk/id/local-authority/00FC,People,Adult Serv & Hlth Improvement,Supporting People,Other Agencies,Third Pp - Block Gross,PJ103,10/24/2014,313074,7745.4,REVENUE,CARE LTD,100314
NORTH EAST LINCOLNSHIRE COUNCIL,http://statistics.data.gov.uk/id/local-authority/00FC,People,Adult Serv & Hlth Improvement,Supporting People,Other Agencies,Third Pp - Block Gross,PJ103,10/24/2014,313087,17510.04,REVENUE,CARE PLUS GROUP,106467
NORTH EAST LINCOLNSHIRE COUNCIL,http://statistics.data.gov.uk/id/local-authority/00FC,People,Adult Serv & Hlth Improvement,Supporting People,Other Agencies,Third Pp - Block Gross,PJ103,10/24/2014,313088,6825.05,REVENUE,CREATIVE SUPPORT LTD,107198
NORTH EAST LINCOLNSHIRE COUNCIL,http://statistics.data.gov.uk/id/local-authority/00FC,People,Adult Serv & Hlth Improvement,Supporting People,Other Agencies,Third Pp - Block Gross,PJ103,10/24/2014,313071,15753.87,REVENUE,DOORSTEP,100310
NORTH EAST LINCOLNSHIRE COUNCIL,http://statistics.data.gov.uk/id/local-authority/00FC,People,Adult Serv & Hlth Improvement,Supporting People,Other Agencies,Third Pp - Block Gross,PJ103,10/24/2014,313068,29598.05,REVENUE,GRIMSBY CLEETHORPES & HUMBER REGION YMCA,100305
NORTH EAST LINCOLNSHIRE COUNCIL,http://statistics.data.gov.uk/id/local-authority/00FC,People,Adult Serv & Hlth Improvement,Supporting People,Other Agencies,Third Pp - Block Gross,PJ103,10/24/2014,313069,295.5,REVENUE,HANOVER HOUSING ASSOCIATION,100307
NORTH EAST LINCOLNSHIRE COUNCIL,http://statistics.data.gov.uk/id/local-authority/00FC,People,Adult Serv & Hlth Improvement,Supporting People,Other Agencies,Third Pp - Block Gross,PJ103,10/24/2014,313077,25111.55,REVENUE,HOUSING & SUPPORT SOLUTIONS,100321
NORTH EAST LINCOLNSHIRE COUNCIL,http://statistics.data.gov.uk/id/local-authority/00FC,People,Adult Serv & Hlth Improvement,Supporting People,Other Agencies,Third Pp - Block Gross,PJ103,10/24/2014,313075,4535.71,REVENUE,HICA,100319
NORTH EAST LINCOLNSHIRE COUNCIL,http://statistics.data.gov.uk/id/local-authority/00FC,People,Adult Serv & Hlth Improvement,Supporting People,Other Agencies,Third Pp - Block Gross,PJ103,10/24/2014,313076,642.34,REVENUE,HOUSING 21,100320
NORTH EAST LINCOLNSHIRE COUNCIL,http://statistics.data.gov.uk/id/local-authority/00FC,People,Adult Serv & Hlth Improvement,Supporting People,Other Agencies,Third Pp - Block Gross,PJ103,10/24/2014,313072,7910.85,REVENUE,HUMBERCARE LTD,100311
NORTH EAST LINCOLNSHIRE COUNCIL,http://statistics.data.gov.uk/id/local-authority/00FC,People,Adult Serv & Hlth Improvement,Supporting People,Other Agencies,Third Pp - Block Gross,PJ103,10/24/2014,313073,5822.23,REVENUE,HUMBERCARE LTD,100311
NORTH EAST LINCOLNSHIRE COUNCIL,http://statistics.data.gov.uk/id/local-authority/00FC,People,Adult Serv & Hlth Improvement,Supporting People,Other Agencies,Third Pp - Block Gross,PJ103,10/24/2014,313082,72018.97,REVENUE,LONGHURST AND HAVELOK HOMES LTD,100342
NORTH EAST LINCOLNSHIRE COUNCIL,http://statistics.data.gov.uk/id/local-authority/00FC,People,Adult Serv & Hlth Improvement,Supporting People,Other Agencies,Third Pp - Block Gross,PJ103,10/24/2014,313083,8063.97,REVENUE,LONGHURST AND HAVELOK HOMES LTD,100342
NORTH EAST LINCOLNSHIRE COUNCIL,http://statistics.data.gov.uk/id/local-authority/00FC,People,Adult Serv & Hlth Improvement,Supporting People,Other Agencies,Third Pp - Block Gross,PJ103,10/24/2014,313086,12790.05,REVENUE,NAVIGO,104262
NORTH EAST LINCOLNSHIRE COUNCIL,http://statistics.data.gov.uk/id/local-authority/00FC,People,Adult Serv & Hlth Improvement,Supporting People,Other Agencies,Third Pp - Block Gross,PJ103,10/24/2014,313084,5612.94,REVENUE,OPEN DOOR,103147
NORTH EAST LINCOLNSHIRE COUNCIL,http://statistics.data.gov.uk/id/local-authority/00FC,People,Adult Serv & Hlth Improvement,Supporting People,Other Agencies,Third Pp - Block Gross,PJ103,10/24/2014,313085,4063.82,REVENUE,SANCTUARY HOUSING ASSOCIATION,103289
NORTH EAST LINCOLNSHIRE COUNCIL,http://statistics.data.gov.uk/id/local-authority/00FC,People,Adult Serv & Hlth Improvement,Supporting People,Other Agencies,Third Pp - Block Gross,PJ103,10/24/2014,313070,13512.09,REVENUE,THE SALVATION ARMY,100309
NORTH EAST LINCOLNSHIRE COUNCIL,http://statistics.data.gov.uk/id/local-authority/00FC,People,Adult Serv & Hlth Improvement,Supporting People,Other Agencies,Third Pp - Block Gross,PJ103,10/24/2014,313078,14677.89,REVENUE,WOMENS AID,100326
NORTH EAST LINCOLNSHIRE COUNCIL,http://statistics.data.gov.uk/id/local-authority/00FC,People,Adult Serv & Hlth Improvement,Supporting People,Other Agencies,Third Pp - Block Gross,PJ103,10/24/2014,313081,3846.08,REVENUE,YORK HOUSING ASSOCIATION LTD,100341
NORTH EAST LINCOLNSHIRE COUNCIL,http://statistics.data.gov.uk/id/local-authority/00FC,People,Adult Serv & Hlth Improvement,Supporting People,Consultancy,Consultancy,PL101,10/30/2014,313438,14063.73,REVENUE,KATE MCALLISTER CONSULTANCY LTD,109506
NORTH EAST LINCOLNSHIRE COUNCIL,http://statistics.data.gov.uk/id/local-authority/00FC,People,Adult Serv & Hlth Improvement,Home Options,Private Contractors,Third Party Prov - Private,PH101,10/31/2014,313380,750,REVENUE,HARBOUR PLACE DAY CENTRE,106725
NORTH EAST LINCOLNSHIRE COUNCIL,http://statistics.data.gov.uk/id/local-authority/00FC,People,Adult Serv & Hlth Improvement,Home Options,Private Contractors,Third Party Prov - Private,PH101,10/15/2014,310431,500,REVENUE,LINCS LETTINGS LTD,104452
NORTH EAST LINCOLNSHIRE COUNCIL,http://statistics.data.gov.uk/id/local-authority/00FC,People,Adult Serv & Hlth Improvement,Home Options,Private Contractors,Third Party Prov - Private,PH101,10/17/2014,310440,264,REVENUE,CARE PLUS GROUP,106467
NORTH EAST LINCOLNSHIRE COUNCIL,http://statistics.data.gov.uk/id/local-authority/00FC,People,Adult Serv & Hlth Improvement,Home Options,Private Contractors,Third Party Prov - Private,PH101,10/28/2014,313092,395.83,REVENUE,LETSAND (GRIMSBY),123288
NORTH EAST LINCOLNSHIRE COUNCIL,http://statistics.data.gov.uk/id/local-authority/00FC,People,Adult Serv & Hlth Improvement,Home Options,Private Contractors,Third Party Prov - Private,PH101,10/9/2014,308616,5050,REVENUE,ABRITAS LTD,102476
NORTH EAST LINCOLNSHIRE COUNCIL,http://statistics.data.gov.uk/id/local-authority/00FC,People,Adult Serv & Hlth Improvement,Home Options,Private Contractors,Third Party Prov - Private,PH101,10/29/2014,313382,250,REVENUE,FREEDOM HOMES PROPERTY SERVICES,128075
NORTH EAST LINCOLNSHIRE COUNCIL,http://statistics.data.gov.uk/id/local-authority/00FC,People,Adult Serv & Hlth Improvement,Home Options,Private Contractors,Third Party Prov - Private,PH101,10/16/2014,310367,500,REVENUE,REDACTED PERSONAL INFORMATION,REDACTED PERSONAL INFORMATION
NORTH EAST LINCOLNSHIRE COUNCIL,http://statistics.data.gov.uk/id/local-authority/00FC,People,Adult Serv & Hlth Improvement,Home Options,Rents,Service Charge,GC102,10/23/2014,312543,407.49,REVENUE,NORTH EAST LINCOLNSHIRE COUNCIL,100894
NORTH EAST LINCOLNSHIRE COUNCIL,http://statistics.data.gov.uk/id/local-authority/00FC,People,Adult Serv & Hlth Improvement,Home Options,Rents,Service Charge,GC102,10/20/2014,311016,466.11,REVENUE,NORTH EAST LINCOLNSHIRE COUNCIL,100894
NORTH EAST LINCOLNSHIRE COUNCIL,http://statistics.data.gov.uk/id/local-authority/00FC,People,Adult Serv & Hlth Improvement,Home Options,Rents,Service Charge,GC102,10/30/2014,313672,507.86,REVENUE,NORTH EAST LINCOLNSHIRE COUNCIL,100894
NORTH EAST LINCOLNSHIRE COUNCIL,http://statistics.data.gov.uk/id/local-authority/00FC,People,Adult Serv & Hlth Improvement,Home Options,Miscellaneous Income,Misc Income - O/Side Scp Vat 4,VG117,10/30/2014,313671,521.2,REVENUE,NORTH EAST LINCOLNSHIRE COUNCIL,100894
NORTH EAST LINCOLNSHIRE COUNCIL,http://statistics.data.gov.uk/id/local-authority/00FC,People,Adult Serv & Hlth Improvement,Home Options,Rents,Rent,GC101,10/15/2014,310835,343.1,REVENUE,REDACTED PERSONAL INFORMATION,REDACTED PERSONAL INFORMATION
NORTH EAST LINCOLNSHIRE COUNCIL,http://statistics.data.gov.uk/id/local-authority/00FC,People,Adult Serv & Hlth Improvement,Home Options,Rents,Rent,GC101,10/14/2014,310433,980,REVENUE,REDACTED PERSONAL INFORMATION,REDACTED PERSONAL INFORMATION
NORTH EAST LINCOLNSHIRE COUNCIL,http://statistics.data.gov.uk/id/local-authority/00FC,People,Adult Serv & Hlth Improvement,Home Options,Rents,Rent,GC101,10/14/2014,310372,490,REVENUE,REDACTED PERSONAL INFORMATION,REDACTED PERSONAL INFORMATION
NORTH EAST LINCOLNSHIRE COUNCIL,http://statistics.data.gov.uk/id/local-authority/00FC,People,Adult Serv & Hlth Improvement,Home Options,Rents,Rent,GC101,10/1/2014,306863,600,REVENUE,REDACTED PERSONAL INFORMATION,REDACTED PERSONAL INFORMATION
NORTH EAST LINCOLNSHIRE COUNCIL,http://statistics.data.gov.uk/id/local-authority/00FC,People,Adult Serv & Hlth Improvement,Home Options,Rents,Rent,GC101,10/6/2014,307866,550,REVENUE,REDACTED PERSONAL INFORMATION,REDACTED PERSONAL INFORMATION
NORTH EAST LINCOLNSHIRE COUNCIL,http://statistics.data.gov.uk/id/local-authority/00FC,People,Adult Serv & Hlth Improvement,Home Options,Rents,Rent,GC101,10/6/2014,306867,350,REVENUE,REDACTED PERSONAL INFORMATION,REDACTED PERSONAL INFORMATION
NORTH EAST LINCOLNSHIRE COUNCIL,http://statistics.data.gov.uk/id/local-authority/00FC,People,Adult Serv & Hlth Improvement,Home Options,Rents,Rent,GC101,10/9/2014,306005,350,REVENUE,REDACTED PERSONAL INFORMATION,REDACTED PERSONAL INFORMATION
NORTH EAST LINCOLNSHIRE COUNCIL,http://statistics.data.gov.uk/id/local-authority/00FC,People,Adult Serv & Hlth Improvement,Home Options,Rents,Rent,GC101,10/9/2014,307864,350,REVENUE,REDACTED PERSONAL INFORMATION,REDACTED PERSONAL INFORMATION
NORTH EAST LINCOLNSHIRE COUNCIL,http://statistics.data.gov.uk/id/local-authority/00FC,People,Adult Serv & Hlth Improvement,Home Options,Rents,Rent,GC101,10/21/2014,311685,554.16,REVENUE,REDACTED PERSONAL INFORMATION,REDACTED PERSONAL INFORMATION
NORTH EAST LINCOLNSHIRE COUNCIL,http://statistics.data.gov.uk/id/local-authority/00FC,People,Adult Serv & Hlth Improvement,Home Options,Rents,Rent,GC101,10/21/2014,311687,262.5,REVENUE,REDACTED PERSONAL INFORMATION,REDACTED PERSONAL INFORMATION
NORTH EAST LINCOLNSHIRE COUNCIL,http://statistics.data.gov.uk/id/local-authority/00FC,People,Adult Serv & Hlth Improvement,Home Options,Rents,Rent,GC101,10/21/2014,311688,408.33,REVENUE,REDACTED PERSONAL INFORMATION,REDACTED PERSONAL INFORMATION
NORTH EAST LINCOLNSHIRE COUNCIL,http://statistics.data.gov.uk/id/local-authority/00FC,People,Adult Serv & Hlth Improvement,Home Options,Rents,Rent,GC101,10/27/2014,311684,408.33,REVENUE,REDACTED PERSONAL INFORMATION,REDACTED PERSONAL INFORMATION
NORTH EAST LINCOLNSHIRE COUNCIL,http://statistics.data.gov.uk/id/local-authority/00FC,People,Adult Serv & Hlth Improvement,Home Options,Rents,Rent,GC101,10/27/2014,311686,408.33,REVENUE,REDACTED PERSONAL INFORMATION,REDACTED PERSONAL INFORMATION
NORTH EAST LINCOLNSHIRE COUNCIL,http://statistics.data.gov.uk/id/local-authority/00FC,People,Adult Serv & Hlth Improvement,Home Options,Rents,Rent,GC101,10/28/2014,312664,420,REVENUE,REDACTED PERSONAL INFORMATION,REDACTED PERSONAL INFORMATION
NORTH EAST LINCOLNSHIRE COUNCIL,http://statistics.data.gov.uk/id/local-authority/00FC,People,Adult Serv & Hlth Improvement,Home Options,Rents,Rent,GC101,10/30/2014,313378,600,REVENUE,REDACTED PERSONAL INFORMATION,REDACTED PERSONAL INFORMATION
NORTH EAST LINCOLNSHIRE COUNCIL,http://statistics.data.gov.uk/id/local-authority/00FC,People,Adult Serv & Hlth Improvement,Home Options,Rents,Rent,GC101,10/31/2014,313337,408.33,REVENUE,REDACTED PERSONAL INFORMATION,REDACTED PERSONAL INFORMATION
NORTH EAST LINCOLNSHIRE COUNCIL,http://statistics.data.gov.uk/id/local-authority/00FC,People,Adult Serv & Hlth Improvement,Home Options,Contributions To Provisions,Bad Debt Provision,LK104,10/24/2014,312530,400,REVENUE,LOVELLE BACONS,103583
NORTH EAST LINCOLNSHIRE COUNCIL,http://statistics.data.gov.uk/id/local-authority/00FC,People,Adult Serv & Hlth Improvement,Home Options,Contributions To Provisions,Bad Debt Provision,LK104,10/17/2014,309585,400,REVENUE,STEVENS PROPERTY MANAGEMENT LTD,127643
NORTH EAST LINCOLNSHIRE COUNCIL,http://statistics.data.gov.uk/id/local-authority/00FC,People,Adult Serv & Hlth Improvement,Home Options,Contributions To Provisions,Bad Debt Provision,LK104,10/21/2014,311694,400,REVENUE,REDACTED PERSONAL INFORMATION,REDACTED PERSONAL INFORMATION
NORTH EAST LINCOLNSHIRE COUNCIL,http://statistics.data.gov.uk/id/local-authority/00FC,People,Adult Serv & Hlth Improvement,Home Options,Contributions To Provisions,Bad Debt Provision,LK104,10/15/2014,310424,300,REVENUE,WILLOW ESTATES,104156
NORTH EAST LINCOLNSHIRE COUNCIL,http://statistics.data.gov.uk/id/local-authority/00FC,People,Adult Serv & Hlth Improvement,Home Options,Contributions To Provisions,Bad Debt Provision,LK104,10/21/2014,311678,400,REVENUE,WILLOW ESTATES,104156
NORTH EAST LINCOLNSHIRE COUNCIL,http://statistics.data.gov.uk/id/local-authority/00FC,People,Adult Serv & Hlth Improvement,Home Options,Consultancy,Consultancy,PL101,10/15/2014,310358,1677,REVENUE,ABRITAS LTD,102476
NORTH EAST LINCOLNSHIRE COUNCIL,http://statistics.data.gov.uk/id/local-authority/00FC,People,Adult Serv & Hlth Improvement,Improved Health Operational,Equip / Furniture / Materials,Health & Safety Supplies,LA116,10/14/2014,310089,322.2,REVENUE,VIKING HARDWARE LTD,101792
NORTH EAST LINCOLNSHIRE COUNCIL,http://statistics.data.gov.uk/id/local-authority/00FC,People,Adult Serv & Hlth Improvement,Improved Health Operational,Equip / Furniture / Materials,Health & Safety Supplies,LA116,10/14/2014,310089,579.6,REVENUE,VIKING HARDWARE LTD,101792
NORTH EAST LINCOLNSHIRE COUNCIL,http://statistics.data.gov.uk/id/local-authority/00FC,People,Adult Serv & Hlth Improvement,Improved Health Operational,Equip / Furniture / Materials,Health & Safety Supplies,LA116,10/14/2014,310089,799.5,REVENUE,VIKING HARDWARE LTD,101792
NORTH EAST LINCOLNSHIRE COUNCIL,http://statistics.data.gov.uk/id/local-authority/00FC,People,Adult Serv & Hlth Improvement,Improved Health Operational,Equip / Furniture / Materials,Health & Safety Supplies,LA116,10/29/2014,313788,274,REVENUE,GREEN OF LINCOLN,100533
NORTH EAST LINCOLNSHIRE COUNCIL,http://statistics.data.gov.uk/id/local-authority/00FC,People,Adult Serv & Hlth Improvement,Improved Health Operational,Equip / Furniture / Materials,Health & Safety Supplies,LA116,10/6/2014,306822,359.94,REVENUE,ARJO MED AB LTD,103268
NORTH EAST LINCOLNSHIRE COUNCIL,http://statistics.data.gov.uk/id/local-authority/00FC,People,Adult Serv & Hlth Improvement,Improved Health Operational,Equip / Furniture / Materials,Health & Safety Supplies,LA116,10/7/2014,300436,359.94,REVENUE,ARJO MED AB LTD,103268
NORTH EAST LINCOLNSHIRE COUNCIL,http://statistics.data.gov.uk/id/local-authority/00FC,People,Adult Serv & Hlth Improvement,Improved Health Operational,Equip / Furniture / Materials,Health & Safety Supplies,LA116,10/7/2014,300436,551.98,REVENUE,ARJO MED AB LTD,103268
NORTH EAST LINCOLNSHIRE COUNCIL,http://statistics.data.gov.uk/id/local-authority/00FC,People,Adult Serv & Hlth Improvement,Improved Health Operational,Equip / Furniture / Materials,Health & Safety Supplies,LA116,10/9/2014,309040,590,REVENUE,CLARK & PARTNERS LTD,101269
NORTH EAST LINCOLNSHIRE COUNCIL,http://statistics.data.gov.uk/id/local-authority/00FC,People,Adult Serv & Hlth Improvement,Improved Health Operational,Equip / Furniture / Materials,Health & Safety Supplies,LA116,10/29/2014,311261,420,REVENUE,LISCLARE LTD,101785
NORTH EAST LINCOLNSHIRE COUNCIL,http://statistics.data.gov.uk/id/local-authority/00FC,People,Adult Serv & Hlth Improvement,Improved Health Operational,Equip / Furniture / Materials,Health & Safety Supplies,LA116,10/22/2014,310913,762.4,REVENUE,PRISM MEDICAL UK,119507
NORTH EAST LINCOLNSHIRE COUNCIL,http://statistics.data.gov.uk/id/local-authority/00FC,People,Adult Serv & Hlth Improvement,Improved Health Operational,Equip / Furniture / Materials,Health & Safety Supplies,LA116,10/14/2014,309029,443.52,REVENUE,PRISM MEDICAL UK,119507
NORTH EAST LINCOLNSHIRE COUNCIL,http://statistics.data.gov.uk/id/local-authority/00FC,People,Adult Serv & Hlth Improvement,Improved Health Operational,Equip / Furniture / Materials,Health & Safety Supplies,LA116,10/16/2014,308429,503,REVENUE,DRIVE MEDICAL,101627
NORTH EAST LINCOLNSHIRE COUNCIL,http://statistics.data.gov.uk/id/local-authority/00FC,People,Adult Serv & Hlth Improvement,Improved Health Operational,Equip / Furniture / Materials,Health & Safety Supplies,LA116,10/9/2014,305588,384,REVENUE,SUNRISE MEDICAL LTD,100990
NORTH EAST LINCOLNSHIRE COUNCIL,http://statistics.data.gov.uk/id/local-authority/00FC,People,Adult Serv & Hlth Improvement,Improved Health Operational,Equip / Furniture / Materials,Health & Safety Supplies,LA116,10/2/2014,307412,379.5,REVENUE,AIDAPT BATHROOMS LTD,101164
NORTH EAST LINCOLNSHIRE COUNCIL,http://statistics.data.gov.uk/id/local-authority/00FC,People,Adult Serv & Hlth Improvement,Improved Health Operational,Equip / Furniture / Materials,Health & Safety Supplies,LA116,10/13/2014,309039,286.9,REVENUE,SIDHIL LTD,101166
NORTH EAST LINCOLNSHIRE COUNCIL,http://statistics.data.gov.uk/id/local-authority/00FC,People,Adult Serv & Hlth Improvement,Improved Health Operational,Equip / Furniture / Materials,Health & Safety Supplies,LA116,10/16/2014,306670,370,REVENUE,NOTTINGHAM REHAB LIMITED,101715
NORTH EAST LINCOLNSHIRE COUNCIL,http://statistics.data.gov.uk/id/local-authority/00FC,People,Adult Serv & Hlth Improvement,Improved Health Operational,Equip / Furniture / Materials,Health & Safety Supplies,LA116,10/9/2014,307822,2375.78,REVENUE,CEFNDY HEALTHCARE,103209
NORTH EAST LINCOLNSHIRE COUNCIL,http://statistics.data.gov.uk/id/local-authority/00FC,People,Adult Serv & Hlth Improvement,Improved Health Operational,Equip / Furniture / Materials,Health & Safety Supplies,LA116,10/15/2014,306669,458,REVENUE,SELECT HEALTHCARE UK LTD,101262
NORTH EAST LINCOLNSHIRE COUNCIL,http://statistics.data.gov.uk/id/local-authority/00FC,People,Adult Serv & Hlth Improvement,Improved Health Operational,Equip / Furniture / Materials,Health & Safety Supplies,LA116,10/15/2014,306669,478,REVENUE,SELECT HEALTHCARE UK LTD,101262
NORTH EAST LINCOLNSHIRE COUNCIL,http://statistics.data.gov.uk/id/local-authority/00FC,People,Adult Serv & Hlth Improvement,Improved Health Operational,Equip / Furniture / Materials,Health & Safety Supplies,LA116,10/15/2014,309581,585,REVENUE,NOTTINGHAM REHAB LIMITED,101715
NORTH EAST LINCOLNSHIRE COUNCIL,http://statistics.data.gov.uk/id/local-authority/00FC,People,Adult Serv & Hlth Improvement,Improved Health Operational,Equip / Furniture / Materials,Health & Safety Supplies,LA116,10/24/2014,312326,350,REVENUE,NOTTINGHAM REHAB LIMITED,101715
NORTH EAST LINCOLNSHIRE COUNCIL,http://statistics.data.gov.uk/id/local-authority/00FC,People,Adult Serv & Hlth Improvement,Improved Health Operational,Equip / Furniture / Materials,Health & Safety Supplies,LA116,10/24/2014,312326,360,REVENUE,NOTTINGHAM REHAB LIMITED,101715
NORTH EAST LINCOLNSHIRE COUNCIL,http://statistics.data.gov.uk/id/local-authority/00FC,People,Adult Serv & Hlth Improvement,Improved Health Operational,Equip / Furniture / Materials,Health & Safety Supplies,LA116,10/21/2014,311492,265,REVENUE,NOTTINGHAM REHAB LIMITED,101715
NORTH EAST LINCOLNSHIRE COUNCIL,http://statistics.data.gov.uk/id/local-authority/00FC,People,Adult Serv & Hlth Improvement,Improved Health Operational,Equip / Furniture / Materials,Health & Safety Supplies,LA116,10/9/2014,309043,1053,REVENUE,CLARK & PARTNERS LTD,101269
NORTH EAST LINCOLNSHIRE COUNCIL,http://statistics.data.gov.uk/id/local-authority/00FC,People,Adult Serv & Hlth Improvement,Improved Health Operational,Equip / Furniture / Materials,Health & Safety Supplies,LA116,10/9/2014,309044,1053.15,REVENUE,CLARK & PARTNERS LTD,101269
NORTH EAST LINCOLNSHIRE COUNCIL,http://statistics.data.gov.uk/id/local-authority/00FC,People,Adult Serv & Hlth Improvement,Improved Health Operational,Equip / Furniture / Materials,Health & Safety Supplies,LA116,10/13/2014,309041,1053.15,REVENUE,CLARK & PARTNERS LTD,101269
NORTH EAST LINCOLNSHIRE COUNCIL,http://statistics.data.gov.uk/id/local-authority/00FC,People,Adult Serv & Hlth Improvement,Improved Health Operational,Equip / Furniture / Materials,Health & Safety Supplies,LA116,10/14/2014,309053,1053.15,REVENUE,CLARK & PARTNERS LTD,101269
NORTH EAST LINCOLNSHIRE COUNCIL,http://statistics.data.gov.uk/id/local-authority/00FC,People,Adult Serv & Hlth Improvement,Improved Health Operational,Equip / Furniture / Materials,Health & Safety Supplies,LA116,10/9/2014,305577,255,REVENUE,NORTHERN HEALTHCARE,120177
NORTH EAST LINCOLNSHIRE COUNCIL,http://statistics.data.gov.uk/id/local-authority/00FC,People,Adult Serv & Hlth Improvement,Improved Health Operational,Equip / Furniture / Materials,Health & Safety Supplies,LA116,10/17/2014,310928,325,REVENUE,GREEN OF LINCOLN,100533
NORTH EAST LINCOLNSHIRE COUNCIL,http://statistics.data.gov.uk/id/local-authority/00FC,People,Adult Serv & Hlth Improvement,Improved Health Operational,Equip / Furniture / Materials,Health & Safety Supplies,LA116,10/6/2014,306098,308,REVENUE,KEY MOBILITY,101985
NORTH EAST LINCOLNSHIRE COUNCIL,http://statistics.data.gov.uk/id/local-authority/00FC,People,Adult Serv & Hlth Improvement,Improved Health Operational,Equip / Furniture / Materials,Health & Safety Supplies,LA116,10/17/2014,310920,467.5,REVENUE,HEAVEY TECH UK,126088
NORTH EAST LINCOLNSHIRE COUNCIL,http://statistics.data.gov.uk/id/local-authority/00FC,People,Adult Serv & Hlth Improvement,Improved Health Operational,Equip / Furniture / Materials,Health & Safety Supplies,LA116,10/31/2014,313785,1414,REVENUE,GREEN OF LINCOLN,100533
NORTH EAST LINCOLNSHIRE COUNCIL,http://statistics.data.gov.uk/id/local-authority/00FC,People,Adult Serv & Hlth Improvement,Improved Health Operational,Equip / Furniture / Materials,Health & Safety Supplies,LA116,10/30/2014,314181,-46,REVENUE,DRIVE MEDICAL,101627
NORTH EAST LINCOLNSHIRE COUNCIL,http://statistics.data.gov.uk/id/local-authority/00FC,People,Adult Serv & Hlth Improvement,Improved Health Operational,Equip / Furniture / Materials,Health & Safety Supplies,LA116,10/29/2014,313239,396,REVENUE,TOTAL HYGIENE LTD,100849
NORTH EAST LINCOLNSHIRE COUNCIL,http://statistics.data.gov.uk/id/local-authority/00FC,People,Adult Serv & Hlth Improvement,Improved Health Operational,Equip / Furniture / Materials,Health & Safety Supplies,LA116,10/15/2014,308946,-6.6,REVENUE,PICKERINGS EUROPE LIMITED,100897
NORTH EAST LINCOLNSHIRE COUNCIL,http://statistics.data.gov.uk/id/local-authority/00FC,People,Adult Serv & Hlth Improvement,Improved Health Operational,Equip / Furniture / Materials,Health & Safety Supplies,LA116,10/29/2014,312693,779.28,REVENUE,PICKERINGS EUROPE LIMITED,100897
NORTH EAST LINCOLNSHIRE COUNCIL,http://statistics.data.gov.uk/id/local-authority/00FC,People,Adult Serv & Hlth Improvement,Improved Health Operational,Equip / Furniture / Materials,Health & Safety Supplies,LA116,10/7/2014,303964,345,REVENUE,SILVALEA LTD,101260
NORTH EAST LINCOLNSHIRE COUNCIL,http://statistics.data.gov.uk/id/local-authority/00FC,People,Adult Serv & Hlth Improvement,Improved Health Operational,Equip / Furniture / Materials,Health & Safety Supplies,LA116,10/6/2014,305712,345,REVENUE,SILVALEA LTD,101260
NORTH EAST LINCOLNSHIRE COUNCIL,http://statistics.data.gov.uk/id/local-authority/00FC,People,Adult Serv & Hlth Improvement,Improved Health Operational,Equip / Furniture / Materials,Health & Safety Supplies,LA116,10/17/2014,310002,500,REVENUE,CENTROBED LTD,105488
NORTH EAST LINCOLNSHIRE COUNCIL,http://statistics.data.gov.uk/id/local-authority/00FC,People,Adult Serv & Hlth Improvement,Improved Health Operational,Equip / Furniture / Materials,Health & Safety Supplies,LA116,10/15/2014,306022,351.44,REVENUE,PICKERINGS EUROPE LIMITED,100897
NORTH EAST LINCOLNSHIRE COUNCIL,http://statistics.data.gov.uk/id/local-authority/00FC,People,Adult Serv & Hlth Improvement,Improved Health Operational,Equip / Furniture / Materials,Health & Safety Supplies,LA116,10/21/2014,311259,367,REVENUE,INVACARE (UK) LTD,101008
NORTH EAST LINCOLNSHIRE COUNCIL,http://statistics.data.gov.uk/id/local-authority/00FC,People,Adult Serv & Hlth Improvement,Improved Health Operational,Equip / Furniture / Materials,Health & Safety Supplies,LA116,10/1/2014,306970,2750,REVENUE,ULTIMATE CARE GROUP LTD,103469
NORTH EAST LINCOLNSHIRE COUNCIL,http://statistics.data.gov.uk/id/local-authority/00FC,People,Adult Serv & Hlth Improvement,Improved Health Operational,Equip / Furniture / Materials,Health & Safety Supplies,LA116,10/1/2014,306969,2750,REVENUE,ULTIMATE CARE GROUP LTD,103469
NORTH EAST LINCOLNSHIRE COUNCIL,http://statistics.data.gov.uk/id/local-authority/00FC,People,Adult Serv & Hlth Improvement,Improved Health Operational,Equip / Furniture / Materials,Health & Safety Supplies,LA116,10/1/2014,306969,560,REVENUE,ULTIMATE CARE GROUP LTD,103469
NORTH EAST LINCOLNSHIRE COUNCIL,http://statistics.data.gov.uk/id/local-authority/00FC,People,Adult Serv & Hlth Improvement,Improved Health Operational,Equip / Furniture / Materials,Health & Safety Supplies,LA116,10/23/2014,312333,560,REVENUE,ULTIMATE CARE GROUP LTD,103469
NORTH EAST LINCOLNSHIRE COUNCIL,http://statistics.data.gov.uk/id/local-authority/00FC,People,Adult Serv & Hlth Improvement,Improved Health Operational,Equip / Furniture / Materials,Health & Safety Supplies,LA116,10/6/2014,306707,522.15,REVENUE,DRIVE MEDICAL,101627
NORTH EAST LINCOLNSHIRE COUNCIL,http://statistics.data.gov.uk/id/local-authority/00FC,People,Adult Serv & Hlth Improvement,Improved Health Operational,Equip / Furniture / Materials,Health & Safety Supplies,LA116,10/2/2014,306411,415.8,REVENUE,NORTHGATE VEHICLE HIRE LTD,109432
NORTH EAST LINCOLNSHIRE COUNCIL,http://statistics.data.gov.uk/id/local-authority/00FC,People,Adult Serv & Hlth Improvement,Improved Health Operational,Equip / Furniture / Materials,Health & Safety Supplies,LA116,10/13/2014,310091,482.4,REVENUE,VIKING HARDWARE LTD,101792
NORTH EAST LINCOLNSHIRE COUNCIL,http://statistics.data.gov.uk/id/local-authority/00FC,People,Adult Serv & Hlth Improvement,Improved Health Operational,Equip / Furniture / Materials,Health & Safety Supplies,LA116,10/1/2014,306368,260.46,REVENUE,CEFNDY HEALTHCARE,103209
NORTH EAST LINCOLNSHIRE COUNCIL,http://statistics.data.gov.uk/id/local-authority/00FC,People,Adult Serv & Hlth Improvement,Lifestyle Services Team,Rents,Room Hire,GC103,10/9/2014,309559,291.5,REVENUE,ST JAMES CHURCHWARDENS MAIN ACCOUNT,106502
NORTH EAST LINCOLNSHIRE COUNCIL,http://statistics.data.gov.uk/id/local-authority/00FC,People,Adult Serv & Hlth Improvement,Lifestyle Services Team,Print Stationery / Gen Off Exp,Advertising,LD104,10/9/2014,309561,1200,REVENUE,LOCAL WORLD LIMITED,118774
NORTH EAST LINCOLNSHIRE COUNCIL,http://statistics.data.gov.uk/id/local-authority/00FC,People,Adult Serv & Hlth Improvement,Lifestyle Services Team,Communications And Computing,Computer S/Ware - Licences,LF103,10/6/2014,308349,5300,REVENUE,NORTH 51 LIMITED,102609
NORTH EAST LINCOLNSHIRE COUNCIL,http://statistics.data.gov.uk/id/local-authority/00FC,People,Adult Serv & Hlth Improvement,Lifestyle Services Team,Miscellaneous Expenses,Medical Supplies And Services,LL109,10/13/2014,310320,473.36,REVENUE,ASDA PHARMACY,104011
NORTH EAST LINCOLNSHIRE COUNCIL,http://statistics.data.gov.uk/id/local-authority/00FC,People,Adult Serv & Hlth Improvement,Lifestyle Services Team,Miscellaneous Expenses,Medical Supplies And Services,LL109,10/13/2014,310328,261.45,REVENUE,L ROWLAND & CO RETAIL,104668
NORTH EAST LINCOLNSHIRE COUNCIL,http://statistics.data.gov.uk/id/local-authority/00FC,People,Adult Serv & Hlth Improvement,Lifestyle Services Team,Miscellaneous Expenses,Medical Supplies And Services,LL109,10/13/2014,310331,356.61,REVENUE,LLOYDS PHARMACY,106385
NORTH EAST LINCOLNSHIRE COUNCIL,http://statistics.data.gov.uk/id/local-authority/00FC,People,Adult Serv & Hlth Improvement,Lifestyle Services Team,Direct Employee Expenses,Agency Staff,EA105,10/27/2014,313412,7200.48,REVENUE,CARE PLUS GROUP,106467
NORTH EAST LINCOLNSHIRE COUNCIL,http://statistics.data.gov.uk/id/local-authority/00FC,People,Adult Serv & Hlth Improvement,Lifestyle Services Team,Direct Employee Expenses,Agency Staff,EA105,10/14/2014,309525,9837.62,REVENUE,VOLUNTARY ACTION NORTH EAST LINCOLNSHIRE,103631
NORTH EAST LINCOLNSHIRE COUNCIL,http://statistics.data.gov.uk/id/local-authority/00FC,People,Adult Serv & Hlth Improvement,Lifestyle Services Team,Private Contractors,Third Party Prov - Private,PH101,10/29/2014,313188,394.31,REVENUE,PELHAM MEDICAL GROUP,104350
NORTH EAST LINCOLNSHIRE COUNCIL,http://statistics.data.gov.uk/id/local-authority/00FC,People,Adult Serv & Hlth Improvement,Lifestyle Services Team,Private Contractors,Third Party Prov - Private,PH101,10/29/2014,313187,858.55,REVENUE,THE ROXTON PRACTICE,104395
NORTH EAST LINCOLNSHIRE COUNCIL,http://statistics.data.gov.uk/id/local-authority/00FC,People,Adult Serv & Hlth Improvement,Developing Healthier Comm,Indirect Employee Expenses,Staff Training,EB122,10/13/2014,309462,250,REVENUE,LUCY APHRAMOR,126143
NORTH EAST LINCOLNSHIRE COUNCIL,http://statistics.data.gov.uk/id/local-authority/00FC,People,Adult Serv & Hlth Improvement,Developing Healthier Comm,Contributions To Provisions,Contributions - Communities,LK101,10/14/2014,310845,1000,REVENUE,ST JAMES SCHOOL,100940
NORTH EAST LINCOLNSHIRE COUNCIL,http://statistics.data.gov.uk/id/local-authority/00FC,People,Adult Serv & Hlth Improvement,Developing Healthier Comm,Contributions To Provisions,Contributions - Communities,LK101,10/27/2014,312442,400,REVENUE,HOWARD GROVE GARDENING GROUP,109343
NORTH EAST LINCOLNSHIRE COUNCIL,http://statistics.data.gov.uk/id/local-authority/00FC,People,Adult Serv & Hlth Improvement,Developing Healthier Comm,Contributions To Provisions,Contributions - Communities,LK101,10/14/2014,310860,550,REVENUE,WOODLANDS PRIMARY SCHOOL,119683
NORTH EAST LINCOLNSHIRE COUNCIL,http://statistics.data.gov.uk/id/local-authority/00FC,People,Adult Serv & Hlth Improvement,Developing Healthier Comm,Contributions To Provisions,Contributions - Communities,LK101,10/13/2014,310094,1000,REVENUE,OUTDOOR LEARNING SCHOOLS,127918
NORTH EAST LINCOLNSHIRE COUNCIL,http://statistics.data.gov.uk/id/local-authority/00FC,People,Adult Serv & Hlth Improvement,Developing Healthier Comm,Indirect Employee Expenses,Staff Training,EB122,10/27/2014,311720,408.2,REVENUE,SUE SMITH,102975
NORTH EAST LINCOLNSHIRE COUNCIL,http://statistics.data.gov.uk/id/local-authority/00FC,People,Childrens Services,School Access Governor Student,Contract Hire-Operating Leases,Vehicles - Contract Hire,JC101,10/15/2014,310398,1359.6,REVENUE,REDACTED PERSONAL INFORMATION,REDACTED PERSONAL INFORMATION
NORTH EAST LINCOLNSHIRE COUNCIL,http://statistics.data.gov.uk/id/local-authority/00FC,People,Childrens Services,School Access Governor Student,Contract Hire-Operating Leases,Vehicles - Contract Hire,JC101,10/14/2014,309600,1732.5,REVENUE,AMVALE LIMITED,101030
NORTH EAST LINCOLNSHIRE COUNCIL,http://statistics.data.gov.uk/id/local-authority/00FC,People,Childrens Services,School Access Governor Student,Contract Hire-Operating Leases,Vehicles - Contract Hire,JC101,10/15/2014,310401,574.6,REVENUE,REDACTED PERSONAL INFORMATION,REDACTED PERSONAL INFORMATION
NORTH EAST LINCOLNSHIRE COUNCIL,http://statistics.data.gov.uk/id/local-authority/00FC,People,Childrens Services,School Access Governor Student,Contract Hire-Operating Leases,Vehicles - Contract Hire,JC101,10/9/2014,308599,798,REVENUE,WHEELCHAIR FRIENDLY TAXI SERVICE,101915
NORTH EAST LINCOLNSHIRE COUNCIL,http://statistics.data.gov.uk/id/local-authority/00FC,People,Childrens Services,School Access Governor Student,Contract Hire-Operating Leases,Vehicles - Contract Hire,JC101,10/15/2014,309499,467,REVENUE,AA RADIO CARS LTD,101222
NORTH EAST LINCOLNSHIRE COUNCIL,http://statistics.data.gov.uk/id/local-authority/00FC,People,Childrens Services,School Access Governor Student,Contract Hire-Operating Leases,Vehicles - Contract Hire,JC101,10/23/2014,312085,276.75,REVENUE,REVELLS TAXIS (ED/SOC SERV),100559
NORTH EAST LINCOLNSHIRE COUNCIL,http://statistics.data.gov.uk/id/local-authority/00FC,People,Childrens Services,School Access Governor Student,Contract Hire-Operating Leases,Vehicles - Contract Hire,JC101,10/23/2014,312086,398.75,REVENUE,REVELLS TAXIS (ED/SOC SERV),100559
NORTH EAST LINCOLNSHIRE COUNCIL,http://statistics.data.gov.uk/id/local-authority/00FC,People,Childrens Services,School Access Governor Student,Contract Hire-Operating Leases,Vehicles - Contract Hire,JC101,10/23/2014,312084,378.6,REVENUE,REVELLS TAXIS (ED/SOC SERV),100559
NORTH EAST LINCOLNSHIRE COUNCIL,http://statistics.data.gov.uk/id/local-authority/00FC,People,Childrens Services,School Access Governor Student,Contract Hire-Operating Leases,Vehicles - Contract Hire,JC101,10/9/2014,308600,857,REVENUE,WHEELCHAIR FRIENDLY TAXI SERVICE,101915
NORTH EAST LINCOLNSHIRE COUNCIL,http://statistics.data.gov.uk/id/local-authority/00FC,People,Childrens Services,School Access Governor Student,Contract Hire-Operating Leases,Vehicles - Contract Hire,JC101,10/15/2014,309508,780,REVENUE,MINICABS CLEETHORPES (LINCS) LTD,102124
NORTH EAST LINCOLNSHIRE COUNCIL,http://statistics.data.gov.uk/id/local-authority/00FC,People,Childrens Services,School Access Governor Student,Contract Hire-Operating Leases,Vehicles - Contract Hire,JC101,10/15/2014,309505,829,REVENUE,AA RADIO CARS LTD,101222
NORTH EAST LINCOLNSHIRE COUNCIL,http://statistics.data.gov.uk/id/local-authority/00FC,People,Childrens Services,School Access Governor Student,Contract Hire-Operating Leases,Vehicles - Contract Hire,JC101,10/24/2014,312382,979.2,REVENUE,REVELLS TAXIS (ED/SOC SERV),100559
NORTH EAST LINCOLNSHIRE COUNCIL,http://statistics.data.gov.uk/id/local-authority/00FC,People,Childrens Services,School Access Governor Student,Contract Hire-Operating Leases,Vehicles - Contract Hire,JC101,10/23/2014,312091,816,REVENUE,REVELLS TAXIS (ED/SOC SERV),100559
NORTH EAST LINCOLNSHIRE COUNCIL,http://statistics.data.gov.uk/id/local-authority/00FC,People,Childrens Services,School Access Governor Student,Contract Hire-Operating Leases,Vehicles - Contract Hire,JC101,10/15/2014,309619,612,REVENUE,MINICABS CLEETHORPES (LINCS) LTD,102124
NORTH EAST LINCOLNSHIRE COUNCIL,http://statistics.data.gov.uk/id/local-authority/00FC,People,Childrens Services,School Access Governor Student,Contract Hire-Operating Leases,Vehicles - Contract Hire,JC101,10/9/2014,309308,518,REVENUE,COXONS CARS LIMITED,100578
NORTH EAST LINCOLNSHIRE COUNCIL,http://statistics.data.gov.uk/id/local-authority/00FC,People,Childrens Services,School Access Governor Student,Contract Hire-Operating Leases,Vehicles - Contract Hire,JC101,10/14/2014,309327,378.4,REVENUE,REDACTED PERSONAL INFORMATION,REDACTED PERSONAL INFORMATION
NORTH EAST LINCOLNSHIRE COUNCIL,http://statistics.data.gov.uk/id/local-authority/00FC,People,Childrens Services,School Access Governor Student,Contract Hire-Operating Leases,Vehicles - Contract Hire,JC101,10/9/2014,309242,513,REVENUE,COXONS CARS LIMITED,100578
NORTH EAST LINCOLNSHIRE COUNCIL,http://statistics.data.gov.uk/id/local-authority/00FC,People,Childrens Services,School Access Governor Student,Contract Hire-Operating Leases,Vehicles - Contract Hire,JC101,10/23/2014,312083,336,REVENUE,REVELLS TAXIS (ED/SOC SERV),100559
NORTH EAST LINCOLNSHIRE COUNCIL,http://statistics.data.gov.uk/id/local-authority/00FC,People,Childrens Services,School Access Governor Student,Contract Hire-Operating Leases,Vehicles - Contract Hire,JC101,10/13/2014,309307,377.55,REVENUE,COXONS CARS LIMITED,100578
NORTH EAST LINCOLNSHIRE COUNCIL,http://statistics.data.gov.uk/id/local-authority/00FC,People,Childrens Services,School Access Governor Student,Contract Hire-Operating Leases,Vehicles - Contract Hire,JC101,10/23/2014,312314,374,REVENUE,REVELLS TAXIS (ED/SOC SERV),100559
NORTH EAST LINCOLNSHIRE COUNCIL,http://statistics.data.gov.uk/id/local-authority/00FC,People,Childrens Services,School Access Governor Student,Contract Hire-Operating Leases,Vehicles - Contract Hire,JC101,10/9/2014,309344,297,REVENUE,COXONS CARS LIMITED,100578
NORTH EAST LINCOLNSHIRE COUNCIL,http://statistics.data.gov.uk/id/local-authority/00FC,People,Childrens Services,School Access Governor Student,Contract Hire-Operating Leases,Vehicles - Contract Hire,JC101,10/23/2014,312090,277.4,REVENUE,REVELLS TAXIS (ED/SOC SERV),100559
NORTH EAST LINCOLNSHIRE COUNCIL,http://statistics.data.gov.uk/id/local-authority/00FC,People,Childrens Services,School Access Governor Student,Contract Hire-Operating Leases,Vehicles - Contract Hire,JC101,10/23/2014,312306,279.6,REVENUE,REVELLS TAXIS (ED/SOC SERV),100559
NORTH EAST LINCOLNSHIRE COUNCIL,http://statistics.data.gov.uk/id/local-authority/00FC,People,Childrens Services,School Access Governor Student,Contract Hire-Operating Leases,Vehicles - Contract Hire,JC101,10/23/2014,312305,319.2,REVENUE,REVELLS TAXIS (ED/SOC SERV),100559
NORTH EAST LINCOLNSHIRE COUNCIL,http://statistics.data.gov.uk/id/local-authority/00FC,People,Childrens Services,School Access Governor Student,Contract Hire-Operating Leases,Vehicles - Contract Hire,JC101,10/15/2014,310897,660,REVENUE,LINKS TAXIS,100546
NORTH EAST LINCOLNSHIRE COUNCIL,http://statistics.data.gov.uk/id/local-authority/00FC,People,Childrens Services,School Access Governor Student,Contract Hire-Operating Leases,Vehicles - Contract Hire,JC101,10/17/2014,311232,406,REVENUE,LINKS TAXIS,100546
NORTH EAST LINCOLNSHIRE COUNCIL,http://statistics.data.gov.uk/id/local-authority/00FC,People,Childrens Services,School Access Governor Student,Contract Hire-Operating Leases,Vehicles - Contract Hire,JC101,10/24/2014,312593,940,REVENUE,LINKS TAXIS,100546
NORTH EAST LINCOLNSHIRE COUNCIL,http://statistics.data.gov.uk/id/local-authority/00FC,People,Childrens Services,School Access Governor Student,Private Contractors,Concessionary Fares,PH104,10/30/2014,313155,1967.8,REVENUE,STAGECOACH SERVICES,101404
NORTH EAST LINCOLNSHIRE COUNCIL,http://statistics.data.gov.uk/id/local-authority/00FC,People,Childrens Services,School Access Governor Student,Contract Hire-Operating Leases,Vehicles - Contract Hire,JC101,10/15/2014,310881,570,REVENUE,LINKS TAXIS,100546
NORTH EAST LINCOLNSHIRE COUNCIL,http://statistics.data.gov.uk/id/local-authority/00FC,People,Childrens Services,School Access Governor Student,Contract Hire-Operating Leases,Vehicles - Contract Hire,JC101,10/15/2014,310408,1140,REVENUE,MINICABS CLEETHORPES (LINCS) LTD,102124
NORTH EAST LINCOLNSHIRE COUNCIL,http://statistics.data.gov.uk/id/local-authority/00FC,People,Childrens Services,School Access Governor Student,Contract Hire-Operating Leases,Vehicles - Contract Hire,JC101,10/15/2014,310404,1995,REVENUE,AMVALE LIMITED,101030
NORTH EAST LINCOLNSHIRE COUNCIL,http://statistics.data.gov.uk/id/local-authority/00FC,People,Childrens Services,School Access Governor Student,Contract Hire-Operating Leases,Vehicles - Contract Hire,JC101,10/14/2014,310406,2185,REVENUE,AMVALE LIMITED,101030
NORTH EAST LINCOLNSHIRE COUNCIL,http://statistics.data.gov.uk/id/local-authority/00FC,People,Childrens Services,School Access Governor Student,Contract Hire-Operating Leases,Vehicles - Contract Hire,JC101,10/15/2014,310391,2185,REVENUE,AMVALE LIMITED,101030
NORTH EAST LINCOLNSHIRE COUNCIL,http://statistics.data.gov.uk/id/local-authority/00FC,People,Childrens Services,School Access Governor Student,Contract Hire-Operating Leases,Vehicles - Contract Hire,JC101,10/9/2014,308596,1120,REVENUE,REDACTED PERSONAL INFORMATION,REDACTED PERSONAL INFORMATION
NORTH EAST LINCOLNSHIRE COUNCIL,http://statistics.data.gov.uk/id/local-authority/00FC,People,Childrens Services,School Access Governor Student,Contract Hire-Operating Leases,Vehicles - Contract Hire,JC101,10/9/2014,308591,1400,REVENUE,REDACTED PERSONAL INFORMATION,REDACTED PERSONAL INFORMATION
NORTH EAST LINCOLNSHIRE COUNCIL,http://statistics.data.gov.uk/id/local-authority/00FC,People,Childrens Services,School Access Governor Student,Contract Hire-Operating Leases,Vehicles - Contract Hire,JC101,10/15/2014,310402,2983,REVENUE,SHERWOOD TRAVEL,100868
NORTH EAST LINCOLNSHIRE COUNCIL,http://statistics.data.gov.uk/id/local-authority/00FC,People,Childrens Services,School Access Governor Student,Contract Hire-Operating Leases,Vehicles - Contract Hire,JC101,10/16/2014,310400,3021,REVENUE,FISHERS OF GRIMSBY,111965
NORTH EAST LINCOLNSHIRE COUNCIL,http://statistics.data.gov.uk/id/local-authority/00FC,People,Childrens Services,School Access Governor Student,Contract Hire-Operating Leases,Vehicles - Contract Hire,JC101,10/13/2014,309656,2945,REVENUE,AMVALE LIMITED,101030
NORTH EAST LINCOLNSHIRE COUNCIL,http://statistics.data.gov.uk/id/local-authority/00FC,People,Childrens Services,School Access Governor Student,Contract Hire-Operating Leases,Vehicles - Contract Hire,JC101,10/14/2014,309623,2993.45,REVENUE,COOPERS TOURS (LINCS) LTD,111878
NORTH EAST LINCOLNSHIRE COUNCIL,http://statistics.data.gov.uk/id/local-authority/00FC,People,Childrens Services,School Access Governor Student,Contract Hire-Operating Leases,Vehicles - Contract Hire,JC101,10/14/2014,309621,2945,REVENUE,AMVALE LIMITED,101030
NORTH EAST LINCOLNSHIRE COUNCIL,http://statistics.data.gov.uk/id/local-authority/00FC,People,Childrens Services,School Access Governor Student,Contract Hire-Operating Leases,Vehicles - Contract Hire,JC101,10/21/2014,310880,494,REVENUE,LINKS TAXIS,100546
NORTH EAST LINCOLNSHIRE COUNCIL,http://statistics.data.gov.uk/id/local-authority/00FC,People,Childrens Services,School Access Governor Student,Contract Hire-Operating Leases,Vehicles - Contract Hire,JC101,10/9/2014,309309,313.5,REVENUE,COXONS CARS LIMITED,100578
NORTH EAST LINCOLNSHIRE COUNCIL,http://statistics.data.gov.uk/id/local-authority/00FC,People,Childrens Services,School Access Governor Student,Contract Hire-Operating Leases,Vehicles - Contract Hire,JC101,10/13/2014,308592,3864,REVENUE,MILLMAN COACHES,100700
NORTH EAST LINCOLNSHIRE COUNCIL,http://statistics.data.gov.uk/id/local-authority/00FC,People,Childrens Services,School Access Governor Student,Contract Hire-Operating Leases,Vehicles - Contract Hire,JC101,10/13/2014,309340,436.8,REVENUE,COXONS CARS LIMITED,100578
NORTH EAST LINCOLNSHIRE COUNCIL,http://statistics.data.gov.uk/id/local-authority/00FC,People,Childrens Services,School Access Governor Student,Private Contractors,Concessionary Fares,PH104,10/30/2014,313155,2858,REVENUE,STAGECOACH SERVICES,101404
NORTH EAST LINCOLNSHIRE COUNCIL,http://statistics.data.gov.uk/id/local-authority/00FC,People,Childrens Services,School Access Governor Student,Contract Hire-Operating Leases,Vehicles - Contract Hire,JC101,10/9/2014,309297,1160,REVENUE,AA RADIO CARS LTD,101222
NORTH EAST LINCOLNSHIRE COUNCIL,http://statistics.data.gov.uk/id/local-authority/00FC,People,Childrens Services,School Access Governor Student,Contract Hire-Operating Leases,Vehicles - Contract Hire,JC101,10/24/2014,312600,990,REVENUE,LINKS TAXIS,100546
NORTH EAST LINCOLNSHIRE COUNCIL,http://statistics.data.gov.uk/id/local-authority/00FC,People,Childrens Services,School Access Governor Student,Contract Hire-Operating Leases,Vehicles - Contract Hire,JC101,10/28/2014,312599,1628,REVENUE,LINKS TAXIS,100546
NORTH EAST LINCOLNSHIRE COUNCIL,http://statistics.data.gov.uk/id/local-authority/00FC,People,Childrens Services,School Access Governor Student,Contract Hire-Operating Leases,Vehicles - Contract Hire,JC101,10/15/2014,310883,532,REVENUE,LINKS TAXIS,100546
NORTH EAST LINCOLNSHIRE COUNCIL,http://statistics.data.gov.uk/id/local-authority/00FC,People,Childrens Services,School Access Governor Student,Contract Hire-Operating Leases,Vehicles - Contract Hire,JC101,10/21/2014,310882,456,REVENUE,LINKS TAXIS,100546
NORTH EAST LINCOLNSHIRE COUNCIL,http://statistics.data.gov.uk/id/local-authority/00FC,People,Childrens Services,School Access Governor Student,Contract Hire-Operating Leases,Vehicles - Contract Hire,JC101,10/30/2014,313145,532,REVENUE,AA RADIO CARS LTD,101222
NORTH EAST LINCOLNSHIRE COUNCIL,http://statistics.data.gov.uk/id/local-authority/00FC,People,Childrens Services,School Access Governor Student,Contract Hire-Operating Leases,Vehicles - Contract Hire,JC101,10/9/2014,309305,456,REVENUE,COXONS CARS LIMITED,100578
NORTH EAST LINCOLNSHIRE COUNCIL,http://statistics.data.gov.uk/id/local-authority/00FC,People,Childrens Services,School Access Governor Student,Contract Hire-Operating Leases,Vehicles - Contract Hire,JC101,10/15/2014,310899,532,REVENUE,LINKS TAXIS,100546
NORTH EAST LINCOLNSHIRE COUNCIL,http://statistics.data.gov.uk/id/local-authority/00FC,People,Childrens Services,School Access Governor Student,Contract Hire-Operating Leases,Vehicles - Contract Hire,JC101,10/15/2014,310901,684,REVENUE,LINKS TAXIS,100546
NORTH EAST LINCOLNSHIRE COUNCIL,http://statistics.data.gov.uk/id/local-authority/00FC,People,Childrens Services,School Access Governor Student,Contract Hire-Operating Leases,Vehicles - Contract Hire,JC101,10/13/2014,309654,2622,REVENUE,AMVALE LIMITED,101030
NORTH EAST LINCOLNSHIRE COUNCIL,http://statistics.data.gov.uk/id/local-authority/00FC,People,Childrens Services,School Access Governor Student,Contract Hire-Operating Leases,Vehicles - Contract Hire,JC101,10/14/2014,309590,1689.1,REVENUE,AMVALE LIMITED,101030
NORTH EAST LINCOLNSHIRE COUNCIL,http://statistics.data.gov.uk/id/local-authority/00FC,People,Childrens Services,School Access Governor Student,Contract Hire-Operating Leases,Vehicles - Contract Hire,JC101,10/17/2014,311233,950,REVENUE,LINKS TAXIS,100546
NORTH EAST LINCOLNSHIRE COUNCIL,http://statistics.data.gov.uk/id/local-authority/00FC,People,Childrens Services,School Access Governor Student,Contract Hire-Operating Leases,Vehicles - Contract Hire,JC101,10/17/2014,309544,820,REVENUE,AMVALE LIMITED,101030
NORTH EAST LINCOLNSHIRE COUNCIL,http://statistics.data.gov.uk/id/local-authority/00FC,People,Childrens Services,School Access Governor Student,Contract Hire-Operating Leases,Vehicles - Contract Hire,JC101,10/15/2014,309485,820,REVENUE,AMVALE LIMITED,101030
NORTH EAST LINCOLNSHIRE COUNCIL,http://statistics.data.gov.uk/id/local-authority/00FC,People,Childrens Services,School Access Governor Student,Contract Hire-Operating Leases,Vehicles - Contract Hire,JC101,10/17/2014,309493,820,REVENUE,AMVALE LIMITED,101030
NORTH EAST LINCOLNSHIRE COUNCIL,http://statistics.data.gov.uk/id/local-authority/00FC,People,Childrens Services,School Access Governor Student,Contract Hire-Operating Leases,Vehicles - Contract Hire,JC101,10/17/2014,310915,760,REVENUE,LINKS TAXIS,100546
NORTH EAST LINCOLNSHIRE COUNCIL,http://statistics.data.gov.uk/id/local-authority/00FC,People,Childrens Services,School Access Governor Student,Contract Hire-Operating Leases,Vehicles - Contract Hire,JC101,10/15/2014,309620,798,REVENUE,MINICABS CLEETHORPES (LINCS) LTD,102124
NORTH EAST LINCOLNSHIRE COUNCIL,http://statistics.data.gov.uk/id/local-authority/00FC,People,Childrens Services,School Access Governor Student,Contract Hire-Operating Leases,Vehicles - Contract Hire,JC101,10/28/2014,313425,888,REVENUE,LINKS TAXIS,100546
NORTH EAST LINCOLNSHIRE COUNCIL,http://statistics.data.gov.uk/id/local-authority/00FC,People,Childrens Services,School Access Governor Student,Contract Hire-Operating Leases,Vehicles - Contract Hire,JC101,10/13/2014,309339,531,REVENUE,COXONS CARS LIMITED,100578
NORTH EAST LINCOLNSHIRE COUNCIL,http://statistics.data.gov.uk/id/local-authority/00FC,People,Childrens Services,School Access Governor Student,Contract Hire-Operating Leases,Vehicles - Contract Hire,JC101,10/17/2014,311231,855,REVENUE,LINKS TAXIS,100546
NORTH EAST LINCOLNSHIRE COUNCIL,http://statistics.data.gov.uk/id/local-authority/00FC,People,Childrens Services,School Access Governor Student,Contract Hire-Operating Leases,Vehicles - Contract Hire,JC101,10/13/2014,309298,399,REVENUE,AA RADIO CARS LTD,101222
NORTH EAST LINCOLNSHIRE COUNCIL,http://statistics.data.gov.uk/id/local-authority/00FC,People,Childrens Services,School Access Governor Student,Contract Hire-Operating Leases,Vehicles - Contract Hire,JC101,10/15/2014,310887,840,REVENUE,LINKS TAXIS,100546
NORTH EAST LINCOLNSHIRE COUNCIL,http://statistics.data.gov.uk/id/local-authority/00FC,People,Childrens Services,School Access Governor Student,Contract Hire-Operating Leases,Vehicles - Contract Hire,JC101,10/21/2014,310886,807.5,REVENUE,LINKS TAXIS,100546
NORTH EAST LINCOLNSHIRE COUNCIL,http://statistics.data.gov.uk/id/local-authority/00FC,People,Childrens Services,School Access Governor Student,Contract Hire-Operating Leases,Vehicles - Contract Hire,JC101,10/17/2014,311230,913,REVENUE,LINKS TAXIS,100546
NORTH EAST LINCOLNSHIRE COUNCIL,http://statistics.data.gov.uk/id/local-authority/00FC,People,Childrens Services,School Access Governor Student,Contract Hire-Operating Leases,Vehicles - Contract Hire,JC101,10/14/2014,309622,1406,REVENUE,MINICABS CLEETHORPES (LINCS) LTD,102124
NORTH EAST LINCOLNSHIRE COUNCIL,http://statistics.data.gov.uk/id/local-authority/00FC,People,Childrens Services,School Access Governor Student,Contract Hire-Operating Leases,Vehicles - Contract Hire,JC101,10/15/2014,310898,1788,REVENUE,LINKS TAXIS,100546
NORTH EAST LINCOLNSHIRE COUNCIL,http://statistics.data.gov.uk/id/local-authority/00FC,People,Childrens Services,School Access Governor Student,Contract Hire-Operating Leases,Vehicles - Contract Hire,JC101,10/15/2014,309624,2337,REVENUE,MINICABS CLEETHORPES (LINCS) LTD,102124
NORTH EAST LINCOLNSHIRE COUNCIL,http://statistics.data.gov.uk/id/local-authority/00FC,People,Childrens Services,School Access Governor Student,Contract Hire-Operating Leases,Vehicles - Contract Hire,JC101,10/14/2014,309600,3517.5,REVENUE,AMVALE LIMITED,101030
NORTH EAST LINCOLNSHIRE COUNCIL,http://statistics.data.gov.uk/id/local-authority/00FC,People,Childrens Services,School Access Governor Student,Contract Hire-Operating Leases,Vehicles - Contract Hire,JC101,10/9/2014,309306,439.88,REVENUE,COXONS CARS LIMITED,100578
NORTH EAST LINCOLNSHIRE COUNCIL,http://statistics.data.gov.uk/id/local-authority/00FC,People,Childrens Services,School Access Governor Student,Contract Hire-Operating Leases,Vehicles - Contract Hire,JC101,10/14/2014,309612,1998,REVENUE,AMVALE LIMITED,101030
NORTH EAST LINCOLNSHIRE COUNCIL,http://statistics.data.gov.uk/id/local-authority/00FC,People,Childrens Services,School Access Governor Student,Contract Hire-Operating Leases,Vehicles - Contract Hire,JC101,10/15/2014,309625,741,REVENUE,MINICABS CLEETHORPES (LINCS) LTD,102124
NORTH EAST LINCOLNSHIRE COUNCIL,http://statistics.data.gov.uk/id/local-authority/00FC,People,Childrens Services,School Access Governor Student,Contract Hire-Operating Leases,Vehicles - Contract Hire,JC101,10/27/2014,311789,665,REVENUE,LINKS TAXIS,100546
NORTH EAST LINCOLNSHIRE COUNCIL,http://statistics.data.gov.uk/id/local-authority/00FC,People,Childrens Services,School Access Governor Student,Contract Hire-Operating Leases,Vehicles - Contract Hire,JC101,10/14/2014,309627,1083,REVENUE,MINICABS CLEETHORPES (LINCS) LTD,102124
NORTH EAST LINCOLNSHIRE COUNCIL,http://statistics.data.gov.uk/id/local-authority/00FC,People,Childrens Services,School Access Governor Student,Contract Hire-Operating Leases,Vehicles - Contract Hire,JC101,10/27/2014,311780,900,REVENUE,LINKS TAXIS,100546
NORTH EAST LINCOLNSHIRE COUNCIL,http://statistics.data.gov.uk/id/local-authority/00FC,People,Childrens Services,School Access Governor Student,Contract Hire-Operating Leases,Vehicles - Contract Hire,JC101,10/27/2014,311778,600,REVENUE,LINKS TAXIS,100546
NORTH EAST LINCOLNSHIRE COUNCIL,http://statistics.data.gov.uk/id/local-authority/00FC,People,Childrens Services,School Access Governor Student,Contract Hire-Operating Leases,Vehicles - Contract Hire,JC101,10/9/2014,309294,774,REVENUE,AA RADIO CARS LTD,101222
NORTH EAST LINCOLNSHIRE COUNCIL,http://statistics.data.gov.uk/id/local-authority/00FC,People,Childrens Services,School Access Governor Student,Contract Hire-Operating Leases,Vehicles - Contract Hire,JC101,10/24/2014,312336,320,REVENUE,REVELLS TAXIS (ED/SOC SERV),100559
NORTH EAST LINCOLNSHIRE COUNCIL,http://statistics.data.gov.uk/id/local-authority/00FC,People,Childrens Services,School Access Governor Student,Contract Hire-Operating Leases,Vehicles - Contract Hire,JC101,10/15/2014,310878,2100,REVENUE,LINKS TAXIS,100546
NORTH EAST LINCOLNSHIRE COUNCIL,http://statistics.data.gov.uk/id/local-authority/00FC,People,Childrens Services,School Access Governor Student,Contract Hire-Operating Leases,Vehicles - Contract Hire,JC101,10/9/2014,308593,2850,REVENUE,MILLMAN COACHES,100700
NORTH EAST LINCOLNSHIRE COUNCIL,http://statistics.data.gov.uk/id/local-authority/00FC,People,Childrens Services,School Access Governor Student,Contract Hire-Operating Leases,Vehicles - Contract Hire,JC101,10/9/2014,308598,2308.5,REVENUE,GRIMSBY MINIBUSES LTD,121524
NORTH EAST LINCOLNSHIRE COUNCIL,http://statistics.data.gov.uk/id/local-authority/00FC,People,Childrens Services,School Access Governor Student,Contract Hire-Operating Leases,Vehicles - Contract Hire,JC101,10/13/2014,308602,2280,REVENUE,GRIMSBY MINIBUSES LTD,121524
NORTH EAST LINCOLNSHIRE COUNCIL,http://statistics.data.gov.uk/id/local-authority/00FC,People,Childrens Services,School Access Governor Student,Contract Hire-Operating Leases,Vehicles - Contract Hire,JC101,10/23/2014,312304,360.8,REVENUE,REVELLS TAXIS (ED/SOC SERV),100559
NORTH EAST LINCOLNSHIRE COUNCIL,http://statistics.data.gov.uk/id/local-authority/00FC,People,Childrens Services,School Access Governor Student,Contract Hire-Operating Leases,Vehicles - Contract Hire,JC101,10/21/2014,310875,988,REVENUE,LINKS TAXIS,100546
NORTH EAST LINCOLNSHIRE COUNCIL,http://statistics.data.gov.uk/id/local-authority/00FC,People,Childrens Services,School Access Governor Student,Contract Hire-Operating Leases,Vehicles - Contract Hire,JC101,10/15/2014,309503,651,REVENUE,COXONS CARS LIMITED,100578
NORTH EAST LINCOLNSHIRE COUNCIL,http://statistics.data.gov.uk/id/local-authority/00FC,People,Childrens Services,School Access Governor Student,Contract Hire-Operating Leases,Vehicles - Contract Hire,JC101,10/9/2014,309333,1710,REVENUE,HANSONS AIRPORT EXPRESS,111879
NORTH EAST LINCOLNSHIRE COUNCIL,http://statistics.data.gov.uk/id/local-authority/00FC,People,Childrens Services,School Access Governor Student,Contract Hire-Operating Leases,Vehicles - Contract Hire,JC101,10/9/2014,308597,2451,REVENUE,THE BUS RUN,101522
NORTH EAST LINCOLNSHIRE COUNCIL,http://statistics.data.gov.uk/id/local-authority/00FC,People,Childrens Services,School Access Governor Student,Contract Hire-Operating Leases,Vehicles - Contract Hire,JC101,10/23/2014,312160,824.6,REVENUE,LINKS TAXIS,100546
NORTH EAST LINCOLNSHIRE COUNCIL,http://statistics.data.gov.uk/id/local-authority/00FC,People,Childrens Services,School Access Governor Student,Contract Hire-Operating Leases,Vehicles - Contract Hire,JC101,10/31/2014,313361,601.35,REVENUE,REVELLS TAXIS (ED/SOC SERV),100559
NORTH EAST LINCOLNSHIRE COUNCIL,http://statistics.data.gov.uk/id/local-authority/00FC,People,Childrens Services,School Access Governor Student,Contract Hire-Operating Leases,Vehicles - Contract Hire,JC101,10/9/2014,308601,1178,REVENUE,WHEELCHAIR FRIENDLY TAXI SERVICE,101915
NORTH EAST LINCOLNSHIRE COUNCIL,http://statistics.data.gov.uk/id/local-authority/00FC,People,Childrens Services,School Access Governor Student,Contract Hire-Operating Leases,Vehicles - Contract Hire,JC101,10/15/2014,309618,1330,REVENUE,MINICABS CLEETHORPES (LINCS) LTD,102124
NORTH EAST LINCOLNSHIRE COUNCIL,http://statistics.data.gov.uk/id/local-authority/00FC,People,Childrens Services,School Access Governor Student,Contract Hire-Operating Leases,Vehicles - Contract Hire,JC101,10/13/2014,309299,532,REVENUE,AA RADIO CARS LTD,101222
NORTH EAST LINCOLNSHIRE COUNCIL,http://statistics.data.gov.uk/id/local-authority/00FC,People,Childrens Services,School Access Governor Student,Contract Hire-Operating Leases,Vehicles - Contract Hire,JC101,10/27/2014,312504,988,REVENUE,AA RADIO CARS LTD,101222
NORTH EAST LINCOLNSHIRE COUNCIL,http://statistics.data.gov.uk/id/local-authority/00FC,People,Childrens Services,School Access Governor Student,Contract Hire-Operating Leases,Vehicles - Contract Hire,JC101,10/28/2014,313234,-532,REVENUE,AA RADIO CARS LTD,101222
NORTH EAST LINCOLNSHIRE COUNCIL,http://statistics.data.gov.uk/id/local-authority/00FC,People,Childrens Services,School Access Governor Student,Contract Hire-Operating Leases,Vehicles - Contract Hire,JC101,10/17/2014,310876,1710,REVENUE,LINKS TAXIS,100546
NORTH EAST LINCOLNSHIRE COUNCIL,http://statistics.data.gov.uk/id/local-authority/00FC,People,Childrens Services,School Access Governor Student,Contract Hire-Operating Leases,Vehicles - Contract Hire,JC101,10/13/2014,309304,290.98,REVENUE,COXONS CARS LIMITED,100578
NORTH EAST LINCOLNSHIRE COUNCIL,http://statistics.data.gov.uk/id/local-authority/00FC,People,Childrens Services,School Access Governor Student,Contract Hire-Operating Leases,Vehicles - Contract Hire,JC101,10/15/2014,310398,2039.4,REVENUE,REDACTED PERSONAL INFORMATION,REDACTED PERSONAL INFORMATION
NORTH EAST LINCOLNSHIRE COUNCIL,http://statistics.data.gov.uk/id/local-authority/00FC,People,Childrens Services,School Access Governor Student,Contract Hire-Operating Leases,Vehicles - Contract Hire,JC101,10/14/2014,309642,4158,REVENUE,AMVALE LIMITED,101030
NORTH EAST LINCOLNSHIRE COUNCIL,http://statistics.data.gov.uk/id/local-authority/00FC,People,Childrens Services,School Access Governor Student,Contract Hire-Operating Leases,Vehicles - Contract Hire,JC101,10/6/2014,306748,648,REVENUE,LINKS TAXIS,100546
NORTH EAST LINCOLNSHIRE COUNCIL,http://statistics.data.gov.uk/id/local-authority/00FC,People,Childrens Services,School Access Governor Student,Contract Hire-Operating Leases,Vehicles - Contract Hire,JC101,10/23/2014,312161,1520,REVENUE,REDACTED PERSONAL INFORMATION,REDACTED PERSONAL INFORMATION
NORTH EAST LINCOLNSHIRE COUNCIL,http://statistics.data.gov.uk/id/local-authority/00FC,People,Childrens Services,School Access Governor Student,Contract Hire-Operating Leases,Vehicles - Contract Hire,JC101,10/13/2014,308595,1235,REVENUE,WHEELCHAIR FRIENDLY TAXI SERVICE,101915
NORTH EAST LINCOLNSHIRE COUNCIL,http://statistics.data.gov.uk/id/local-authority/00FC,People,Childrens Services,School Access Governor Student,Contract Hire-Operating Leases,Vehicles - Contract Hire,JC101,10/15/2014,310405,568,REVENUE,MINICABS CLEETHORPES (LINCS) LTD,102124
NORTH EAST LINCOLNSHIRE COUNCIL,http://statistics.data.gov.uk/id/local-authority/00FC,People,Childrens Services,School Access Governor Student,Contract Hire-Operating Leases,Vehicles - Contract Hire,JC101,10/14/2014,309632,3800,REVENUE,AMVALE LIMITED,101030
NORTH EAST LINCOLNSHIRE COUNCIL,http://statistics.data.gov.uk/id/local-authority/00FC,People,Childrens Services,School Access Governor Student,Contract Hire-Operating Leases,Vehicles - Contract Hire,JC101,10/15/2014,309586,3420,REVENUE,AMVALE LIMITED,101030
NORTH EAST LINCOLNSHIRE COUNCIL,http://statistics.data.gov.uk/id/local-authority/00FC,People,Childrens Services,School Access Governor Student,Contract Hire-Operating Leases,Vehicles - Contract Hire,JC101,10/15/2014,309587,3420,REVENUE,AMVALE LIMITED,101030
NORTH EAST LINCOLNSHIRE COUNCIL,http://statistics.data.gov.uk/id/local-authority/00FC,People,Childrens Services,School Access Governor Student,Contract Hire-Operating Leases,Vehicles - Contract Hire,JC101,10/15/2014,310879,1140,REVENUE,LINKS TAXIS,100546
NORTH EAST LINCOLNSHIRE COUNCIL,http://statistics.data.gov.uk/id/local-authority/00FC,People,Childrens Services,School Access Governor Student,Contract Hire-Operating Leases,Vehicles - Contract Hire,JC101,10/21/2014,310877,560,REVENUE,LINKS TAXIS,100546
NORTH EAST LINCOLNSHIRE COUNCIL,http://statistics.data.gov.uk/id/local-authority/00FC,People,Childrens Services,School Access Governor Student,Contract Hire-Operating Leases,Vehicles - Contract Hire,JC101,10/15/2014,310900,1100,REVENUE,LINKS TAXIS,100546
NORTH EAST LINCOLNSHIRE COUNCIL,http://statistics.data.gov.uk/id/local-authority/00FC,People,Childrens Services,School Access Governor Student,Contract Hire-Operating Leases,Vehicles - Contract Hire,JC101,10/21/2014,311799,864,REVENUE,LINKS TAXIS,100546
NORTH EAST LINCOLNSHIRE COUNCIL,http://statistics.data.gov.uk/id/local-authority/00FC,People,Childrens Services,School Access Governor Student,Contract Hire-Operating Leases,Vehicles - Contract Hire,JC101,10/14/2014,309626,728,REVENUE,MINICABS CLEETHORPES (LINCS) LTD,102124
NORTH EAST LINCOLNSHIRE COUNCIL,http://statistics.data.gov.uk/id/local-authority/00FC,People,Childrens Services,School Access Governor Student,Contract Hire-Operating Leases,Vehicles - Contract Hire,JC101,10/15/2014,310885,1140,REVENUE,LINKS TAXIS,100546
NORTH EAST LINCOLNSHIRE COUNCIL,http://statistics.data.gov.uk/id/local-authority/00FC,People,Childrens Services,School Access Governor Student,Contract Hire-Operating Leases,Vehicles - Contract Hire,JC101,10/15/2014,310902,870,REVENUE,LINKS TAXIS,100546
NORTH EAST LINCOLNSHIRE COUNCIL,http://statistics.data.gov.uk/id/local-authority/00FC,People,Childrens Services,Strategic Management,Indirect Employee Expenses,Allowances - Employees,EB110,10/1/2014,306405,270,REVENUE,NASUWT G76 GRIMSBY & DISTRICT,107363
NORTH EAST LINCOLNSHIRE COUNCIL,http://statistics.data.gov.uk/id/local-authority/00FC,People,Childrens Services,Strategic Management,Indirect Employee Expenses,Allowances - Employees,EB110,10/13/2014,309998,567,REVENUE,GRIMSBY & DISTRICT TEACHERS ASSOCIATION,107358
NORTH EAST LINCOLNSHIRE COUNCIL,http://statistics.data.gov.uk/id/local-authority/00FC,People,Childrens Services,Strategic Management,Indirect Employee Expenses,Allowances - Employees,EB110,10/14/2014,309630,742.5,REVENUE,NASUWT G76 GRIMSBY & DISTRICT,107363
NORTH EAST LINCOLNSHIRE COUNCIL,http://statistics.data.gov.uk/id/local-authority/00FC,People,Childrens Services,Strategic Management,Indirect Employee Expenses,Staff Training,EB122,10/1/2014,307720,250,REVENUE,ADASS,111987
NORTH EAST LINCOLNSHIRE COUNCIL,http://statistics.data.gov.uk/id/local-authority/00FC,People,Childrens Services,Strategic Management,Indirect Employee Expenses,Staff Training,EB122,10/1/2014,307724,380,REVENUE,ADASS,111987
NORTH EAST LINCOLNSHIRE COUNCIL,http://statistics.data.gov.uk/id/local-authority/00FC,People,Childrens Services,Strategic Management,Indirect Employee Expenses,Staff Training,EB122,10/7/2014,309076,250,REVENUE,ADASS,111987
NORTH EAST LINCOLNSHIRE COUNCIL,http://statistics.data.gov.uk/id/local-authority/00FC,People,Childrens Services,Strategic Management,Indirect Employee Expenses,Staff Training,EB122,10/29/2014,313764,450,REVENUE,ADASS,111987
NORTH EAST LINCOLNSHIRE COUNCIL,http://statistics.data.gov.uk/id/local-authority/00FC,People,Childrens Services,Strategic Management,Indirect Employee Expenses,Staff Training,EB122,10/30/2014,313763,250,REVENUE,ADASS,111987
NORTH EAST LINCOLNSHIRE COUNCIL,http://statistics.data.gov.uk/id/local-authority/00FC,People,Childrens Services,Strategic Management,Indirect Employee Expenses,Staff Training,EB122,10/30/2014,313770,500,REVENUE,ADASS,111987
NORTH EAST LINCOLNSHIRE COUNCIL,http://statistics.data.gov.uk/id/local-authority/00FC,People,Childrens Services,Strategic Management,Contributions To Provisions,Contributions - Other,LK103,10/29/2014,313768,5000,REVENUE,WAKEFIELD MD COUNCIL,100967
NORTH EAST LINCOLNSHIRE COUNCIL,http://statistics.data.gov.uk/id/local-authority/00FC,People,Childrens Services,Sen/Inclusion,Direct Employee Expenses,Agency Staff,EA105,10/9/2014,309014,6750,REVENUE,ALAN STEWART,126468
NORTH EAST LINCOLNSHIRE COUNCIL,http://statistics.data.gov.uk/id/local-authority/00FC,People,Childrens Services,Sen/Inclusion,Direct Employee Expenses,Agency Staff,EA105,10/13/2014,309013,3519.53,REVENUE,IDM CONSULTING,119926
NORTH EAST LINCOLNSHIRE COUNCIL,http://statistics.data.gov.uk/id/local-authority/00FC,People,Childrens Services,Sen/Inclusion,Other Local Authorities,Third Pp - Other Local Auth,PC101,10/13/2014,310017,21012,REVENUE,REDACTED PERSONAL INFORMATION,REDACTED PERSONAL INFORMATION
NORTH EAST LINCOLNSHIRE COUNCIL,http://statistics.data.gov.uk/id/local-authority/00FC,People,Childrens Services,Sen/Inclusion,Other Local Authorities,Third Pp - Other Local Auth,PC101,10/23/2014,312338,5921.36,REVENUE,NEW OPTIONS LTD,105590
NORTH EAST LINCOLNSHIRE COUNCIL,http://statistics.data.gov.uk/id/local-authority/00FC,People,Childrens Services,Sen/Inclusion,Other Local Authorities,Third Pp - Other Local Auth,PC101,10/28/2014,312715,5217,REVENUE,REDACTED PERSONAL INFORMATION,REDACTED PERSONAL INFORMATION
NORTH EAST LINCOLNSHIRE COUNCIL,http://statistics.data.gov.uk/id/local-authority/00FC,People,Childrens Services,Sen/Inclusion,Other Local Authorities,Third Pp - Other Local Auth,PC101,10/14/2014,309593,5184,REVENUE,LINCOLNSHIRE COUNTY COUNCIL,100389
NORTH EAST LINCOLNSHIRE COUNCIL,http://statistics.data.gov.uk/id/local-authority/00FC,People,Childrens Services,Sen/Inclusion,Other Local Authorities,Third Pp - Other Local Auth,PC101,10/28/2014,312717,15554,REVENUE,DONCASTER DEAF TRUST,101268
NORTH EAST LINCOLNSHIRE COUNCIL,http://statistics.data.gov.uk/id/local-authority/00FC,People,Childrens Services,Sen/Inclusion,Other Local Authorities,Third Pp - Other Local Auth,PC101,10/14/2014,309596,4374,REVENUE,LINCOLNSHIRE COUNTY COUNCIL,100389
NORTH EAST LINCOLNSHIRE COUNCIL,http://statistics.data.gov.uk/id/local-authority/00FC,People,Childrens Services,Sen/Inclusion,Other Local Authorities,Third Pp - Other Local Auth,PC101,10/1/2014,306374,26144.16,REVENUE,BARNARDO SERVICES LTD,101050
NORTH EAST LINCOLNSHIRE COUNCIL,http://statistics.data.gov.uk/id/local-authority/00FC,People,Childrens Services,Sen/Inclusion,Private Contractors,Third Party Prov - Private,PH101,10/13/2014,310017,53754.79,REVENUE,REDACTED PERSONAL INFORMATION,REDACTED PERSONAL INFORMATION
NORTH EAST LINCOLNSHIRE COUNCIL,http://statistics.data.gov.uk/id/local-authority/00FC,People,Childrens Services,Sen/Inclusion,Private Contractors,Third Party Prov - Private,PH101,10/28/2014,312715,21460,REVENUE,REDACTED PERSONAL INFORMATION,REDACTED PERSONAL INFORMATION
NORTH EAST LINCOLNSHIRE COUNCIL,http://statistics.data.gov.uk/id/local-authority/00FC,People,Childrens Services,Sen/Inclusion,Private Contractors,Third Party Prov - Private,PH101,10/15/2014,309592,12428.7,REVENUE,ADVANCED CHILDCARE,119448
NORTH EAST LINCOLNSHIRE COUNCIL,http://statistics.data.gov.uk/id/local-authority/00FC,People,Childrens Services,Sen/Inclusion,Private Contractors,Third Party Prov - Private,PH101,10/13/2014,309394,18835.7,REVENUE,REFLEXION CARE GROUP LIMITED,106975
NORTH EAST LINCOLNSHIRE COUNCIL,http://statistics.data.gov.uk/id/local-authority/00FC,People,Childrens Services,Sen/Inclusion,Private Contractors,Third Party Prov - Private,PH101,10/13/2014,309393,20785.8,REVENUE,PHYSIS QUANTUM,118777
NORTH EAST LINCOLNSHIRE COUNCIL,http://statistics.data.gov.uk/id/local-authority/00FC,People,Childrens Services,Sen/Inclusion,Private Contractors,Third Party Prov - Private,PH101,10/14/2014,310384,14571.3,REVENUE,MEADOWS CARE LTD,120773
NORTH EAST LINCOLNSHIRE COUNCIL,http://statistics.data.gov.uk/id/local-authority/00FC,People,Childrens Services,Sen/Inclusion,Private Contractors,Third Party Prov - Private,PH101,10/13/2014,310016,18647.34,REVENUE,REFLEXION CARE GROUP LIMITED,106975
NORTH EAST LINCOLNSHIRE COUNCIL,http://statistics.data.gov.uk/id/local-authority/00FC,People,Childrens Services,Sen/Inclusion,Private Contractors,Third Party Prov - Private,PH101,10/1/2014,306375,3290.14,REVENUE,BARNARDO SERVICES LTD,101050
NORTH EAST LINCOLNSHIRE COUNCIL,http://statistics.data.gov.uk/id/local-authority/00FC,People,Childrens Services,Sen/Inclusion,Private Contractors,Third Party Prov - Private,PH101,10/14/2014,309594,1400,REVENUE,SEMAPHORE PSYCHOLOGY & CONSULTANCY,122343
NORTH EAST LINCOLNSHIRE COUNCIL,http://statistics.data.gov.uk/id/local-authority/00FC,People,Childrens Services,Sen/Inclusion,Private Contractors,Third Party Prov - Private,PH101,10/9/2014,309011,8142.9,REVENUE,KEYS CHILDCARE LTD,122934
NORTH EAST LINCOLNSHIRE COUNCIL,http://statistics.data.gov.uk/id/local-authority/00FC,People,Childrens Services,Sen/Inclusion,Contributions To Provisions,Contributions - Other,LK103,10/28/2014,312716,2571.64,REVENUE,LISLE MARSDEN CHILDCARE LIMITED,110493
NORTH EAST LINCOLNSHIRE COUNCIL,http://statistics.data.gov.uk/id/local-authority/00FC,People,Childrens Services,Sen/Inclusion,Direct Employee Expenses,Agency Staff,EA105,10/9/2014,308442,1300,REVENUE,SHANNON EDUCATIONAL PSYCHOLOGY LTD,127743
NORTH EAST LINCOLNSHIRE COUNCIL,http://statistics.data.gov.uk/id/local-authority/00FC,People,Childrens Services,Sen/Inclusion,Direct Employee Expenses,Agency Staff,EA105,10/9/2014,308590,2046,REVENUE,INCLUSIVE SOLUTIONS UK LTD,126756
NORTH EAST LINCOLNSHIRE COUNCIL,http://statistics.data.gov.uk/id/local-authority/00FC,People,Childrens Services,Sen/Inclusion,Direct Employee Expenses,Agency Staff,EA105,10/14/2014,309649,341,REVENUE,INCLUSIVE SOLUTIONS UK LTD,126756
NORTH EAST LINCOLNSHIRE COUNCIL,http://statistics.data.gov.uk/id/local-authority/00FC,People,Childrens Services,Sen/Inclusion,Direct Employee Expenses,Agency Staff,EA105,10/14/2014,309650,5456,REVENUE,INCLUSIVE SOLUTIONS UK LTD,126756
NORTH EAST LINCOLNSHIRE COUNCIL,http://statistics.data.gov.uk/id/local-authority/00FC,People,Childrens Services,Sen/Inclusion,Indirect Employee Expenses,Staff Advertising,EB113,10/29/2014,313866,745,REVENUE,PENNA PLC,122954
NORTH EAST LINCOLNSHIRE COUNCIL,http://statistics.data.gov.uk/id/local-authority/00FC,People,Childrens Services,Sen/Inclusion,Contributions To Provisions,Contributions - Other,LK103,10/9/2014,309375,273,REVENUE,CONNEVANS LIMITED,100898
NORTH EAST LINCOLNSHIRE COUNCIL,http://statistics.data.gov.uk/id/local-authority/00FC,People,Childrens Services,Sen/Inclusion,Contributions To Provisions,Contributions - Other,LK103,10/9/2014,309375,460,REVENUE,CONNEVANS LIMITED,100898
NORTH EAST LINCOLNSHIRE COUNCIL,http://statistics.data.gov.uk/id/local-authority/00FC,People,Childrens Services,Sen/Inclusion,Contributions To Provisions,Contributions - Other,LK103,10/28/2014,313338,285,REVENUE,TOTAL SENSORY,127881
NORTH EAST LINCOLNSHIRE COUNCIL,http://statistics.data.gov.uk/id/local-authority/00FC,People,Childrens Services,Sen/Inclusion,Direct Employee Expenses,Agency Staff,EA105,10/23/2014,311547,3780,REVENUE,FIONA MACAULAY EDUCATION CONSULTANT -SEN,112087
NORTH EAST LINCOLNSHIRE COUNCIL,http://statistics.data.gov.uk/id/local-authority/00FC,People,Childrens Services,Sen/Inclusion,Direct Employee Expenses,Agency Staff,EA105,10/30/2014,313149,2940,REVENUE,FIONA MACAULAY EDUCATION CONSULTANT -SEN,112087
NORTH EAST LINCOLNSHIRE COUNCIL,http://statistics.data.gov.uk/id/local-authority/00FC,People,Childrens Services,Sen/Inclusion,Private Contractors,Concessionary Fares,PH104,10/15/2014,310354,561.3,REVENUE,LINKS TAXIS,100546
NORTH EAST LINCOLNSHIRE COUNCIL,http://statistics.data.gov.uk/id/local-authority/00FC,People,Childrens Services,Sen/Inclusion,Private Contractors,Concessionary Fares,PH104,10/9/2014,308392,340,REVENUE,DKM ASSESSMENT & VERIFICATION LTD,101643
NORTH EAST LINCOLNSHIRE COUNCIL,http://statistics.data.gov.uk/id/local-authority/00FC,People,Childrens Services,Sen/Inclusion,Private Contractors,Concessionary Fares,PH104,10/9/2014,308394,400,REVENUE,DKM ASSESSMENT & VERIFICATION LTD,101643
NORTH EAST LINCOLNSHIRE COUNCIL,http://statistics.data.gov.uk/id/local-authority/00FC,People,Childrens Services,Sen/Inclusion,Private Contractors,Concessionary Fares,PH104,10/9/2014,309360,-10,REVENUE,DKM ASSESSMENT & VERIFICATION LTD,101643
NORTH EAST LINCOLNSHIRE COUNCIL,http://statistics.data.gov.uk/id/local-authority/00FC,People,Childrens Services,Sen/Inclusion,Private Contractors,Concessionary Fares,PH104,10/29/2014,313345,360,REVENUE,DKM ASSESSMENT & VERIFICATION LTD,101643
NORTH EAST LINCOLNSHIRE COUNCIL,http://statistics.data.gov.uk/id/local-authority/00FC,People,Childrens Services,Sen/Inclusion,Private Contractors,Concessionary Fares,PH104,10/29/2014,313347,360,REVENUE,DKM ASSESSMENT & VERIFICATION LTD,101643
NORTH EAST LINCOLNSHIRE COUNCIL,http://statistics.data.gov.uk/id/local-authority/00FC,People,Childrens Services,Sen/Inclusion,Private Contractors,Third Party Prov - Private,PH101,10/28/2014,312660,2400,REVENUE,GRIMSBY & CLEETHORPES SEA CADETS,128059
NORTH EAST LINCOLNSHIRE COUNCIL,http://statistics.data.gov.uk/id/local-authority/00FC,People,Childrens Services,Sen/Inclusion,Private Contractors,Third Party Prov - Private,PH101,10/6/2014,308416,850,REVENUE,DKM ASSESSMENT & VERIFICATION LTD,101643
NORTH EAST LINCOLNSHIRE COUNCIL,http://statistics.data.gov.uk/id/local-authority/00FC,People,Childrens Services,Sen/Inclusion,Private Contractors,Third Party Prov - Private,PH101,10/6/2014,308417,700,REVENUE,DKM ASSESSMENT & VERIFICATION LTD,101643
NORTH EAST LINCOLNSHIRE COUNCIL,http://statistics.data.gov.uk/id/local-authority/00FC,People,Childrens Services,Sen/Inclusion,Private Contractors,Third Party Prov - Private,PH101,10/6/2014,308414,750,REVENUE,DKM ASSESSMENT & VERIFICATION LTD,101643
NORTH EAST LINCOLNSHIRE COUNCIL,http://statistics.data.gov.uk/id/local-authority/00FC,People,Childrens Services,Sen/Inclusion,Private Contractors,Third Party Prov - Private,PH101,10/6/2014,308415,850,REVENUE,DKM ASSESSMENT & VERIFICATION LTD,101643
NORTH EAST LINCOLNSHIRE COUNCIL,http://statistics.data.gov.uk/id/local-authority/00FC,People,Childrens Services,Sen/Inclusion,Private Contractors,Third Party Prov - Private,PH101,10/9/2014,308409,2380,REVENUE,DKM ASSESSMENT & VERIFICATION LTD,101643
NORTH EAST LINCOLNSHIRE COUNCIL,http://statistics.data.gov.uk/id/local-authority/00FC,People,Childrens Services,Sen/Inclusion,Private Contractors,Third Party Prov - Private,PH101,10/9/2014,308411,450,REVENUE,DKM ASSESSMENT & VERIFICATION LTD,101643
NORTH EAST LINCOLNSHIRE COUNCIL,http://statistics.data.gov.uk/id/local-authority/00FC,People,Childrens Services,Sen/Inclusion,Private Contractors,Third Party Prov - Private,PH101,10/9/2014,308410,1000,REVENUE,DKM ASSESSMENT & VERIFICATION LTD,101643
NORTH EAST LINCOLNSHIRE COUNCIL,http://statistics.data.gov.uk/id/local-authority/00FC,People,Childrens Services,Sen/Inclusion,Private Contractors,Third Party Prov - Private,PH101,10/9/2014,308419,1000,REVENUE,DKM ASSESSMENT & VERIFICATION LTD,101643
NORTH EAST LINCOLNSHIRE COUNCIL,http://statistics.data.gov.uk/id/local-authority/00FC,People,Childrens Services,Sen/Inclusion,Private Contractors,Third Party Prov - Private,PH101,10/27/2014,312519,17101,REVENUE,THE GRIMSBY INSTITUTE OF FURTHER,102742
NORTH EAST LINCOLNSHIRE COUNCIL,http://statistics.data.gov.uk/id/local-authority/00FC,People,Childrens Services,Sen/Inclusion,Private Contractors,Third Party Prov - Private,PH101,10/15/2014,310380,500,REVENUE,MICHAEL BURTON,127904
NORTH EAST LINCOLNSHIRE COUNCIL,http://statistics.data.gov.uk/id/local-authority/00FC,People,Childrens Services,Sen/Inclusion,Private Contractors,Third Party Prov - Private,PH101,10/16/2014,310310,500,REVENUE,MICHAEL BURTON,127904
NORTH EAST LINCOLNSHIRE COUNCIL,http://statistics.data.gov.uk/id/local-authority/00FC,People,Childrens Services,Sen/Inclusion,Private Contractors,Third Party Prov - Private,PH101,10/16/2014,310375,300,REVENUE,MICHAEL BURTON,127904
NORTH EAST LINCOLNSHIRE COUNCIL,http://statistics.data.gov.uk/id/local-authority/00FC,People,Childrens Services,Sen/Inclusion,Private Contractors,Third Party Prov - Private,PH101,10/13/2014,310040,25586.4,REVENUE,CPO MEDIA,102186
NORTH EAST LINCOLNSHIRE COUNCIL,http://statistics.data.gov.uk/id/local-authority/00FC,People,Childrens Services,Sen/Inclusion,Private Contractors,Third Party Prov - Private,PH101,10/30/2014,313148,22834.2,REVENUE,CPO MEDIA,102186
NORTH EAST LINCOLNSHIRE COUNCIL,http://statistics.data.gov.uk/id/local-authority/00FC,People,Childrens Services,Sen/Inclusion,Private Contractors,Third Party Prov - Private,PH101,10/9/2014,308933,3050,REVENUE,NORTH EAST LINCS MOTOR PROJECT,101121
NORTH EAST LINCOLNSHIRE COUNCIL,http://statistics.data.gov.uk/id/local-authority/00FC,People,Childrens Services,Sen/Inclusion,Private Contractors,Third Party Prov - Private,PH101,10/28/2014,313237,3100,REVENUE,NORTH EAST LINCS MOTOR PROJECT,101121
NORTH EAST LINCOLNSHIRE COUNCIL,http://statistics.data.gov.uk/id/local-authority/00FC,People,Childrens Services,Sen/Inclusion,Private Contractors,Third Party Prov - Private,PH101,10/9/2014,308622,1000,REVENUE,DKM ASSESSMENT & VERIFICATION LTD,101643
NORTH EAST LINCOLNSHIRE COUNCIL,http://statistics.data.gov.uk/id/local-authority/00FC,People,Childrens Services,Sen/Inclusion,Private Contractors,Third Party Prov - Private,PH101,10/9/2014,308626,2800,REVENUE,DKM ASSESSMENT & VERIFICATION LTD,101643
NORTH EAST LINCOLNSHIRE COUNCIL,http://statistics.data.gov.uk/id/local-authority/00FC,People,Childrens Services,Sen/Inclusion,Private Contractors,Third Party Prov - Private,PH101,10/9/2014,308625,1000,REVENUE,DKM ASSESSMENT & VERIFICATION LTD,101643
NORTH EAST LINCOLNSHIRE COUNCIL,http://statistics.data.gov.uk/id/local-authority/00FC,People,Childrens Services,Sen/Inclusion,Private Contractors,Third Party Prov - Private,PH101,10/9/2014,308638,300,REVENUE,DKM ASSESSMENT & VERIFICATION LTD,101643
NORTH EAST LINCOLNSHIRE COUNCIL,http://statistics.data.gov.uk/id/local-authority/00FC,People,Childrens Services,Sen/Inclusion,Private Contractors,Third Party Prov - Private,PH101,10/9/2014,308639,350,REVENUE,DKM ASSESSMENT & VERIFICATION LTD,101643
NORTH EAST LINCOLNSHIRE COUNCIL,http://statistics.data.gov.uk/id/local-authority/00FC,People,Childrens Services,Sen/Inclusion,Private Contractors,Third Party Prov - Private,PH101,10/9/2014,308623,1000,REVENUE,DKM ASSESSMENT & VERIFICATION LTD,101643
NORTH EAST LINCOLNSHIRE COUNCIL,http://statistics.data.gov.uk/id/local-authority/00FC,People,Childrens Services,Sen/Inclusion,Private Contractors,Third Party Prov - Private,PH101,10/9/2014,308655,2380,REVENUE,DKM ASSESSMENT & VERIFICATION LTD,101643
NORTH EAST LINCOLNSHIRE COUNCIL,http://statistics.data.gov.uk/id/local-authority/00FC,People,Childrens Services,Sen/Inclusion,Private Contractors,Third Party Prov - Private,PH101,10/30/2014,313108,2520,REVENUE,DKM ASSESSMENT & VERIFICATION LTD,101643
NORTH EAST LINCOLNSHIRE COUNCIL,http://statistics.data.gov.uk/id/local-authority/00FC,People,Childrens Services,Sen/Inclusion,Private Contractors,Third Party Prov - Private,PH101,10/30/2014,313109,900,REVENUE,DKM ASSESSMENT & VERIFICATION LTD,101643
NORTH EAST LINCOLNSHIRE COUNCIL,http://statistics.data.gov.uk/id/local-authority/00FC,People,Childrens Services,Sen/Inclusion,Private Contractors,Third Party Prov - Private,PH101,10/30/2014,313110,1960,REVENUE,DKM ASSESSMENT & VERIFICATION LTD,101643
NORTH EAST LINCOLNSHIRE COUNCIL,http://statistics.data.gov.uk/id/local-authority/00FC,People,Childrens Services,Sen/Inclusion,Private Contractors,Third Party Prov - Private,PH101,10/30/2014,313111,750,REVENUE,DKM ASSESSMENT & VERIFICATION LTD,101643
NORTH EAST LINCOLNSHIRE COUNCIL,http://statistics.data.gov.uk/id/local-authority/00FC,People,Childrens Services,Sen/Inclusion,Private Contractors,Third Party Prov - Private,PH101,10/30/2014,313112,900,REVENUE,DKM ASSESSMENT & VERIFICATION LTD,101643
NORTH EAST LINCOLNSHIRE COUNCIL,http://statistics.data.gov.uk/id/local-authority/00FC,People,Childrens Services,Sen/Inclusion,Private Contractors,Third Party Prov - Private,PH101,10/30/2014,313113,900,REVENUE,DKM ASSESSMENT & VERIFICATION LTD,101643
NORTH EAST LINCOLNSHIRE COUNCIL,http://statistics.data.gov.uk/id/local-authority/00FC,People,Childrens Services,Sen/Inclusion,Private Contractors,Third Party Prov - Private,PH101,10/30/2014,313116,1400,REVENUE,DKM ASSESSMENT & VERIFICATION LTD,101643
NORTH EAST LINCOLNSHIRE COUNCIL,http://statistics.data.gov.uk/id/local-authority/00FC,People,Childrens Services,Sen/Inclusion,Private Contractors,Third Party Prov - Private,PH101,10/30/2014,313117,900,REVENUE,DKM ASSESSMENT & VERIFICATION LTD,101643
NORTH EAST LINCOLNSHIRE COUNCIL,http://statistics.data.gov.uk/id/local-authority/00FC,People,Childrens Services,Sen/Inclusion,Private Contractors,Third Party Prov - Private,PH101,10/30/2014,313118,400,REVENUE,DKM ASSESSMENT & VERIFICATION LTD,101643
NORTH EAST LINCOLNSHIRE COUNCIL,http://statistics.data.gov.uk/id/local-authority/00FC,People,Childrens Services,Sen/Inclusion,Private Contractors,Third Party Prov - Private,PH101,10/30/2014,313119,900,REVENUE,DKM ASSESSMENT & VERIFICATION LTD,101643
NORTH EAST LINCOLNSHIRE COUNCIL,http://statistics.data.gov.uk/id/local-authority/00FC,People,Childrens Services,Sen/Inclusion,Private Contractors,Third Party Prov - Private,PH101,10/30/2014,313121,2380,REVENUE,DKM ASSESSMENT & VERIFICATION LTD,101643
NORTH EAST LINCOLNSHIRE COUNCIL,http://statistics.data.gov.uk/id/local-authority/00FC,People,Childrens Services,Sen/Inclusion,Private Contractors,Third Party Prov - Private,PH101,10/30/2014,313122,900,REVENUE,DKM ASSESSMENT & VERIFICATION LTD,101643
NORTH EAST LINCOLNSHIRE COUNCIL,http://statistics.data.gov.uk/id/local-authority/00FC,People,Childrens Services,Sen/Inclusion,Private Contractors,Third Party Prov - Private,PH101,10/30/2014,313123,900,REVENUE,DKM ASSESSMENT & VERIFICATION LTD,101643
NORTH EAST LINCOLNSHIRE COUNCIL,http://statistics.data.gov.uk/id/local-authority/00FC,People,Childrens Services,Sen/Inclusion,Private Contractors,Third Party Prov - Private,PH101,10/30/2014,313124,650,REVENUE,DKM ASSESSMENT & VERIFICATION LTD,101643
NORTH EAST LINCOLNSHIRE COUNCIL,http://statistics.data.gov.uk/id/local-authority/00FC,People,Childrens Services,Sen/Inclusion,Private Contractors,Third Party Prov - Private,PH101,10/30/2014,313115,900,REVENUE,DKM ASSESSMENT & VERIFICATION LTD,101643
NORTH EAST LINCOLNSHIRE COUNCIL,http://statistics.data.gov.uk/id/local-authority/00FC,People,Childrens Services,Sen/Inclusion,Private Contractors,Third Party Prov - Private,PH101,10/30/2014,313120,700,REVENUE,DKM ASSESSMENT & VERIFICATION LTD,101643
NORTH EAST LINCOLNSHIRE COUNCIL,http://statistics.data.gov.uk/id/local-authority/00FC,People,Childrens Services,Sen/Inclusion,Private Contractors,Third Party Prov - Private,PH101,10/30/2014,313103,700,REVENUE,DKM ASSESSMENT & VERIFICATION LTD,101643
NORTH EAST LINCOLNSHIRE COUNCIL,http://statistics.data.gov.uk/id/local-authority/00FC,People,Childrens Services,Sen/Inclusion,Private Contractors,Third Party Prov - Private,PH101,10/28/2014,312776,13347.4,REVENUE,PLAYSPORTS,107535
NORTH EAST LINCOLNSHIRE COUNCIL,http://statistics.data.gov.uk/id/local-authority/00FC,People,Childrens Services,Sen/Inclusion,Private Contractors,Third Party Prov - Private,PH101,10/13/2014,309383,14598.8,REVENUE,PLAYSPORTS,107535
NORTH EAST LINCOLNSHIRE COUNCIL,http://statistics.data.gov.uk/id/local-authority/00FC,People,Childrens Services,Sen/Inclusion,Private Contractors,Third Party Prov - Private,PH101,10/13/2014,310031,912,REVENUE,A4E CONSULT LTD,101656
NORTH EAST LINCOLNSHIRE COUNCIL,http://statistics.data.gov.uk/id/local-authority/00FC,People,Childrens Services,Sen/Inclusion,Direct Employee Expenses,Agency Staff,EA105,10/23/2014,312108,1661.4,REVENUE,IRWIN EDUCATION LTD,106910
NORTH EAST LINCOLNSHIRE COUNCIL,http://statistics.data.gov.uk/id/local-authority/00FC,People,Childrens Services,Sen/Inclusion,Direct Employee Expenses,Agency Staff,EA105,10/9/2014,308619,1661.4,REVENUE,IRWIN EDUCATION LTD,106910
NORTH EAST LINCOLNSHIRE COUNCIL,http://statistics.data.gov.uk/id/local-authority/00FC,People,Childrens Services,Sen/Inclusion,Direct Employee Expenses,Agency Staff,EA105,10/16/2014,310451,1661.4,REVENUE,IRWIN EDUCATION LTD,106910
NORTH EAST LINCOLNSHIRE COUNCIL,http://statistics.data.gov.uk/id/local-authority/00FC,People,Childrens Services,Sen/Inclusion,Direct Employee Expenses,Agency Staff,EA105,10/27/2014,312576,1127.5,REVENUE,TEACHING PERSONNEL LTD,101305
NORTH EAST LINCOLNSHIRE COUNCIL,http://statistics.data.gov.uk/id/local-authority/00FC,People,Childrens Services,Sen/Inclusion,Direct Employee Expenses,Agency Staff,EA105,10/14/2014,310498,1127.5,REVENUE,TEACHING PERSONNEL LTD,101305
NORTH EAST LINCOLNSHIRE COUNCIL,http://statistics.data.gov.uk/id/local-authority/00FC,People,Childrens Services,Sen/Inclusion,Direct Employee Expenses,Agency Staff,EA105,10/23/2014,312421,1127.5,REVENUE,TEACHING PERSONNEL LTD,101305
NORTH EAST LINCOLNSHIRE COUNCIL,http://statistics.data.gov.uk/id/local-authority/00FC,People,Childrens Services,Sen/Inclusion,Direct Employee Expenses,Agency Staff,EA105,10/23/2014,312411,1465.75,REVENUE,TEACHING PERSONNEL LTD,101305
NORTH EAST LINCOLNSHIRE COUNCIL,http://statistics.data.gov.uk/id/local-authority/00FC,People,Childrens Services,Sen/Inclusion,Direct Employee Expenses,Agency Staff,EA105,10/23/2014,312412,676.5,REVENUE,TEACHING PERSONNEL LTD,101305
NORTH EAST LINCOLNSHIRE COUNCIL,http://statistics.data.gov.uk/id/local-authority/00FC,People,Childrens Services,Sen/Inclusion,Direct Employee Expenses,Agency Staff,EA105,10/20/2014,311646,2072.5,REVENUE,TEACHING PERSONNEL LTD,101305
NORTH EAST LINCOLNSHIRE COUNCIL,http://statistics.data.gov.uk/id/local-authority/00FC,People,Childrens Services,Sen/Inclusion,Private Contractors,Third Party Prov - Private,PH101,10/6/2014,266049,593.68,REVENUE,REDACTED PERSONAL INFORMATION,REDACTED PERSONAL INFORMATION
NORTH EAST LINCOLNSHIRE COUNCIL,http://statistics.data.gov.uk/id/local-authority/00FC,People,Childrens Services,Sen/Inclusion,Private Contractors,Third Party Prov - Private,PH101,10/24/2014,312515,5942.33,REVENUE,DONCASTER DEAF TRUST,101268
NORTH EAST LINCOLNSHIRE COUNCIL,http://statistics.data.gov.uk/id/local-authority/00FC,People,Childrens Services,Sen/Inclusion,Contributions To Provisions,Contributions - Other,LK103,10/16/2014,311140,8559,REVENUE,CANON PETER HALL CE PRIMARY ACADEMY,126646
NORTH EAST LINCOLNSHIRE COUNCIL,http://statistics.data.gov.uk/id/local-authority/00FC,People,Childrens Services,Sen/Inclusion,Contributions To Provisions,Contributions - Other,LK103,10/16/2014,311141,6390,REVENUE,HEALING PRIMARY ACADEMY,127192
NORTH EAST LINCOLNSHIRE COUNCIL,http://statistics.data.gov.uk/id/local-authority/00FC,People,Childrens Services,Sen/Inclusion,Contributions To Provisions,Contributions - Other,LK103,10/16/2014,311138,1531,REVENUE,ORMISTON MARITIME ACADEMY,106066
NORTH EAST LINCOLNSHIRE COUNCIL,http://statistics.data.gov.uk/id/local-authority/00FC,People,Childrens Services,Sen/Inclusion,Contributions To Provisions,Contributions - Other,LK103,10/16/2014,311142,5867,REVENUE,WELHOLME ACADEMY,127227
NORTH EAST LINCOLNSHIRE COUNCIL,http://statistics.data.gov.uk/id/local-authority/00FC,People,Childrens Services,Sen/Inclusion,Contributions To Provisions,Contributions - Other,LK103,10/16/2014,311139,3950,REVENUE,WYBERS WOOD PRIMARY ACADEMY,115078
NORTH EAST LINCOLNSHIRE COUNCIL,http://statistics.data.gov.uk/id/local-authority/00FC,People,Childrens Services,Sen/Inclusion,Miscellaneous Expenses,Contingency Reserve,LL123,10/23/2014,312313,131143,REVENUE,THE CAMBRIDGE PARK ACADEMY,107472
NORTH EAST LINCOLNSHIRE COUNCIL,http://statistics.data.gov.uk/id/local-authority/00FC,People,Childrens Services,Sen/Inclusion,Miscellaneous Expenses,Contingency Reserve,LL123,10/23/2014,312311,98713,REVENUE,HUMBERSTON PARK SPECIAL SCHOOL,107911
NORTH EAST LINCOLNSHIRE COUNCIL,http://statistics.data.gov.uk/id/local-authority/00FC,People,Childrens Services,Placement & Support,Premises Insurance,Premises Insurance - Premiums,GK101,10/17/2014,311266,556.28,REVENUE,CAPACITY BUILDINGS LTD,109881
NORTH EAST LINCOLNSHIRE COUNCIL,http://statistics.data.gov.uk/id/local-authority/00FC,People,Childrens Services,Placement & Support,Direct Transport Costs,Vehicles - Running Costs,JA104,10/23/2014,310844,386.17,REVENUE,ALLSTAR BUSINESS SOLUTIONS LTD,108278
NORTH EAST LINCOLNSHIRE COUNCIL,http://statistics.data.gov.uk/id/local-authority/00FC,People,Childrens Services,Placement & Support,Equip / Furniture / Materials,Equipment - Hire,LA102,10/1/2014,306976,387.24,REVENUE,LARCO LTD,100542
NORTH EAST LINCOLNSHIRE COUNCIL,http://statistics.data.gov.uk/id/local-authority/00FC,People,Childrens Services,Placement & Support,Indirect Employee Expenses,Pension P/Ment Early Retire,EB108,10/9/2014,309229,REDACTED PERSONAL INFORMATION,REVENUE,EAST RIDING OF YORKSHIRE,100377
NORTH EAST LINCOLNSHIRE COUNCIL,http://statistics.data.gov.uk/id/local-authority/00FC,People,Childrens Services,Placement & Support,Other Agencies,Child Care Payments,PJ104,10/29/2014,313818,3905.7,REVENUE,BOURNE LEISURE LTD,109336
NORTH EAST LINCOLNSHIRE COUNCIL,http://statistics.data.gov.uk/id/local-authority/00FC,People,Childrens Services,Placement & Support,Other Agencies,Child Care Payments,PJ104,10/15/2014,310001,329.98,REVENUE,DAVID BURY LTD,103135
NORTH EAST LINCOLNSHIRE COUNCIL,http://statistics.data.gov.uk/id/local-authority/00FC,People,Childrens Services,Placement & Support,Other Agencies,Child Care Payments,PJ104,10/1/2014,306898,828.61,REVENUE,ARJO MED AB LTD,103268
NORTH EAST LINCOLNSHIRE COUNCIL,http://statistics.data.gov.uk/id/local-authority/00FC,People,Childrens Services,Placement & Support,Private Contractors,Third Party Prov - Private,PH101,10/7/2014,266471,766.86,REVENUE,REDACTED PERSONAL INFORMATION,REDACTED PERSONAL INFORMATION
NORTH EAST LINCOLNSHIRE COUNCIL,http://statistics.data.gov.uk/id/local-authority/00FC,People,Childrens Services,Placement & Support,Private Contractors,Third Party Prov - Private,PH101,10/9/2014,309073,368,REVENUE,REVELLS TAXIS (ED/SOC SERV),100559
NORTH EAST LINCOLNSHIRE COUNCIL,http://statistics.data.gov.uk/id/local-authority/00FC,People,Childrens Services,Placement & Support,Private Contractors,Third Party Prov - Private,PH101,10/21/2014,310884,285,REVENUE,REVELLS TAXIS (ED/SOC SERV),100559
NORTH EAST LINCOLNSHIRE COUNCIL,http://statistics.data.gov.uk/id/local-authority/00FC,People,Childrens Services,Placement & Support,Private Contractors,Third Party Prov - Private,PH101,10/28/2014,312661,1914,REVENUE,REVELLS TAXIS (ED/SOC SERV),100559
NORTH EAST LINCOLNSHIRE COUNCIL,http://statistics.data.gov.uk/id/local-authority/00FC,People,Childrens Services,Placement & Support,Private Contractors,Third Party Prov - Private,PH101,10/29/2014,312746,1400,REVENUE,REVELLS TAXIS (ED/SOC SERV),100559
NORTH EAST LINCOLNSHIRE COUNCIL,http://statistics.data.gov.uk/id/local-authority/00FC,People,Childrens Services,Placement & Support,Private Contractors,Third Party Prov - Private,PH101,10/31/2014,313868,1255,REVENUE,REVELLS TAXIS (ED/SOC SERV),100559
NORTH EAST LINCOLNSHIRE COUNCIL,http://statistics.data.gov.uk/id/local-authority/00FC,People,Childrens Services,Placement & Support,Other Agencies,Additional Cost,PJ114,10/7/2014,266378,250,REVENUE,REDACTED PERSONAL INFORMATION,REDACTED PERSONAL INFORMATION
NORTH EAST LINCOLNSHIRE COUNCIL,http://statistics.data.gov.uk/id/local-authority/00FC,People,Childrens Services,Placement & Support,Other Agencies,Additional Cost,PJ114,10/31/2014,313807,450,REVENUE,READY RENT A CAR (GRIMSBY) LTD,100557
NORTH EAST LINCOLNSHIRE COUNCIL,http://statistics.data.gov.uk/id/local-authority/00FC,People,Childrens Services,Placement & Support,Other Agencies,Additional Cost,PJ114,10/31/2014,313856,450,REVENUE,READY RENT A CAR (GRIMSBY) LTD,100557
NORTH EAST LINCOLNSHIRE COUNCIL,http://statistics.data.gov.uk/id/local-authority/00FC,People,Childrens Services,Placement & Support,Other Agencies,Additional Cost,PJ114,10/17/2014,311148,990,REVENUE,AA RADIO CARS LTD,101222
NORTH EAST LINCOLNSHIRE COUNCIL,http://statistics.data.gov.uk/id/local-authority/00FC,People,Childrens Services,Placement & Support,Other Agencies,Child Care Payments,PJ104,10/21/2014,269970,704.09,REVENUE,REDACTED PERSONAL INFORMATION,REDACTED PERSONAL INFORMATION
NORTH EAST LINCOLNSHIRE COUNCIL,http://statistics.data.gov.uk/id/local-authority/00FC,People,Childrens Services,Placement & Support,Other Agencies,Child Care Payments,PJ104,10/14/2014,268512,936,REVENUE,REDACTED PERSONAL INFORMATION,REDACTED PERSONAL INFORMATION
NORTH EAST LINCOLNSHIRE COUNCIL,http://statistics.data.gov.uk/id/local-authority/00FC,People,Childrens Services,Placement & Support,Other Agencies,Child Care Payments,PJ104,10/7/2014,266358,316,REVENUE,REDACTED PERSONAL INFORMATION,REDACTED PERSONAL INFORMATION
NORTH EAST LINCOLNSHIRE COUNCIL,http://statistics.data.gov.uk/id/local-authority/00FC,People,Childrens Services,Placement & Support,Other Agencies,Child Care Payments,PJ104,10/7/2014,266362,336,REVENUE,REDACTED PERSONAL INFORMATION,REDACTED PERSONAL INFORMATION
NORTH EAST LINCOLNSHIRE COUNCIL,http://statistics.data.gov.uk/id/local-authority/00FC,People,Childrens Services,Placement & Support,Other Agencies,Child Care Payments,PJ104,10/7/2014,266365,632,REVENUE,REDACTED PERSONAL INFORMATION,REDACTED PERSONAL INFORMATION
NORTH EAST LINCOLNSHIRE COUNCIL,http://statistics.data.gov.uk/id/local-authority/00FC,People,Childrens Services,Placement & Support,Other Agencies,Child Care Payments,PJ104,10/7/2014,266367,1013,REVENUE,REDACTED PERSONAL INFORMATION,REDACTED PERSONAL INFORMATION
NORTH EAST LINCOLNSHIRE COUNCIL,http://statistics.data.gov.uk/id/local-authority/00FC,People,Childrens Services,Placement & Support,Other Agencies,Child Care Payments,PJ104,10/7/2014,266370,489.71,REVENUE,REDACTED PERSONAL INFORMATION,REDACTED PERSONAL INFORMATION
NORTH EAST LINCOLNSHIRE COUNCIL,http://statistics.data.gov.uk/id/local-authority/00FC,People,Childrens Services,Placement & Support,Other Agencies,Child Care Payments,PJ104,10/7/2014,266376,632,REVENUE,REDACTED PERSONAL INFORMATION,REDACTED PERSONAL INFORMATION
NORTH EAST LINCOLNSHIRE COUNCIL,http://statistics.data.gov.uk/id/local-authority/00FC,People,Childrens Services,Placement & Support,Other Agencies,Child Care Payments,PJ104,10/7/2014,266378,924,REVENUE,REDACTED PERSONAL INFORMATION,REDACTED PERSONAL INFORMATION
NORTH EAST LINCOLNSHIRE COUNCIL,http://statistics.data.gov.uk/id/local-authority/00FC,People,Childrens Services,Placement & Support,Other Agencies,Child Care Payments,PJ104,10/7/2014,266379,316,REVENUE,REDACTED PERSONAL INFORMATION,REDACTED PERSONAL INFORMATION
NORTH EAST LINCOLNSHIRE COUNCIL,http://statistics.data.gov.uk/id/local-authority/00FC,People,Childrens Services,Placement & Support,Other Agencies,Child Care Payments,PJ104,10/7/2014,266380,672,REVENUE,REDACTED PERSONAL INFORMATION,REDACTED PERSONAL INFORMATION
NORTH EAST LINCOLNSHIRE COUNCIL,http://statistics.data.gov.uk/id/local-authority/00FC,People,Childrens Services,Placement & Support,Other Agencies,Child Care Payments,PJ104,10/7/2014,266388,857.14,REVENUE,REDACTED PERSONAL INFORMATION,REDACTED PERSONAL INFORMATION
NORTH EAST LINCOLNSHIRE COUNCIL,http://statistics.data.gov.uk/id/local-authority/00FC,People,Childrens Services,Placement & Support,Other Agencies,Child Care Payments,PJ104,10/7/2014,266389,697,REVENUE,REDACTED PERSONAL INFORMATION,REDACTED PERSONAL INFORMATION
NORTH EAST LINCOLNSHIRE COUNCIL,http://statistics.data.gov.uk/id/local-authority/00FC,People,Childrens Services,Placement & Support,Other Agencies,Child Care Payments,PJ104,10/7/2014,266391,316,REVENUE,REDACTED PERSONAL INFORMATION,REDACTED PERSONAL INFORMATION
NORTH EAST LINCOLNSHIRE COUNCIL,http://statistics.data.gov.uk/id/local-authority/00FC,People,Childrens Services,Placement & Support,Other Agencies,Child Care Payments,PJ104,10/7/2014,266392,304,REVENUE,REDACTED PERSONAL INFORMATION,REDACTED PERSONAL INFORMATION
NORTH EAST LINCOLNSHIRE COUNCIL,http://statistics.data.gov.uk/id/local-authority/00FC,People,Childrens Services,Placement & Support,Other Agencies,Child Care Payments,PJ104,10/7/2014,266401,1013,REVENUE,REDACTED PERSONAL INFORMATION,REDACTED PERSONAL INFORMATION
NORTH EAST LINCOLNSHIRE COUNCIL,http://statistics.data.gov.uk/id/local-authority/00FC,People,Childrens Services,Placement & Support,Other Agencies,Child Care Payments,PJ104,10/7/2014,266405,936,REVENUE,REDACTED PERSONAL INFORMATION,REDACTED PERSONAL INFORMATION
NORTH EAST LINCOLNSHIRE COUNCIL,http://statistics.data.gov.uk/id/local-authority/00FC,People,Childrens Services,Placement & Support,Other Agencies,Child Care Payments,PJ104,10/7/2014,266408,968,REVENUE,REDACTED PERSONAL INFORMATION,REDACTED PERSONAL INFORMATION
NORTH EAST LINCOLNSHIRE COUNCIL,http://statistics.data.gov.uk/id/local-authority/00FC,People,Childrens Services,Placement & Support,Other Agencies,Child Care Payments,PJ104,10/7/2014,266409,1129.14,REVENUE,REDACTED PERSONAL INFORMATION,REDACTED PERSONAL INFORMATION
NORTH EAST LINCOLNSHIRE COUNCIL,http://statistics.data.gov.uk/id/local-authority/00FC,People,Childrens Services,Placement & Support,Other Agencies,Child Care Payments,PJ104,10/7/2014,266411,1033,REVENUE,REDACTED PERSONAL INFORMATION,REDACTED PERSONAL INFORMATION
NORTH EAST LINCOLNSHIRE COUNCIL,http://statistics.data.gov.uk/id/local-authority/00FC,People,Childrens Services,Placement & Support,Other Agencies,Child Care Payments,PJ104,10/7/2014,266412,632,REVENUE,REDACTED PERSONAL INFORMATION,REDACTED PERSONAL INFORMATION
NORTH EAST LINCOLNSHIRE COUNCIL,http://statistics.data.gov.uk/id/local-authority/00FC,People,Childrens Services,Placement & Support,Other Agencies,Child Care Payments,PJ104,10/7/2014,266414,316,REVENUE,REDACTED PERSONAL INFORMATION,REDACTED PERSONAL INFORMATION
NORTH EAST LINCOLNSHIRE COUNCIL,http://statistics.data.gov.uk/id/local-authority/00FC,People,Childrens Services,Placement & Support,Other Agencies,Child Care Payments,PJ104,10/7/2014,266416,1033,REVENUE,REDACTED PERSONAL INFORMATION,REDACTED PERSONAL INFORMATION
NORTH EAST LINCOLNSHIRE COUNCIL,http://statistics.data.gov.uk/id/local-authority/00FC,People,Childrens Services,Placement & Support,Other Agencies,Child Care Payments,PJ104,10/7/2014,266421,936,REVENUE,REDACTED PERSONAL INFORMATION,REDACTED PERSONAL INFORMATION
NORTH EAST LINCOLNSHIRE COUNCIL,http://statistics.data.gov.uk/id/local-authority/00FC,People,Childrens Services,Placement & Support,Other Agencies,Child Care Payments,PJ104,10/7/2014,266436,620,REVENUE,REDACTED PERSONAL INFORMATION,REDACTED PERSONAL INFORMATION
NORTH EAST LINCOLNSHIRE COUNCIL,http://statistics.data.gov.uk/id/local-authority/00FC,People,Childrens Services,Placement & Support,Other Agencies,Child Care Payments,PJ104,10/7/2014,266444,336,REVENUE,REDACTED PERSONAL INFORMATION,REDACTED PERSONAL INFORMATION
NORTH EAST LINCOLNSHIRE COUNCIL,http://statistics.data.gov.uk/id/local-authority/00FC,People,Childrens Services,Placement & Support,Other Agencies,Child Care Payments,PJ104,10/7/2014,266446,361,REVENUE,REDACTED PERSONAL INFORMATION,REDACTED PERSONAL INFORMATION
NORTH EAST LINCOLNSHIRE COUNCIL,http://statistics.data.gov.uk/id/local-authority/00FC,People,Childrens Services,Placement & Support,Other Agencies,Child Care Payments,PJ104,10/7/2014,266448,968,REVENUE,REDACTED PERSONAL INFORMATION,REDACTED PERSONAL INFORMATION
NORTH EAST LINCOLNSHIRE COUNCIL,http://statistics.data.gov.uk/id/local-authority/00FC,People,Childrens Services,Placement & Support,Other Agencies,Child Care Payments,PJ104,10/7/2014,266450,432,REVENUE,REDACTED PERSONAL INFORMATION,REDACTED PERSONAL INFORMATION
NORTH EAST LINCOLNSHIRE COUNCIL,http://statistics.data.gov.uk/id/local-authority/00FC,People,Childrens Services,Placement & Support,Other Agencies,Child Care Payments,PJ104,10/7/2014,266451,652,REVENUE,REDACTED PERSONAL INFORMATION,REDACTED PERSONAL INFORMATION
NORTH EAST LINCOLNSHIRE COUNCIL,http://statistics.data.gov.uk/id/local-authority/00FC,People,Childrens Services,Placement & Support,Other Agencies,Child Care Payments,PJ104,10/7/2014,266452,509.71,REVENUE,REDACTED PERSONAL INFORMATION,REDACTED PERSONAL INFORMATION
NORTH EAST LINCOLNSHIRE COUNCIL,http://statistics.data.gov.uk/id/local-authority/00FC,People,Childrens Services,Placement & Support,Other Agencies,Child Care Payments,PJ104,10/7/2014,266456,944,REVENUE,REDACTED PERSONAL INFORMATION,REDACTED PERSONAL INFORMATION
NORTH EAST LINCOLNSHIRE COUNCIL,http://statistics.data.gov.uk/id/local-authority/00FC,People,Childrens Services,Placement & Support,Other Agencies,Child Care Payments,PJ104,10/7/2014,266459,620,REVENUE,REDACTED PERSONAL INFORMATION,REDACTED PERSONAL INFORMATION
NORTH EAST LINCOLNSHIRE COUNCIL,http://statistics.data.gov.uk/id/local-authority/00FC,People,Childrens Services,Placement & Support,Other Agencies,Child Care Payments,PJ104,10/7/2014,266465,608,REVENUE,REDACTED PERSONAL INFORMATION,REDACTED PERSONAL INFORMATION
NORTH EAST LINCOLNSHIRE COUNCIL,http://statistics.data.gov.uk/id/local-authority/00FC,People,Childrens Services,Placement & Support,Other Agencies,Child Care Payments,PJ104,10/7/2014,266470,672,REVENUE,REDACTED PERSONAL INFORMATION,REDACTED PERSONAL INFORMATION
NORTH EAST LINCOLNSHIRE COUNCIL,http://statistics.data.gov.uk/id/local-authority/00FC,People,Childrens Services,Placement & Support,Other Agencies,Child Care Payments,PJ104,10/7/2014,266474,316,REVENUE,REDACTED PERSONAL INFORMATION,REDACTED PERSONAL INFORMATION
NORTH EAST LINCOLNSHIRE COUNCIL,http://statistics.data.gov.uk/id/local-authority/00FC,People,Childrens Services,Placement & Support,Other Agencies,Child Care Payments,PJ104,10/7/2014,266484,1240,REVENUE,REDACTED PERSONAL INFORMATION,REDACTED PERSONAL INFORMATION
NORTH EAST LINCOLNSHIRE COUNCIL,http://statistics.data.gov.uk/id/local-authority/00FC,People,Childrens Services,Placement & Support,Other Agencies,Child Care Payments,PJ104,10/7/2014,266494,620,REVENUE,REDACTED PERSONAL INFORMATION,REDACTED PERSONAL INFORMATION
NORTH EAST LINCOLNSHIRE COUNCIL,http://statistics.data.gov.uk/id/local-authority/00FC,People,Childrens Services,Placement & Support,Other Agencies,Child Care Payments,PJ104,10/7/2014,266500,936,REVENUE,REDACTED PERSONAL INFORMATION,REDACTED PERSONAL INFORMATION
NORTH EAST LINCOLNSHIRE COUNCIL,http://statistics.data.gov.uk/id/local-authority/00FC,People,Childrens Services,Placement & Support,Other Agencies,Child Care Payments,PJ104,10/7/2014,266505,620,REVENUE,REDACTED PERSONAL INFORMATION,REDACTED PERSONAL INFORMATION
NORTH EAST LINCOLNSHIRE COUNCIL,http://statistics.data.gov.uk/id/local-authority/00FC,People,Childrens Services,Placement & Support,Other Agencies,Child Care Payments,PJ104,10/7/2014,266522,316,REVENUE,REDACTED PERSONAL INFORMATION,REDACTED PERSONAL INFORMATION
NORTH EAST LINCOLNSHIRE COUNCIL,http://statistics.data.gov.uk/id/local-authority/00FC,People,Childrens Services,Placement & Support,Other Agencies,Child Care Payments,PJ104,10/7/2014,266550,432,REVENUE,REDACTED PERSONAL INFORMATION,REDACTED PERSONAL INFORMATION
NORTH EAST LINCOLNSHIRE COUNCIL,http://statistics.data.gov.uk/id/local-authority/00FC,People,Childrens Services,Placement & Support,Other Agencies,Child Care Payments,PJ104,10/7/2014,266553,640,REVENUE,REDACTED PERSONAL INFORMATION,REDACTED PERSONAL INFORMATION
NORTH EAST LINCOLNSHIRE COUNCIL,http://statistics.data.gov.uk/id/local-authority/00FC,People,Childrens Services,Placement & Support,Other Agencies,Child Care Payments,PJ104,10/7/2014,266557,968,REVENUE,REDACTED PERSONAL INFORMATION,REDACTED PERSONAL INFORMATION
NORTH EAST LINCOLNSHIRE COUNCIL,http://statistics.data.gov.uk/id/local-authority/00FC,People,Childrens Services,Placement & Support,Other Agencies,Child Care Payments,PJ104,10/7/2014,266558,689.86,REVENUE,REDACTED PERSONAL INFORMATION,REDACTED PERSONAL INFORMATION
NORTH EAST LINCOLNSHIRE COUNCIL,http://statistics.data.gov.uk/id/local-authority/00FC,People,Childrens Services,Placement & Support,Other Agencies,Child Care Payments,PJ104,10/7/2014,266567,608,REVENUE,REDACTED PERSONAL INFORMATION,REDACTED PERSONAL INFORMATION
NORTH EAST LINCOLNSHIRE COUNCIL,http://statistics.data.gov.uk/id/local-authority/00FC,People,Childrens Services,Placement & Support,Other Agencies,Child Care Payments,PJ104,10/7/2014,266572,936,REVENUE,REDACTED PERSONAL INFORMATION,REDACTED PERSONAL INFORMATION
NORTH EAST LINCOLNSHIRE COUNCIL,http://statistics.data.gov.uk/id/local-authority/00FC,People,Childrens Services,Placement & Support,Other Agencies,Child Care Payments,PJ104,10/7/2014,266582,608,REVENUE,REDACTED PERSONAL INFORMATION,REDACTED PERSONAL INFORMATION
NORTH EAST LINCOLNSHIRE COUNCIL,http://statistics.data.gov.uk/id/local-authority/00FC,People,Childrens Services,Placement & Support,Other Agencies,Child Care Payments,PJ104,10/7/2014,266605,316,REVENUE,REDACTED PERSONAL INFORMATION,REDACTED PERSONAL INFORMATION
NORTH EAST LINCOLNSHIRE COUNCIL,http://statistics.data.gov.uk/id/local-authority/00FC,People,Childrens Services,Placement & Support,Other Agencies,Child Care Payments,PJ104,10/14/2014,268473,316,REVENUE,REDACTED PERSONAL INFORMATION,REDACTED PERSONAL INFORMATION
NORTH EAST LINCOLNSHIRE COUNCIL,http://statistics.data.gov.uk/id/local-authority/00FC,People,Childrens Services,Placement & Support,Other Agencies,Child Care Payments,PJ104,10/14/2014,268477,336,REVENUE,REDACTED PERSONAL INFORMATION,REDACTED PERSONAL INFORMATION
NORTH EAST LINCOLNSHIRE COUNCIL,http://statistics.data.gov.uk/id/local-authority/00FC,People,Childrens Services,Placement & Support,Other Agencies,Child Care Payments,PJ104,10/14/2014,268480,632,REVENUE,REDACTED PERSONAL INFORMATION,REDACTED PERSONAL INFORMATION
NORTH EAST LINCOLNSHIRE COUNCIL,http://statistics.data.gov.uk/id/local-authority/00FC,People,Childrens Services,Placement & Support,Other Agencies,Child Care Payments,PJ104,10/14/2014,268482,1013,REVENUE,REDACTED PERSONAL INFORMATION,REDACTED PERSONAL INFORMATION
NORTH EAST LINCOLNSHIRE COUNCIL,http://statistics.data.gov.uk/id/local-authority/00FC,People,Childrens Services,Placement & Support,Other Agencies,Child Care Payments,PJ104,10/14/2014,268485,620,REVENUE,REDACTED PERSONAL INFORMATION,REDACTED PERSONAL INFORMATION
NORTH EAST LINCOLNSHIRE COUNCIL,http://statistics.data.gov.uk/id/local-authority/00FC,People,Childrens Services,Placement & Support,Other Agencies,Child Care Payments,PJ104,10/14/2014,268490,632,REVENUE,REDACTED PERSONAL INFORMATION,REDACTED PERSONAL INFORMATION
NORTH EAST LINCOLNSHIRE COUNCIL,http://statistics.data.gov.uk/id/local-authority/00FC,People,Childrens Services,Placement & Support,Other Agencies,Child Care Payments,PJ104,10/14/2014,268492,924,REVENUE,REDACTED PERSONAL INFORMATION,REDACTED PERSONAL INFORMATION
NORTH EAST LINCOLNSHIRE COUNCIL,http://statistics.data.gov.uk/id/local-authority/00FC,People,Childrens Services,Placement & Support,Other Agencies,Child Care Payments,PJ104,10/14/2014,268493,316,REVENUE,REDACTED PERSONAL INFORMATION,REDACTED PERSONAL INFORMATION
NORTH EAST LINCOLNSHIRE COUNCIL,http://statistics.data.gov.uk/id/local-authority/00FC,People,Childrens Services,Placement & Support,Other Agencies,Child Care Payments,PJ104,10/14/2014,268494,672,REVENUE,REDACTED PERSONAL INFORMATION,REDACTED PERSONAL INFORMATION
NORTH EAST LINCOLNSHIRE COUNCIL,http://statistics.data.gov.uk/id/local-authority/00FC,People,Childrens Services,Placement & Support,Other Agencies,Child Care Payments,PJ104,10/14/2014,268502,480,REVENUE,REDACTED PERSONAL INFORMATION,REDACTED PERSONAL INFORMATION
NORTH EAST LINCOLNSHIRE COUNCIL,http://statistics.data.gov.uk/id/local-authority/00FC,People,Childrens Services,Placement & Support,Other Agencies,Child Care Payments,PJ104,10/14/2014,268503,697,REVENUE,REDACTED PERSONAL INFORMATION,REDACTED PERSONAL INFORMATION
NORTH EAST LINCOLNSHIRE COUNCIL,http://statistics.data.gov.uk/id/local-authority/00FC,People,Childrens Services,Placement & Support,Other Agencies,Child Care Payments,PJ104,10/14/2014,268505,316,REVENUE,REDACTED PERSONAL INFORMATION,REDACTED PERSONAL INFORMATION
NORTH EAST LINCOLNSHIRE COUNCIL,http://statistics.data.gov.uk/id/local-authority/00FC,People,Childrens Services,Placement & Support,Other Agencies,Child Care Payments,PJ104,10/14/2014,268514,1013,REVENUE,REDACTED PERSONAL INFORMATION,REDACTED PERSONAL INFORMATION
NORTH EAST LINCOLNSHIRE COUNCIL,http://statistics.data.gov.uk/id/local-authority/00FC,People,Childrens Services,Placement & Support,Other Agencies,Child Care Payments,PJ104,10/14/2014,268518,936,REVENUE,REDACTED PERSONAL INFORMATION,REDACTED PERSONAL INFORMATION
NORTH EAST LINCOLNSHIRE COUNCIL,http://statistics.data.gov.uk/id/local-authority/00FC,People,Childrens Services,Placement & Support,Other Agencies,Child Care Payments,PJ104,10/14/2014,268521,968,REVENUE,REDACTED PERSONAL INFORMATION,REDACTED PERSONAL INFORMATION
NORTH EAST LINCOLNSHIRE COUNCIL,http://statistics.data.gov.uk/id/local-authority/00FC,People,Childrens Services,Placement & Support,Other Agencies,Child Care Payments,PJ104,10/14/2014,268522,1216,REVENUE,REDACTED PERSONAL INFORMATION,REDACTED PERSONAL INFORMATION
NORTH EAST LINCOLNSHIRE COUNCIL,http://statistics.data.gov.uk/id/local-authority/00FC,People,Childrens Services,Placement & Support,Other Agencies,Child Care Payments,PJ104,10/14/2014,268524,1033,REVENUE,REDACTED PERSONAL INFORMATION,REDACTED PERSONAL INFORMATION
NORTH EAST LINCOLNSHIRE COUNCIL,http://statistics.data.gov.uk/id/local-authority/00FC,People,Childrens Services,Placement & Support,Other Agencies,Child Care Payments,PJ104,10/14/2014,268525,632,REVENUE,REDACTED PERSONAL INFORMATION,REDACTED PERSONAL INFORMATION
NORTH EAST LINCOLNSHIRE COUNCIL,http://statistics.data.gov.uk/id/local-authority/00FC,People,Childrens Services,Placement & Support,Other Agencies,Child Care Payments,PJ104,10/14/2014,268527,316,REVENUE,REDACTED PERSONAL INFORMATION,REDACTED PERSONAL INFORMATION
NORTH EAST LINCOLNSHIRE COUNCIL,http://statistics.data.gov.uk/id/local-authority/00FC,People,Childrens Services,Placement & Support,Other Agencies,Child Care Payments,PJ104,10/14/2014,268529,1033,REVENUE,REDACTED PERSONAL INFORMATION,REDACTED PERSONAL INFORMATION
NORTH EAST LINCOLNSHIRE COUNCIL,http://statistics.data.gov.uk/id/local-authority/00FC,People,Childrens Services,Placement & Support,Other Agencies,Child Care Payments,PJ104,10/14/2014,268534,936,REVENUE,REDACTED PERSONAL INFORMATION,REDACTED PERSONAL INFORMATION
NORTH EAST LINCOLNSHIRE COUNCIL,http://statistics.data.gov.uk/id/local-authority/00FC,People,Childrens Services,Placement & Support,Other Agencies,Child Care Payments,PJ104,10/14/2014,268549,620,REVENUE,REDACTED PERSONAL INFORMATION,REDACTED PERSONAL INFORMATION
NORTH EAST LINCOLNSHIRE COUNCIL,http://statistics.data.gov.uk/id/local-authority/00FC,People,Childrens Services,Placement & Support,Other Agencies,Child Care Payments,PJ104,10/14/2014,268557,336,REVENUE,REDACTED PERSONAL INFORMATION,REDACTED PERSONAL INFORMATION
NORTH EAST LINCOLNSHIRE COUNCIL,http://statistics.data.gov.uk/id/local-authority/00FC,People,Childrens Services,Placement & Support,Other Agencies,Child Care Payments,PJ104,10/14/2014,268559,505,REVENUE,REDACTED PERSONAL INFORMATION,REDACTED PERSONAL INFORMATION
NORTH EAST LINCOLNSHIRE COUNCIL,http://statistics.data.gov.uk/id/local-authority/00FC,People,Childrens Services,Placement & Support,Other Agencies,Child Care Payments,PJ104,10/14/2014,268561,968,REVENUE,REDACTED PERSONAL INFORMATION,REDACTED PERSONAL INFORMATION
NORTH EAST LINCOLNSHIRE COUNCIL,http://statistics.data.gov.uk/id/local-authority/00FC,People,Childrens Services,Placement & Support,Other Agencies,Child Care Payments,PJ104,10/14/2014,268564,426.29,REVENUE,REDACTED PERSONAL INFORMATION,REDACTED PERSONAL INFORMATION
NORTH EAST LINCOLNSHIRE COUNCIL,http://statistics.data.gov.uk/id/local-authority/00FC,People,Childrens Services,Placement & Support,Other Agencies,Child Care Payments,PJ104,10/14/2014,268565,336,REVENUE,REDACTED PERSONAL INFORMATION,REDACTED PERSONAL INFORMATION
NORTH EAST LINCOLNSHIRE COUNCIL,http://statistics.data.gov.uk/id/local-authority/00FC,People,Childrens Services,Placement & Support,Other Agencies,Child Care Payments,PJ104,10/14/2014,268569,944,REVENUE,REDACTED PERSONAL INFORMATION,REDACTED PERSONAL INFORMATION
NORTH EAST LINCOLNSHIRE COUNCIL,http://statistics.data.gov.uk/id/local-authority/00FC,People,Childrens Services,Placement & Support,Other Agencies,Child Care Payments,PJ104,10/14/2014,268572,1271.43,REVENUE,REDACTED PERSONAL INFORMATION,REDACTED PERSONAL INFORMATION
NORTH EAST LINCOLNSHIRE COUNCIL,http://statistics.data.gov.uk/id/local-authority/00FC,People,Childrens Services,Placement & Support,Other Agencies,Child Care Payments,PJ104,10/14/2014,268578,608,REVENUE,REDACTED PERSONAL INFORMATION,REDACTED PERSONAL INFORMATION
NORTH EAST LINCOLNSHIRE COUNCIL,http://statistics.data.gov.uk/id/local-authority/00FC,People,Childrens Services,Placement & Support,Other Agencies,Child Care Payments,PJ104,10/14/2014,268583,672,REVENUE,REDACTED PERSONAL INFORMATION,REDACTED PERSONAL INFORMATION
NORTH EAST LINCOLNSHIRE COUNCIL,http://statistics.data.gov.uk/id/local-authority/00FC,People,Childrens Services,Placement & Support,Other Agencies,Child Care Payments,PJ104,10/14/2014,268587,586.86,REVENUE,REDACTED PERSONAL INFORMATION,REDACTED PERSONAL INFORMATION
NORTH EAST LINCOLNSHIRE COUNCIL,http://statistics.data.gov.uk/id/local-authority/00FC,People,Childrens Services,Placement & Support,Other Agencies,Child Care Payments,PJ104,10/14/2014,268596,1240,REVENUE,REDACTED PERSONAL INFORMATION,REDACTED PERSONAL INFORMATION
NORTH EAST LINCOLNSHIRE COUNCIL,http://statistics.data.gov.uk/id/local-authority/00FC,People,Childrens Services,Placement & Support,Other Agencies,Child Care Payments,PJ104,10/14/2014,268607,620,REVENUE,REDACTED PERSONAL INFORMATION,REDACTED PERSONAL INFORMATION
NORTH EAST LINCOLNSHIRE COUNCIL,http://statistics.data.gov.uk/id/local-authority/00FC,People,Childrens Services,Placement & Support,Other Agencies,Child Care Payments,PJ104,10/14/2014,268613,936,REVENUE,REDACTED PERSONAL INFORMATION,REDACTED PERSONAL INFORMATION
NORTH EAST LINCOLNSHIRE COUNCIL,http://statistics.data.gov.uk/id/local-authority/00FC,People,Childrens Services,Placement & Support,Other Agencies,Child Care Payments,PJ104,10/14/2014,268618,620,REVENUE,REDACTED PERSONAL INFORMATION,REDACTED PERSONAL INFORMATION
NORTH EAST LINCOLNSHIRE COUNCIL,http://statistics.data.gov.uk/id/local-authority/00FC,People,Childrens Services,Placement & Support,Other Agencies,Child Care Payments,PJ104,10/14/2014,268635,316,REVENUE,REDACTED PERSONAL INFORMATION,REDACTED PERSONAL INFORMATION
NORTH EAST LINCOLNSHIRE COUNCIL,http://statistics.data.gov.uk/id/local-authority/00FC,People,Childrens Services,Placement & Support,Other Agencies,Child Care Payments,PJ104,10/14/2014,268663,384,REVENUE,REDACTED PERSONAL INFORMATION,REDACTED PERSONAL INFORMATION
NORTH EAST LINCOLNSHIRE COUNCIL,http://statistics.data.gov.uk/id/local-authority/00FC,People,Childrens Services,Placement & Support,Other Agencies,Child Care Payments,PJ104,10/14/2014,268667,640,REVENUE,REDACTED PERSONAL INFORMATION,REDACTED PERSONAL INFORMATION
